Workbook

Sheet Summary
B3: East Riding Enterprise Zone Retained Business Rates Grant Documentation | G3: Instructions & Contents
B4: Appendix - Financial and outputs tables | G4: Instructions & Contents
G6: Output tables
B7: Project name as it appears on your main business case/expression of interest form: | G7: Economic Case
B8: Project name as it appears on your main business case/expression of interest form: | E8: enter the name of your project here | G8: Financial Case
B10: Select your project location | G10: Data
B11: East Riding | E11: choose from one of the locations | G11: Project Costs
G12: Outputs
B13: Project reference (if known): | G13: Retained Risk
B14: Ref | G14: Risk Register
B16: Date completed:
B19: Name of person completing the form:
B22: Name of organisation:
B25: Email address:
B28: Telephone number:
A33: Checks
A35: Total spend = total funding
A36: is | B36: =ROUND(+'Financial Case'!C73,0)=0 -> TRUE | E36: do not submit until this is green
A37: Checklist has been completed
A38: is | B38: =+AND('Instructions&Contents'!D11:D14) -> FALSE | E38: do not submit until this is green
A39: Value for money category
A40: is | B40: =+'Economic Case'!E73 ->  | E40: a poor vfm category is unlikely to be funded by the LEP. You may wish to consider whether there are any other benefits to include or and non-financial benefits that need to be included
B42: =+IF('Economic Case'!E68<1,"A poor vfm category is unlikely to be funded by the LEP. You may wish to consider whether there are any other benefits you can include as part of the project to improve this rating or any non-financial benefits that can be included","") -> 
A44: Overall
A45: is | B45: =+B36=B38=TRUE -> FALSE | E45: do not submit until this is green

Sheet Instructions&Contents
A1: =+Summary!$B$8 -> Project name as it appears on your main business case/expression of interest form: | E1: clicking on this in any worksheet will take you to the summary tab
B2: Description | D2: TRUE
D3: FALSE
B4: Comments | C4: Completed by | D4: Completed? | E4: Notes
D5: update when completed
A6: Output tables
A7: Economic Case | B7: This table shows the value for money outputs based on your data | E7: If the project has already undertaken a fully compliant Green Book process, or is being evaluated through (eg) WebTAG or FDGiA then please provide that economic case instead
A8: Financial Case | B8: This table shows the financial summary based on your data | E8: This summarises the information you put in the tabs below.
A10: Data | E10: Comments (enter your comments below if appropriate)
A11: Project Costs | B11: Enter your data on the costs and funding of the project. This should include (where relevant) future costs such as maintenance. | C11: Applicant | D11: FALSE
A12: Outputs | B12: This form is where you need to quantify your expected outputs over the life of the project. It also allows you to value the benefits the project brings. Some are preset where we have national values but you can add others as you feel is appropriate. This links directly to the VfM case so it is important to include all outputs and concommitant benefits associated with your project. | C12: Applicant | D12: FALSE
A13: Retained Risk | B13: this form allows you to include the risks that are not included in the project costs. This forms part fo the project assessment overall. | C13: Applicant | D13: FALSE
A14: Risk Register | B14: This is a project specific risk register that you need to complete | C14: Applicant | D14: FALSE

Sheet Economic Case
A1: =+Summary!$B$8 -> Project name as it appears on your main business case/expression of interest form: | G1: Notes
A2: Economic Case
A6: IF THE PROJECT HAS ALREADY UNDERTAKEN A FULLY COMPLIANT GREEN BOOK PROCESS PLEASE PROVIDE THAT REPORT INSTEAD OF COMPLETING THESE DETAILS.
A7: THIS INCLUDES TRANSPORT PROJECTS EVALUATED THROUGH WEB-TAG OR ENVIRONMENT AGENCY SCHEMES.
C10: Undiscounted | E10: Net Present Value
C11: (£) | E11: (£)
A13: Benefits for initial BCR | G13: This is attempting to capture the monetized market benefits
A14: Uplift in land value | C14: =+Outputs!BD79+Outputs!BD80+Outputs!BD81 -> 0 | E14: =+Outputs!BF79+Outputs!BF80+Outputs!BF81 -> 0 | G14: this links directly to the outputs sheet
B16: A | C16: =+SUM(C13:C15) -> 0 | E16: =+SUM(E13:E15) -> 0
A18: Benefits for adjusted BCR | G18: This is attempting to capture the monetized non-market benefits
A20: Job Creation & Safeguarding (GVA per job)
A21: Jobs created | C21: =+Outputs!BD12 -> 0 | E21: =+Outputs!BF12 -> 0 | G21: this links directly to the outputs sheet
A22: Jobs Safeguarded | C22: =+Outputs!BD16 -> 0 | E22: =+Outputs!BF16 -> 0 | G22: this links directly to the outputs sheet
A23: less displacement | B23: =Outputs!AE20 -> 0.25 | C23: =SUM(C21:C22)*-$B$23 -> 0 | E23: =SUM(E21:E22)*-$B$23 -> 0 | G23: please amend %age if appropriate
A25: Construction jobs | C25: =+Outputs!BD18 -> 0 | E25: =+Outputs!BF18 -> 0 | G25: this links directly to the outputs sheet
A27: Housing
A28: Amenity value of new residential land | C28: =+Outputs!BD83 -> 0 | E28: =+Outputs!BF83 -> 0 | G28: this links directly to the outputs sheet
A29: New Homes Bonus | C29: =+Outputs!BD37 -> 0 | E29: =+Outputs!BF37 -> 0 | G29: this links directly to the outputs sheet. Note: directly benefits the LA. If included in project costs this needs to be set to £0
A30: Affordable Homes Bonus | C30: =+Outputs!BD38 -> 0 | E30: =+Outputs!BF38 -> 0 | G30: =+G29 -> this links directly to the outputs sheet. Note: directly benefits the LA. If included in project costs this needs to be set to £0
A31: Health benefits of additional affordable housing | C31: =+Outputs!BD40 -> 0 | E31: =+Outputs!BF40 -> 0 | G31: this links directly to the outputs sheet
A33: Transport
A34: Walking & cycling | C34: =+Outputs!BD47 -> 0 | E34: =+Outputs!BF47 -> 0 | G34: this links directly to the outputs sheet
A36: Skills
A37: Qualifications completed | C37: =+Outputs!BD63 -> 0 | E37: =+Outputs!BF63 -> 0 | G37: this links directly to the outputs sheet
A38: Apprenticeships completed | C38: =+Outputs!BD70 -> 0 | E38: =+Outputs!BF70 -> 0 | G38: this links directly to the outputs sheet
A40: Others
A41: Commercial floorspace developed | C41: =+Outputs!BD86+Outputs!BD90+Outputs!BD94 -> 0 | E41: =+Outputs!BF86+Outputs!BF90+Outputs!BF94 -> 0 | G41: this links directly to the outputs sheet
A42: =+Outputs!B113 -> Community Space (D1 & D2 uses) Sqm | C42: =+Outputs!BD113 -> 0 | E42: =+Outputs!BF113 -> 0 | G42: this links directly to the outputs sheet
A44: =+Outputs!B116 -> uplift in business rates | C44: =+Outputs!BD116 -> 0 | E44: =+Outputs!BF116 -> 0 | G44: =+$G$42 -> this links directly to the outputs sheet
A45: =+Outputs!B117 -> please list | C45: =+Outputs!BD117 -> 0 | E45: =+Outputs!BF117 -> 0 | G45: =+$G$42 -> this links directly to the outputs sheet
A46: =+Outputs!B118 -> please list | C46: =+Outputs!BD118 -> 0 | E46: =+Outputs!BF118 -> 0 | G46: =+$G$42 -> this links directly to the outputs sheet
A47: =+Outputs!B119 -> please list | C47: =+Outputs!BD119 -> 0 | E47: =+Outputs!BF119 -> 0 | G47: =+$G$42 -> this links directly to the outputs sheet
A48: =+Outputs!B120 -> please list | C48: =+Outputs!BD120 -> 0 | E48: =+Outputs!BF120 -> 0 | G48: =+$G$42 -> this links directly to the outputs sheet
A49: =+Outputs!B121 -> please list | C49: =+Outputs!BD121 -> 0 | E49: =+Outputs!BF121 -> 0 | G49: =+$G$42 -> this links directly to the outputs sheet
A50: =+Outputs!B122 -> please list | C50: =+Outputs!BD122 -> 0 | E50: =+Outputs!BF122 -> 0 | G50: this links directly to the outputs sheet
A51: =+Outputs!B123 -> please list | C51: =+Outputs!BD123 -> 0 | E51: =+Outputs!BF123 -> 0 | G51: this links directly to the outputs sheet
A52: =+Outputs!B124 -> please list | C52: =+Outputs!BD124 -> 0 | E52: =+Outputs!BF124 -> 0 | G52: this links directly to the outputs sheet
B55: B | C55: =+SUM(C18:C54) -> 0 | E55: =+SUM(E18:E54) -> 0
A57: Public sector cost
A58: GBF Cost | B58: C | C58: =+'Project Costs'!AG87 -> 0 | E58: =+'Project Costs'!AI87 -> 0
A59: Other Public Sector cost | B59: D | C59: =+C99 -> 0 | E59: =+E99 -> 0
B60: E | C60: =+SUM(C57:C59) -> 0 | E60: =+SUM(E57:E59) -> 0
A62: Private Sector Funding | B62: F
A64: Initial BCR - GBF Funding only | C64: = (A-D-F) / C | E64: =+(E16-E59-E62)/E58 -> 
A65: Initial BCR - public sector funding | C65: = A / E | E65: =+E16/E60 -> 
A67: Adjusted BCR - GBF Only | C67: = (A+B-F) / C | E67: =+(E16+E55-E62)/E58 -> 
A68: Adjusted BCR - public sector funding | C68: = (A+B-F) / E | E68: =+(E16+E55-E62)/E60 -> 
A71: Significant non-monetised impacts | C71: include & explain any such benefits in the word document
A73: value for money category | E73: =+IF(E68<1,"poor value for money",IF(E68<2,"acceptable value for money","good value for money")) ->  | G73: automatic calculation
A78: Costs
A79: Capital costs | C79: =+'Project Costs'!AG72 -> 0 | E79: =+'Project Costs'!AI72 -> 0 | G79: this links directly to the project costs sheet
A80: Revenue costs | C80: =+'Project Costs'!AG73 -> 0 | E80: =+'Project Costs'!AI73 -> 0 | G80: this links directly to the project costs sheet
C81: =+SUM(C79:C80) -> 0 | E81: =+SUM(E79:E80) -> 0
A82: Retained risk | E82: =+'Risk Retained'!D15 -> 0 | G82: this links directly to the risks retained sheet
A83: Optimism bias | C83: =+'Project Costs'!BH70 -> 0 | E83: =+'Project Costs'!BJ70 -> 0 | G83: this links directly to the project costs sheet - this is appropriate for straightforward projects. For more complex projects a full OB exercise would be required.
C84: =+SUM(C81:C83) -> 0 | E84: =+SUM(E81:E83) -> 0
A86: GBF Cost
A87: Getting Building Fund | C87: ='Project Costs'!AG87 -> 0 | E87: ='Project Costs'!AI87 -> 0
C88: =+SUM(C85:C87) -> 0 | E88: =+SUM(E85:E87) -> 0
A90: Other Public Sector cost
A91: Local Authority | C91: =+'Project Costs'!AG94 -> 0 | E91: =+'Project Costs'!AI94 -> 0
A92: Other Government Agencies | C92: =+'Project Costs'!AG100 -> 0 | E92: =+'Project Costs'!AI100 -> 0
A93: Other public | C93: =+'Project Costs'!AG106 -> 0 | E93: =+'Project Costs'!AI106 -> 0
A94: Third sector | C94: ='Project Costs'!AG112 -> 0 | E94: ='Project Costs'!AI112 -> 0
A95: European | C95: =+'Project Costs'!AG118 -> 0 | E95: =+'Project Costs'!AI118 -> 0
C96: =SUM(C91:C95) -> 0 | E96: =SUM(E91:E95) -> 0
A97: Risk | B97: 1 | C97: =$B97*'Economic Case'!C$82 -> 0 | E97: =$B97*'Economic Case'!E$82 -> 0 | G97: allocated between OPS & Private sector according to percentages input
A98: Optimism bias | B98: 1 | C98: =$B98*'Economic Case'!C$83 -> 0 | E98: =$B98*'Economic Case'!E$83 -> 0 | G98: this needs to be properly considered as to where this sits
C99: =+SUM(C96:C98) -> 0 | E99: =+SUM(E96:E98) -> 0 | G99: other public sector as default
A101: Private sector
A102: Private sector | C102: ='Project Costs'!AG127 -> 0 | E102: ='Project Costs'!AI127 -> 0
A103: Risk | B103: =100%-B97 -> 0 | C103: =$B103*'Economic Case'!C$82 -> 0 | E103: =$B103*'Economic Case'!E$82 -> 0 | G103: please amend %age if appropriate
A104: Optimism bias | B104: =100%-B98 -> 0 | C104: =$B104*'Economic Case'!C$83 -> 0 | E104: =$B104*'Economic Case'!E$83 -> 0 | G104: please amend %age if appropriate
C105: =+SUM(C101:C104) -> 0 | E105: =+SUM(E101:E104) -> 0
A109: =+A6&" "&A7 -> IF THE PROJECT HAS ALREADY UNDERTAKEN A FULLY COMPLIANT GREEN BOOK PROCESS PLEASE PROVIDE THAT REPORT INSTEAD OF COMPLETING THESE DETAILS. THIS INCLUDES TRANSPORT PROJECTS EVALUATED THROUGH WEB-TAG OR ENVIRONMENT AGENCY SCHEMES.
G112: Optimism Bias
G113: There is a demonstrated, systematic, tendency for project appraisers to be overly optimistic. This is a worldwide phenomenon that affects both the private and public sectors. Many project parameters are affected by optimism – appraisers tend to overstate benefits, and understate timings and costs, both capital and operational.
G114: To redress this tendency, appraisers should make explicit adjustments for this bias. These will take the form of increasing estimates of the costs and decreasing, and delaying the receipt of, estimated benefits. Sensitivity analysis should be used to test assumptions about operating costs and expected benefits.
G115: Adjustments should be empirically based, (e.g. using data from past projects or similar projects elsewhere), and adjusted for the unique characteristics of the project in hand. Cross-departmental guidance for generic project categories is available, and should be used in the absence of more specific evidence.But if departments or agencies have a more robust evidence base for cost overruns and other instances of bias, this evidence should be used in preference. When such information is not available, departments are encouraged to collect data to inform their estimates of optimism, and in the meantime use the available data that best fits the case in hand.
G116: Adjusting for optimism should provide a better estimate, earlier on, of key project parameters. Enforcing these adjustments for optimism bias is designed to complement and encourage, rather than replace, existing good practice, in terms of calculating project specific risk adjustments.They are also designed to encourage more accurate costing. Accordingly, adjustments for optimism may be reduced as more reliable estimates of relevant costs are built up, and project specific risk work is undertaken. Both cost estimates and adjustments for optimism should be independently reviewed before decisions are taken.
G117: This model uses the assumptions developed in the Manchester New Economy Model but for more complex projects - and only where a full compliant Green Book exercise has been undertaken - then the outputs from that should be included instead of this form.

Sheet Financial Case
A1: =+Summary!$B$8 -> Project name as it appears on your main business case/expression of interest form:
A2: financial case
C4: Total costs | E4: NPV | J4: Capital | K4: Revenue
A5: Total project costs | J5: =+J12/SUM($J$12:$K$12) ->  | K5: =+K12/SUM($J$12:$K$12) -> 
A6: =+'Project Costs'!A64 -> Direct project costs | C6: =+'Project Costs'!AG64 -> 0 | E6: =+'Project Costs'!AI64 -> 0 | J6: =+C6 -> 0 | K6: =+C6-J6 -> 0
A7: =+'Project Costs'!A65 -> Ongoing maintenance costs | C7: =+'Project Costs'!AG65 -> 0 | E7: =+'Project Costs'!AI65 -> 0 | K7: =+C7-J7 -> 0
A8: =+'Project Costs'!A66 -> Other ongoing costs or (savings) | C8: =+'Project Costs'!AG66 -> 0 | E8: =+'Project Costs'!AI66 -> 0 | K8: 0
A9: =+'Project Costs'!A67 -> Grants to third parties | C9: =+'Project Costs'!AG67 -> 0 | E9: =+'Project Costs'!AI67 -> 0 | J9: =+C9 -> 0 | K9: 0
A10: =+'Project Costs'!A68 -> Project Overheads | C10: =+'Project Costs'!AG68 -> 0 | E10: =+'Project Costs'!AI68 -> 0 | J10: 0 | K10: 0
A11: =+'Project Costs'!A69 -> Contingency | C11: =+'Project Costs'!AG69 -> 0 | E11: =+'Project Costs'!AI69 -> 0 | J11: 0 | K11: 0
C12: =+SUM(C6:C11) -> 0 | E12: =+SUM(E6:E11) -> 0 | J12: =+SUM(J6:J11) -> 0 | K12: 0
A63: How funded | I63: Approved | J63: Approved subject to conditions | K63: Approved in principle | L63: Request/bid submitted | M63: Speculative | N63: Total
A64: =+'Project Costs'!A131 -> Enterprise Zone Retained Business Rates Grant Fund | C64: =+'Project Costs'!AG131 -> 0 | E64: =+'Project Costs'!AI131 -> 0 | G64: =+E64/$E$71 ->  | L64: =+C64 -> 0 | N64: =+SUM(I64:M64) -> 0
A65: =+'Project Costs'!A132 -> Local Authority | C65: =+'Project Costs'!AG132 -> 0 | E65: =+'Project Costs'!AI132 -> 0 | G65: =+E65/$E$71 ->  | I65: =+'Project Costs'!AG152 -> 0 | J65: =+'Project Costs'!AG153 -> 0 | K65: =+'Project Costs'!AG154 -> 0 | L65: =+'Project Costs'!AG155 -> 0 | M65: =+'Project Costs'!AG156 -> 0 | N65: 0
A66: =+'Project Costs'!A133 -> Other Government Agencies | C66: =+'Project Costs'!AG133 -> 0 | E66: =+'Project Costs'!AI133 -> 0 | I66: =+'Project Costs'!AG160 -> 0 | J66: =+'Project Costs'!AG161 -> 0 | K66: =+'Project Costs'!AG162 -> 0 | L66: =+'Project Costs'!AG163 -> 0 | M66: =+'Project Costs'!AG164 -> 0 | N66: 0
A67: =+'Project Costs'!A134 -> Other public sector | C67: =+'Project Costs'!AG134 -> 0 | E67: =+'Project Costs'!AI134 -> 0 | I67: =+'Project Costs'!AG167 -> 0 | J67: =+'Project Costs'!AG168 -> 0 | K67: =+'Project Costs'!AG169 -> 0 | L67: =+'Project Costs'!AG170 -> 0 | M67: =+'Project Costs'!AG171 -> 0 | N67: 0
A68: =+'Project Costs'!A135 -> Third sector | C68: =+'Project Costs'!AG135 -> 0 | E68: =+'Project Costs'!AI135 -> 0 | I68: =+'Project Costs'!AG174 -> 0 | J68: =+'Project Costs'!AG175 -> 0 | K68: =+'Project Costs'!AG176 -> 0 | L68: =+'Project Costs'!AG177 -> 0 | M68: =+'Project Costs'!AG178 -> 0 | N68: 0
A69: =+'Project Costs'!A136 -> European Funding | C69: =+'Project Costs'!AG136 -> 0 | E69: =+'Project Costs'!AI136 -> 0 | I69: =+'Project Costs'!AG181 -> 0 | J69: =+'Project Costs'!AG182 -> 0 | K69: =+'Project Costs'!AG183 -> 0 | L69: =+'Project Costs'!AG184 -> 0 | M69: =+'Project Costs'!AG185 -> 0 | N69: 0
A70: =+'Project Costs'!A137 -> Private sector | C70: =+'Project Costs'!AG137 -> 0 | E70: =+'Project Costs'!AI137 -> 0 | I70: =+'Project Costs'!AG188 -> 0 | J70: =+'Project Costs'!AG189 -> 0 | K70: =+'Project Costs'!AG190 -> 0 | L70: =+'Project Costs'!AG191 -> 0 | M70: =+'Project Costs'!AG192 -> 0 | N70: 0
C71: =+SUM(C64:C70) -> 0 | E71: =+SUM(E64:E70) -> 0 | I71: =+SUM(I64:I70) -> 0 | J71: 0 | K71: 0 | L71: 0 | M71: 0 | N71: 0
A73: Difference | C73: =+C12-C71 -> 0 | E73: =+E12-E71 -> 0 | I73: =+I71/$N$71 -> 
A75: GBF as a percentage of capital costs | C75: =+C64/SUM(C6,C9:C11) ->  | E75: =+E64/SUM(E6,E9:E11) -> 

Sheet Project Costs
A1: =+Summary!$B$8 -> Project name as it appears on your main business case/expression of interest form:
A2: Project Costs | E2: Independently audited cost data | F2: current | H2: 0 | I2: 0 | L2: 2020 | M2: =1+L2 -> 2021 | N2: =1+M2 -> 2022 | O2: 2023 | P2: 2024 | Q2: 2025 | R2: 2026 | S2: 2027 | T2: 2028 | U2: 2029 | V2: 2030 | W2: 2031 | X2: 2032 | Y2: =1+X2 -> 2033 | Z2: =1+Y2 -> 2034 | AA2: =1+Z2 -> 2035 | AB2: =1+AA2 -> 2036 | AC2: =1+AB2 -> 2037 | AD2: =1+AC2 -> 2038 | AE2: =1+AD2 -> 2039 | AF2: 2040
E3: Formal service delivery contract costs | F3: 1-2 years | H3: 0.05 | I3: 0.05 | L3: =1+L2 -> 2021 | M3: =1+M2 -> 2022 | N3: =1+N2 -> 2023 | O3: 2024 | P3: 2025 | Q3: 2026 | R3: 2027 | S3: 2028 | T3: 2029 | U3: 2030 | V3: 2031 | W3: 2032 | X3: 2033 | Y3: =1+Y2 -> 2034 | Z3: 2035 | AA3: 2036 | AB3: 2037 | AC3: 2038 | AD3: 2039 | AE3: 2040 | AF3: 2041
E4: Practitioner monitored costs | F4: 2-3 years | H4: 0.1 | I4: 0.1
E5: Costs developed from ready reckoners | F5: 3-4 years | H5: 0.15 | I5: 0.15
E6: Uncorroborated expert judgement | F6: 4/5 years | H6: 0.4 | I6: 0.25
F7: >5 years | I7: 0.4
A8: Description of Costs | B8: Notes | D8: Basis of calculation? | E8: Data source | F8: Age of data | H8: =+L9 -> 2020 / 2021 | L8: Profile (£) | AG8: Total (£) | AI8: NPV (£) | AO8: =+L8 -> Profile (£) | AS8: Profile (£m) | BH8: =+AG8 -> Total (£) | BJ8: =+AI8 -> NPV (£)
H9: Qtr 1 | I9: Qtr 2 | J9: Qtr 3 | K9: Qtr 4 | L9: =+L2&" / "&L3 -> 2020 / 2021 | M9: 2021 / 2022 | N9: 2022 / 2023 | O9: 2023 / 2024 | P9: 2024 / 2025 | Q9: 2025 / 2026 | R9: 2026 / 2027 | S9: 2027 / 2028 | T9: 2028 / 2029 | U9: 2029 / 2030 | V9: 2030 / 2031 | W9: 2031 / 2032 | X9: 2032 / 2033 | Y9: =+Y2&" / "&Y3 -> 2033 / 2034 | Z9: 2034 / 2035 | AA9: 2035 / 2036 | AB9: 2036 / 2037 | AC9: 2037 / 2038 | AD9: 2038 / 2039 | AE9: 2039 / 2040 | AF9: 2040 / 2041 | AO9: Qtr 1 | AP9: Qtr 2 | AQ9: Qtr 3 | AR9: Qtr 4 | AS9: =+L9 -> 2020 / 2021 | AT9: 2021 / 2022 | AU9: 2022 / 2023 | AV9: 2023 / 2024 | AW9: 2024 / 2025 | AX9: 2025 / 2026 | AY9: 2026 / 2027 | AZ9: 2027 / 2028 | BA9: 2028 / 2029 | BB9: 2029 / 2030 | BC9: 2030 / 2031 | BD9: 2031 / 2032 | BE9: 2032 / 2033 | BF9: =+AE9 -> 2039 / 2040 | BG9: 2040 / 2041
D10: explain how this has been derived. E.g. are they backed by quotes? | E10: who produced the estimate? select from the list | F10: how old is this data? select from the list | H10: £ | I10: =+H10 -> £ | J10: =+I10 -> £ | K10: £ | L10: £ | M10: £ | N10: £ | O10: £ | P10: £ | Q10: £ | R10: £ | S10: £ | T10: £ | U10: £ | V10: £ | W10: £ | X10: £ | Y10: =+X10 -> £ | Z10: =+Y10 -> £ | AA10: =+Z10 -> £ | AB10: =+AA10 -> £ | AC10: =+AB10 -> £ | AD10: =+AC10 -> £ | AE10: =+AD10 -> £ | AF10: £ | AO10: =+H10 -> £ | AP10: =+AO10 -> £ | AQ10: =+AP10 -> £ | AR10: £ | AS10: £ | AT10: £ | AU10: £ | AV10: £ | AW10: £ | AX10: £ | AY10: £ | AZ10: £ | BA10: £ | BB10: £ | BC10: £ | BD10: £ | BE10: £ | BF10: £ | BG10: £
A12: Direct project costs | B12: detail a breakdown of the project costs so this could include for example purchasing land, construction costs, professional fees etc.
A13: description | E13: Independently audited cost data | F13: current | L13: =+SUM(H13:K13) -> 0 | AG13: =+SUM(L13:AF13) -> 0 | AK13: =+VLOOKUP($E13,$E$2:$I$7,4,0) -> 0 | AL13: =+VLOOKUP($F13,$F$2:$I$7,4,0) -> 0 | AM13: =IF(AG13<>0,MAX(AK13:AL13),0) -> 0 | AO13: =+$AM13*H13 -> 0 | AP13: =+$AM13*I13 -> 0 | AQ13: =+$AM13*J13 -> 0 | AR13: =+$AM13*K13 -> 0 | AS13: =+SUM(AO13:AR13) -> 0 | AT13: =+$AM13*M13 -> 0 | AU13: =+$AM13*N13 -> 0 | AV13: =+$AM13*O13 -> 0 | AW13: =+$AM13*P13 -> 0 | AX13: =+$AM13*Q13 -> 0 | AY13: =+$AM13*R13 -> 0 | AZ13: =+$AM13*S13 -> 0 | BA13: =+$AM13*T13 -> 0 | BB13: =+$AM13*U13 -> 0 | BC13: =+$AM13*V13 -> 0 | BD13: =+$AM13*W13 -> 0 | BE13: =+$AM13*X13 -> 0 | BF13: =+$AM13*AE13 -> 0 | BG13: =+$AM13*AF13 -> 0 | BH13: =+SUM(AS13:BG13) -> 0
A14: description | E14: Independently audited cost data | F14: current | L14: 0 | AG14: 0 | AK14: 0 | AL14: 0 | AM14: 0 | AO14: =+$AM14*H14 -> 0 | AP14: 0 | AQ14: 0 | AR14: 0 | AS14: 0 | AT14: 0 | AU14: 0 | AV14: 0 | AW14: 0 | AX14: 0 | AY14: 0 | AZ14: 0 | BA14: 0 | BB14: 0 | BC14: 0 | BD14: 0 | BE14: 0 | BF14: 0 | BG14: 0 | BH14: 0
A15: description | E15: Independently audited cost data | F15: current | L15: 0 | AG15: 0 | AK15: 0 | AL15: 0 | AM15: 0 | AO15: 0 | AP15: 0 | AQ15: 0 | AR15: 0 | AS15: 0 | AT15: 0 | AU15: 0 | AV15: 0 | AW15: 0 | AX15: 0 | AY15: 0 | AZ15: 0 | BA15: 0 | BB15: 0 | BC15: 0 | BD15: 0 | BE15: 0 | BF15: 0 | BG15: 0 | BH15: 0
A16: description | E16: Independently audited cost data | F16: current | L16: 0 | AG16: 0 | AK16: 0 | AL16: 0 | AM16: 0 | AO16: 0 | AP16: 0 | AQ16: 0 | AR16: 0 | AS16: 0 | AT16: 0 | AU16: 0 | AV16: 0 | AW16: 0 | AX16: 0 | AY16: 0 | AZ16: 0 | BA16: 0 | BB16: 0 | BC16: 0 | BD16: 0 | BE16: 0 | BF16: 0 | BG16: 0 | BH16: 0
A17: description | E17: Independently audited cost data | F17: current | L17: 0 | AG17: 0 | AK17: 0 | AL17: 0 | AM17: 0 | AO17: 0 | AP17: 0 | AQ17: 0 | AR17: 0 | AS17: 0 | AT17: 0 | AU17: 0 | AV17: 0 | AW17: 0 | AX17: 0 | AY17: 0 | AZ17: 0 | BA17: 0 | BB17: 0 | BC17: 0 | BD17: 0 | BE17: 0 | BF17: 0 | BG17: 0 | BH17: 0
A18: description | E18: Independently audited cost data | F18: current | L18: 0 | AG18: 0 | AK18: 0 | AL18: 0 | AM18: 0 | AO18: 0 | AP18: 0 | AQ18: 0 | AR18: 0 | AS18: 0 | AT18: 0 | AU18: 0 | AV18: 0 | AW18: 0 | AX18: 0 | AY18: 0 | AZ18: 0 | BA18: 0 | BB18: 0 | BC18: 0 | BD18: 0 | BE18: 0 | BF18: 0 | BG18: 0 | BH18: 0
A19: description | E19: Independently audited cost data | F19: current | L19: 0 | AG19: 0 | AK19: 0 | AL19: 0 | AM19: =IF(AG19<>0,MAX(AK19:AL19),0) -> 0 | AO19: 0 | AP19: 0 | AQ19: 0 | AR19: 0 | AS19: 0 | AT19: 0 | AU19: 0 | AV19: 0 | AW19: 0 | AX19: 0 | AY19: 0 | AZ19: 0 | BA19: 0 | BB19: 0 | BC19: 0 | BD19: 0 | BE19: 0 | BF19: 0 | BG19: 0 | BH19: 0
A20: description | E20: Independently audited cost data | F20: current | L20: 0 | AG20: 0 | AK20: 0 | AL20: 0 | AM20: 0 | AO20: 0 | AP20: 0 | AQ20: 0 | AR20: 0 | AS20: 0 | AT20: 0 | AU20: 0 | AV20: 0 | AW20: 0 | AX20: 0 | AY20: 0 | AZ20: 0 | BA20: 0 | BB20: 0 | BC20: 0 | BD20: 0 | BE20: 0 | BF20: 0 | BG20: 0 | BH20: 0
A21: description | E21: Independently audited cost data | F21: current | L21: 0 | AG21: 0 | AK21: 0 | AL21: 0 | AM21: 0 | AO21: 0 | AP21: 0 | AQ21: 0 | AR21: 0 | AS21: 0 | AT21: 0 | AU21: 0 | AV21: 0 | AW21: 0 | AX21: 0 | AY21: 0 | AZ21: 0 | BA21: 0 | BB21: 0 | BC21: 0 | BD21: 0 | BE21: 0 | BF21: 0 | BG21: 0 | BH21: 0
A22: description | E22: Independently audited cost data | F22: current | L22: 0 | AG22: 0 | AK22: 0 | AL22: 0 | AM22: 0 | AO22: 0 | AP22: 0 | AQ22: 0 | AR22: 0 | AS22: 0 | AT22: 0 | AU22: 0 | AV22: 0 | AW22: 0 | AX22: 0 | AY22: 0 | AZ22: 0 | BA22: 0 | BB22: 0 | BC22: 0 | BD22: 0 | BE22: 0 | BF22: 0 | BG22: 0 | BH22: 0
A23: description | E23: Independently audited cost data | F23: current | L23: 0 | AG23: 0 | AK23: 0 | AL23: 0 | AM23: 0 | AO23: 0 | AP23: 0 | AQ23: 0 | AR23: 0 | AS23: 0 | AT23: 0 | AU23: 0 | AV23: 0 | AW23: 0 | AX23: 0 | AY23: 0 | AZ23: 0 | BA23: 0 | BB23: 0 | BC23: 0 | BD23: 0 | BE23: 0 | BF23: 0 | BG23: 0 | BH23: 0
A24: description | E24: Independently audited cost data | F24: current | L24: 0 | AG24: 0 | AK24: 0 | AL24: 0 | AM24: 0 | AO24: 0 | AP24: 0 | AQ24: 0 | AR24: 0 | AS24: 0 | AT24: 0 | AU24: 0 | AV24: 0 | AW24: 0 | AX24: 0 | AY24: 0 | AZ24: 0 | BA24: 0 | BB24: 0 | BC24: 0 | BD24: 0 | BE24: 0 | BF24: 0 | BG24: 0 | BH24: 0
A25: description | E25: Independently audited cost data | F25: current | L25: 0 | AG25: 0 | AK25: 0 | AL25: 0 | AM25: 0 | AO25: 0 | AP25: 0 | AQ25: 0 | AR25: 0 | AS25: 0 | AT25: 0 | AU25: 0 | AV25: 0 | AW25: 0 | AX25: 0 | AY25: 0 | AZ25: 0 | BA25: 0 | BB25: 0 | BC25: 0 | BD25: 0 | BE25: 0 | BF25: 0 | BG25: 0 | BH25: 0
A26: description | E26: Independently audited cost data | F26: current | L26: 0 | AG26: 0 | AK26: 0 | AL26: 0 | AM26: 0 | AO26: 0 | AP26: 0 | AQ26: 0 | AR26: 0 | AS26: 0 | AT26: 0 | AU26: 0 | AV26: 0 | AW26: 0 | AX26: 0 | AY26: 0 | AZ26: 0 | BA26: 0 | BB26: 0 | BC26: 0 | BD26: 0 | BE26: 0 | BF26: 0 | BG26: 0 | BH26: 0
H27: =+SUM(H13:H26) -> 0 | I27: =+SUM(I13:I26) -> 0 | J27: 0 | K27: 0 | L27: 0 | M27: 0 | N27: 0 | O27: 0 | P27: 0 | Q27: 0 | R27: 0 | S27: 0 | T27: 0 | U27: 0 | V27: 0 | W27: 0 | X27: 0 | Y27: =+SUM(Y13:Y26) -> 0 | Z27: 0 | AA27: 0 | AB27: 0 | AC27: 0 | AD27: 0 | AE27: 0 | AF27: 0 | AG27: 0 | AI27: =+NPV(6.075%,M27:AF27)+L27 -> 0 | AO27: =+SUM(AO13:AO26) -> 0 | AP27: 0 | AQ27: 0 | AR27: 0 | AS27: 0 | AT27: 0 | AU27: 0 | AV27: 0 | AW27: 0 | AX27: 0 | AY27: 0 | AZ27: 0 | BA27: 0 | BB27: 0 | BC27: 0 | BD27: 0 | BE27: 0 | BF27: 0 | BG27: 0 | BH27: 0 | BJ27: =+NPV(6.075%,AT27:BG27)+AS27 -> 0
A29: Ongoing maintenance costs | B29: GBF can not fund these costs | L29: =+SUM(H29:K29) -> 0
A30: description | E30: Uncorroborated expert judgement | F30: >5 years | L30: =+SUM(H30:K30) -> 0 | AG30: =+SUM(L30:AF30) -> 0 | AO30: =+$AM30*H30 -> 0 | AP30: 0 | AQ30: 0 | AR30: 0 | AS30: =+SUM(AO30:AR30) -> 0 | AT30: =+$AM30*M30 -> 0 | AU30: 0 | AV30: 0 | AW30: 0 | AX30: 0 | AY30: 0 | AZ30: 0 | BA30: 0 | BB30: 0 | BC30: 0 | BD30: 0 | BE30: 0 | BF30: =+$AM30*AE30 -> 0 | BG30: 0 | BH30: =+SUM(AS30:BG30) -> 0
A31: description | E31: Uncorroborated expert judgement | F31: >5 years | L31: =+SUM(H31:K31) -> 0 | AG31: =+SUM(L31:AF31) -> 0 | AO31: 0 | AP31: 0 | AQ31: 0 | AR31: 0 | AS31: =+SUM(AO31:AR31) -> 0 | AT31: 0 | AU31: 0 | AV31: 0 | AW31: 0 | AX31: 0 | AY31: 0 | AZ31: 0 | BA31: 0 | BB31: 0 | BC31: 0 | BD31: 0 | BE31: 0 | BF31: 0 | BG31: 0 | BH31: =+SUM(AS31:BG31) -> 0
A32: description | E32: Uncorroborated expert judgement | F32: >5 years | L32: =+SUM(H32:K32) -> 0 | AG32: =+SUM(L32:AF32) -> 0 | AO32: 0 | AP32: 0 | AQ32: 0 | AR32: 0 | AS32: =+SUM(AO32:AR32) -> 0 | AT32: 0 | AU32: 0 | AV32: 0 | AW32: 0 | AX32: 0 | AY32: 0 | AZ32: 0 | BA32: 0 | BB32: 0 | BC32: 0 | BD32: 0 | BE32: 0 | BF32: 0 | BG32: 0 | BH32: =+SUM(AS32:BG32) -> 0
H33: =+SUM(H30:H32) -> 0 | I33: 0 | J33: 0 | K33: 0 | L33: 0 | M33: 0 | N33: 0 | O33: 0 | P33: 0 | Q33: 0 | R33: 0 | S33: 0 | T33: 0 | U33: 0 | V33: 0 | W33: 0 | X33: 0 | Y33: =+SUM(Y30:Y32) -> 0 | Z33: 0 | AA33: 0 | AB33: 0 | AC33: 0 | AD33: 0 | AE33: 0 | AF33: 0 | AG33: 0 | AI33: =+NPV(6.075%,M33:AF33)+L33 -> 0 | AO33: =+SUM(AO30:AO32) -> 0 | AP33: 0 | AQ33: 0 | AR33: 0 | AS33: 0 | AT33: 0 | AU33: 0 | AV33: 0 | AW33: 0 | AX33: 0 | AY33: 0 | AZ33: 0 | BA33: 0 | BB33: 0 | BC33: 0 | BD33: 0 | BE33: 0 | BF33: 0 | BG33: 0 | BH33: 0 | BJ33: =+NPV(6.075%,AT33:BG33)+AS33 -> 0
A35: Other ongoing costs or (savings) | B35: GBF can not fund these costs. Enter savings as a negative | L35: =+SUM(H35:K35) -> 0
A36: description | E36: Uncorroborated expert judgement | F36: >5 years | L36: 0 | AG36: =+SUM(L36:AF36) -> 0 | AO36: =+$AM36*H36 -> 0 | AP36: =+$AM36*I36 -> 0 | AQ36: =+$AM36*J36 -> 0 | AR36: =+$AM36*K36 -> 0 | AS36: =+SUM(AO36:AR36) -> 0 | AT36: =+$AM36*M36 -> 0 | AU36: =+$AM36*N36 -> 0 | AV36: =+$AM36*O36 -> 0 | AW36: =+$AM36*P36 -> 0 | AX36: =+$AM36*Q36 -> 0 | AY36: =+$AM36*R36 -> 0 | AZ36: =+$AM36*S36 -> 0 | BA36: =+$AM36*T36 -> 0 | BB36: =+$AM36*U36 -> 0 | BC36: =+$AM36*V36 -> 0 | BD36: =+$AM36*W36 -> 0 | BE36: =+$AM36*X36 -> 0 | BF36: =+$AM36*AE36 -> 0 | BG36: =+$AM36*AF36 -> 0 | BH36: =+SUM(AS36:BG36) -> 0
A37: description | E37: Uncorroborated expert judgement | F37: >5 years | L37: =+SUM(H37:K37) -> 0 | AG37: =+SUM(L37:AF37) -> 0 | AO37: =+$AM37*H37 -> 0 | AP37: 0 | AQ37: 0 | AR37: 0 | AS37: =+SUM(AO37:AR37) -> 0 | AT37: =+$AM37*M37 -> 0 | AU37: 0 | AV37: 0 | AW37: 0 | AX37: 0 | AY37: 0 | AZ37: 0 | BA37: 0 | BB37: 0 | BC37: 0 | BD37: 0 | BE37: 0 | BF37: =+$AM37*AE37 -> 0 | BG37: 0 | BH37: =+SUM(AS37:BG37) -> 0
A38: description | E38: Uncorroborated expert judgement | F38: >5 years | L38: =+SUM(H38:K38) -> 0 | AG38: =+SUM(L38:AF38) -> 0 | AO38: 0 | AP38: 0 | AQ38: 0 | AR38: 0 | AS38: =+SUM(AO38:AR38) -> 0 | AT38: 0 | AU38: 0 | AV38: 0 | AW38: 0 | AX38: 0 | AY38: 0 | AZ38: 0 | BA38: 0 | BB38: 0 | BC38: 0 | BD38: 0 | BE38: 0 | BF38: 0 | BG38: 0 | BH38: =+SUM(AS38:BG38) -> 0
A39: description | E39: Uncorroborated expert judgement | F39: >5 years | L39: =+SUM(H39:K39) -> 0 | AG39: =+SUM(L39:AF39) -> 0 | AO39: 0 | AP39: 0 | AQ39: 0 | AR39: 0 | AS39: =+SUM(AO39:AR39) -> 0 | AT39: 0 | AU39: 0 | AV39: 0 | AW39: 0 | AX39: 0 | AY39: 0 | AZ39: 0 | BA39: 0 | BB39: 0 | BC39: 0 | BD39: 0 | BE39: 0 | BF39: 0 | BG39: 0 | BH39: =+SUM(AS39:BG39) -> 0
A40: description | E40: Uncorroborated expert judgement | F40: >5 years | L40: =+SUM(H40:K40) -> 0 | AG40: =+SUM(L40:AF40) -> 0 | AO40: 0 | AP40: 0 | AQ40: 0 | AR40: 0 | AS40: =+SUM(AO40:AR40) -> 0 | AT40: 0 | AU40: 0 | AV40: 0 | AW40: 0 | AX40: 0 | AY40: 0 | AZ40: 0 | BA40: 0 | BB40: 0 | BC40: 0 | BD40: 0 | BE40: 0 | BF40: 0 | BG40: 0 | BH40: =+SUM(AS40:BG40) -> 0
A41: description | E41: Uncorroborated expert judgement | F41: >5 years | L41: 0 | AG41: 0 | AO41: 0 | AP41: 0 | AQ41: 0 | AR41: 0 | AS41: 0 | AT41: 0 | AU41: 0 | AV41: 0 | AW41: 0 | AX41: 0 | AY41: 0 | AZ41: 0 | BA41: 0 | BB41: 0 | BC41: 0 | BD41: 0 | BE41: 0 | BF41: 0 | BG41: 0 | BH41: 0
A42: description | E42: Uncorroborated expert judgement | F42: >5 years | L42: 0 | AG42: 0 | AO42: 0 | AP42: 0 | AQ42: 0 | AR42: 0 | AS42: 0 | AT42: 0 | AU42: 0 | AV42: 0 | AW42: 0 | AX42: 0 | AY42: 0 | AZ42: 0 | BA42: 0 | BB42: 0 | BC42: 0 | BD42: 0 | BE42: 0 | BF42: 0 | BG42: 0 | BH42: 0
H43: =+SUM(H36:H42) -> 0 | I43: 0 | J43: 0 | K43: 0 | L43: 0 | M43: 0 | N43: 0 | O43: 0 | P43: 0 | Q43: 0 | R43: 0 | S43: 0 | T43: 0 | U43: 0 | V43: 0 | W43: 0 | X43: 0 | Y43: =+SUM(Y36:Y42) -> 0 | Z43: 0 | AA43: 0 | AB43: 0 | AC43: 0 | AD43: 0 | AE43: 0 | AF43: 0 | AG43: 0 | AI43: =+NPV(6.075%,M43:AF43)+L43 -> 0 | AO43: =+SUM(AO36:AO42) -> 0 | AP43: 0 | AQ43: 0 | AR43: 0 | AS43: 0 | AT43: 0 | AU43: 0 | AV43: 0 | AW43: 0 | AX43: 0 | AY43: 0 | AZ43: 0 | BA43: 0 | BB43: 0 | BC43: 0 | BD43: 0 | BE43: 0 | BF43: 0 | BG43: 0 | BH43: 0 | BJ43: =+NPV(6.075%,AT43:BG43)+AS43 -> 0
A45: Grants to third parties | B45: only if the scheme is to give grants directly to other organisations, please use this section | L45: =+SUM(H45:K45) -> 0
A46: description | E46: Uncorroborated expert judgement | F46: >5 years | L46: =+SUM(H46:K46) -> 0 | AG46: =+SUM(L46:AF46) -> 0 | AO46: =+$AM46*H46 -> 0 | AP46: 0 | AQ46: 0 | AR46: 0 | AS46: =+SUM(AO46:AR46) -> 0 | AT46: =+$AM46*M46 -> 0 | AU46: 0 | AV46: 0 | AW46: 0 | AX46: 0 | AY46: 0 | AZ46: 0 | BA46: 0 | BB46: 0 | BC46: 0 | BD46: 0 | BE46: 0 | BF46: =+$AM46*AE46 -> 0 | BG46: 0 | BH46: =+SUM(AS46:BG46) -> 0
A47: description | E47: Uncorroborated expert judgement | F47: >5 years | L47: =+SUM(H47:K47) -> 0 | AG47: =+SUM(L47:AF47) -> 0 | AO47: 0 | AP47: 0 | AQ47: 0 | AR47: 0 | AS47: =+SUM(AO47:AR47) -> 0 | AT47: 0 | AU47: 0 | AV47: 0 | AW47: 0 | AX47: 0 | AY47: 0 | AZ47: 0 | BA47: 0 | BB47: 0 | BC47: 0 | BD47: 0 | BE47: 0 | BF47: 0 | BG47: 0 | BH47: =+SUM(AS47:BG47) -> 0
A48: description | E48: Uncorroborated expert judgement | F48: >5 years | L48: =+SUM(H48:K48) -> 0 | AG48: =+SUM(L48:AF48) -> 0 | AO48: 0 | AP48: 0 | AQ48: 0 | AR48: 0 | AS48: =+SUM(AO48:AR48) -> 0 | AT48: 0 | AU48: 0 | AV48: 0 | AW48: 0 | AX48: 0 | AY48: 0 | AZ48: 0 | BA48: 0 | BB48: 0 | BC48: 0 | BD48: 0 | BE48: 0 | BF48: 0 | BG48: 0 | BH48: =+SUM(AS48:BG48) -> 0
H49: =+SUM(H46:H48) -> 0 | I49: 0 | J49: 0 | K49: 0 | L49: 0 | M49: 0 | N49: 0 | O49: 0 | P49: 0 | Q49: 0 | R49: 0 | S49: 0 | T49: 0 | U49: 0 | V49: 0 | W49: 0 | X49: 0 | Y49: =+SUM(Y46:Y48) -> 0 | Z49: 0 | AA49: 0 | AB49: 0 | AC49: 0 | AD49: 0 | AE49: 0 | AF49: 0 | AG49: 0 | AI49: =+NPV(6.075%,M49:AF49)+L49 -> 0 | AO49: =+SUM(AO46:AO48) -> 0 | AP49: 0 | AQ49: 0 | AR49: 0 | AS49: 0 | AT49: 0 | AU49: 0 | AV49: 0 | AW49: 0 | AX49: 0 | AY49: 0 | AZ49: 0 | BA49: 0 | BB49: 0 | BC49: 0 | BD49: 0 | BE49: 0 | BF49: 0 | BG49: 0 | BH49: 0 | BJ49: =+NPV(6.075%,AT49:BG49)+AS49 -> 0
A51: Project Overheads | B51: eg project management costs or grant administration. NB these must be capital in nature | L51: =+SUM(H51:K51) -> 0
A52: description | E52: Uncorroborated expert judgement | F52: >5 years | L52: =+SUM(H52:K52) -> 0 | AG52: =+SUM(L52:AF52) -> 0 | AK52: =+VLOOKUP($E52,$E$2:$I$7,4,0) -> 0.4 | AL52: =+VLOOKUP($F52,$F$2:$I$7,4,0) -> 0.4 | AM52: =IF(AG52<>0,MAX(AK52:AL52),0) -> 0 | AO52: =+$AM52*H52 -> 0 | AP52: 0 | AQ52: 0 | AR52: 0 | AS52: =+SUM(AO52:AR52) -> 0 | AT52: =+$AM52*M52 -> 0 | AU52: 0 | AV52: 0 | AW52: 0 | AX52: 0 | AY52: 0 | AZ52: 0 | BA52: 0 | BB52: 0 | BC52: 0 | BD52: 0 | BE52: 0 | BF52: =+$AM52*AE52 -> 0 | BG52: 0 | BH52: =+SUM(AS52:BG52) -> 0
A53: description | E53: Uncorroborated expert judgement | F53: >5 years | L53: =+SUM(H53:K53) -> 0 | AG53: =+SUM(L53:AF53) -> 0 | AK53: =+VLOOKUP($E53,$E$2:$I$7,4,0) -> 0.4 | AL53: =+VLOOKUP($F53,$F$2:$I$7,4,0) -> 0.4 | AM53: =IF(AG53<>0,MAX(AK53:AL53),0) -> 0 | AO53: 0 | AP53: 0 | AQ53: 0 | AR53: 0 | AS53: =+SUM(AO53:AR53) -> 0 | AT53: 0 | AU53: 0 | AV53: 0 | AW53: 0 | AX53: 0 | AY53: 0 | AZ53: 0 | BA53: 0 | BB53: 0 | BC53: 0 | BD53: 0 | BE53: 0 | BF53: 0 | BG53: 0 | BH53: =+SUM(AS53:BG53) -> 0
A54: description | E54: Uncorroborated expert judgement | F54: >5 years | L54: =+SUM(H54:K54) -> 0 | AG54: =+SUM(L54:AF54) -> 0 | AK54: =+VLOOKUP($E54,$E$2:$I$7,4,0) -> 0.4 | AL54: =+VLOOKUP($F54,$F$2:$I$7,4,0) -> 0.4 | AM54: =IF(AG54<>0,MAX(AK54:AL54),0) -> 0 | AO54: 0 | AP54: 0 | AQ54: 0 | AR54: 0 | AS54: =+SUM(AO54:AR54) -> 0 | AT54: 0 | AU54: 0 | AV54: 0 | AW54: 0 | AX54: 0 | AY54: 0 | AZ54: 0 | BA54: 0 | BB54: 0 | BC54: 0 | BD54: 0 | BE54: 0 | BF54: 0 | BG54: 0 | BH54: =+SUM(AS54:BG54) -> 0
H55: =+SUM(H52:H54) -> 0 | I55: 0 | J55: 0 | K55: 0 | L55: 0 | M55: 0 | N55: 0 | O55: 0 | P55: 0 | Q55: 0 | R55: 0 | S55: 0 | T55: 0 | U55: 0 | V55: 0 | W55: 0 | X55: 0 | Y55: =+SUM(Y52:Y54) -> 0 | Z55: 0 | AA55: 0 | AB55: 0 | AC55: 0 | AD55: 0 | AE55: 0 | AF55: 0 | AG55: 0 | AI55: =+NPV(6.075%,M55:AF55)+L55 -> 0 | AO55: =+SUM(AO52:AO54) -> 0 | AP55: 0 | AQ55: 0 | AR55: 0 | AS55: 0 | AT55: 0 | AU55: 0 | AV55: 0 | AW55: 0 | AX55: 0 | AY55: 0 | AZ55: 0 | BA55: 0 | BB55: 0 | BC55: 0 | BD55: 0 | BE55: 0 | BF55: 0 | BG55: 0 | BH55: 0 | BJ55: =+NPV(6.075%,AT55:BG55)+AS55 -> 0
A57: Contingency | B57: if there is a separate contingency please include it here rather than as part of the above costings | L57: =+SUM(H57:K57) -> 0
E58: Uncorroborated expert judgement | F58: >5 years | L58: =+SUM(H58:K58) -> 0 | AG58: =+SUM(L58:AF58) -> 0 | AK58: =+VLOOKUP($E58,$E$2:$I$7,4,0) -> 0.4 | AL58: =+VLOOKUP($F58,$F$2:$I$7,4,0) -> 0.4 | AM58: =IF(AG58<>0,MAX(AK58:AL58),0) -> 0 | AO58: =+$AM58*H58 -> 0 | AP58: 0 | AQ58: 0 | AR58: 0 | AS58: =+SUM(AO58:AR58) -> 0 | AT58: =+$AM58*M58 -> 0 | AU58: 0 | AV58: 0 | AW58: 0 | AX58: 0 | AY58: 0 | AZ58: 0 | BA58: 0 | BB58: 0 | BC58: 0 | BD58: 0 | BE58: 0 | BF58: =+$AM58*AE58 -> 0 | BG58: 0 | BH58: =+SUM(AS58:BG58) -> 0
E59: Uncorroborated expert judgement | F59: >5 years | L59: =+SUM(H59:K59) -> 0 | AG59: =+SUM(L59:AF59) -> 0 | AK59: =+VLOOKUP($E59,$E$2:$I$7,4,0) -> 0.4 | AL59: =+VLOOKUP($F59,$F$2:$I$7,4,0) -> 0.4 | AM59: =IF(AG59<>0,MAX(AK59:AL59),0) -> 0 | AO59: 0 | AP59: 0 | AQ59: 0 | AR59: 0 | AS59: =+SUM(AO59:AR59) -> 0 | AT59: 0 | AU59: 0 | AV59: 0 | AW59: 0 | AX59: 0 | AY59: 0 | AZ59: 0 | BA59: 0 | BB59: 0 | BC59: 0 | BD59: 0 | BE59: 0 | BF59: 0 | BG59: 0 | BH59: =+SUM(AS59:BG59) -> 0
E60: Uncorroborated expert judgement | F60: >5 years | L60: =+SUM(H60:K60) -> 0 | AG60: =+SUM(L60:AF60) -> 0 | AK60: =+VLOOKUP($E60,$E$2:$I$7,4,0) -> 0.4 | AL60: =+VLOOKUP($F60,$F$2:$I$7,4,0) -> 0.4 | AM60: =IF(AG60<>0,MAX(AK60:AL60),0) -> 0 | AO60: 0 | AP60: 0 | AQ60: 0 | AR60: 0 | AS60: =+SUM(AO60:AR60) -> 0 | AT60: 0 | AU60: 0 | AV60: 0 | AW60: 0 | AX60: 0 | AY60: 0 | AZ60: 0 | BA60: 0 | BB60: 0 | BC60: 0 | BD60: 0 | BE60: 0 | BF60: 0 | BG60: 0 | BH60: =+SUM(AS60:BG60) -> 0
H61: =+SUM(H58:H60) -> 0 | I61: 0 | J61: 0 | K61: 0 | L61: 0 | M61: 0 | N61: 0 | O61: 0 | P61: 0 | Q61: 0 | R61: 0 | S61: 0 | T61: 0 | U61: 0 | V61: 0 | W61: 0 | X61: 0 | Y61: =+SUM(Y58:Y60) -> 0 | Z61: 0 | AA61: 0 | AB61: 0 | AC61: 0 | AD61: 0 | AE61: 0 | AF61: 0 | AG61: 0 | AI61: =+NPV(6.075%,M61:AF61)+L61 -> 0 | AO61: =+SUM(AO58:AO60) -> 0 | AP61: 0 | AQ61: 0 | AR61: 0 | AS61: 0 | AT61: 0 | AU61: 0 | AV61: 0 | AW61: 0 | AX61: 0 | AY61: 0 | AZ61: 0 | BA61: 0 | BB61: 0 | BC61: 0 | BD61: 0 | BE61: 0 | BF61: 0 | BG61: 0 | BH61: 0 | BJ61: =+NPV(6.075%,AT61:BG61)+AS61 -> 0
A63: Summary
A64: =+A12 -> Direct project costs | H64: =+H27 -> 0 | I64: 0 | J64: 0 | K64: 0 | L64: 0 | M64: 0 | N64: 0 | O64: 0 | P64: 0 | Q64: 0 | R64: 0 | S64: 0 | T64: 0 | U64: 0 | V64: 0 | W64: 0 | X64: 0 | Y64: =+Y27 -> 0 | Z64: 0 | AA64: 0 | AB64: 0 | AC64: 0 | AD64: 0 | AE64: 0 | AF64: 0 | AG64: 0 | AI64: =+NPV(6.075%,M64:AF64)+L64 -> 0 | AO64: =+AO27 -> 0 | AP64: 0 | AQ64: 0 | AR64: 0 | AS64: 0 | AT64: 0 | AU64: 0 | AV64: 0 | AW64: 0 | AX64: 0 | AY64: 0 | AZ64: 0 | BA64: 0 | BB64: 0 | BC64: 0 | BD64: 0 | BE64: 0 | BF64: 0 | BG64: 0 | BH64: 0 | BJ64: =+NPV(6.075%,AT64:BG64)+AS64 -> 0
A65: =+A29 -> Ongoing maintenance costs | H65: =+H33 -> 0 | I65: 0 | J65: 0 | K65: 0 | L65: 0 | M65: 0 | N65: 0 | O65: 0 | P65: 0 | Q65: 0 | R65: 0 | S65: 0 | T65: 0 | U65: 0 | V65: 0 | W65: 0 | X65: 0 | Y65: =+Y33 -> 0 | Z65: 0 | AA65: 0 | AB65: 0 | AC65: 0 | AD65: 0 | AE65: 0 | AF65: 0 | AG65: 0 | AI65: 0 | AO65: =+AO28 -> 0 | AP65: 0 | AQ65: 0 | AR65: 0 | AS65: 0 | AT65: 0 | AU65: 0 | AV65: 0 | AW65: 0 | AX65: 0 | AY65: 0 | AZ65: 0 | BA65: 0 | BB65: 0 | BC65: 0 | BD65: 0 | BE65: 0 | BF65: 0 | BG65: 0 | BH65: 0 | BJ65: =+NPV(6.075%,AT65:BG65)+AS65 -> 0
A66: =+A35 -> Other ongoing costs or (savings) | H66: =+H43 -> 0 | I66: 0 | J66: 0 | K66: 0 | L66: 0 | M66: 0 | N66: 0 | O66: 0 | P66: 0 | Q66: 0 | R66: 0 | S66: 0 | T66: 0 | U66: 0 | V66: 0 | W66: 0 | X66: 0 | Y66: =+Y43 -> 0 | Z66: 0 | AA66: 0 | AB66: 0 | AC66: 0 | AD66: 0 | AE66: 0 | AF66: 0 | AG66: 0 | AI66: 0 | AO66: =+AO29 -> 0 | AP66: 0 | AQ66: 0 | AR66: 0 | AS66: 0 | AT66: 0 | AU66: 0 | AV66: 0 | AW66: 0 | AX66: 0 | AY66: 0 | AZ66: 0 | BA66: 0 | BB66: 0 | BC66: 0 | BD66: 0 | BE66: 0 | BF66: 0 | BG66: 0 | BH66: 0 | BJ66: =+NPV(6.075%,AT66:BG66)+AS66 -> 0
A67: =+A45 -> Grants to third parties | H67: =+H49 -> 0 | I67: 0 | J67: 0 | K67: 0 | L67: 0 | M67: 0 | N67: 0 | O67: 0 | P67: 0 | Q67: 0 | R67: 0 | S67: 0 | T67: 0 | U67: 0 | V67: 0 | W67: 0 | X67: 0 | Y67: =+Y49 -> 0 | Z67: 0 | AA67: 0 | AB67: 0 | AC67: 0 | AD67: 0 | AE67: 0 | AF67: 0 | AG67: 0 | AI67: 0 | AO67: =+AO49 -> 0 | AP67: 0 | AQ67: 0 | AR67: 0 | AS67: 0 | AT67: 0 | AU67: 0 | AV67: 0 | AW67: 0 | AX67: 0 | AY67: 0 | AZ67: 0 | BA67: 0 | BB67: 0 | BC67: 0 | BD67: 0 | BE67: 0 | BF67: 0 | BG67: 0 | BH67: 0 | BJ67: 0
A68: =+A51 -> Project Overheads | H68: =+H55 -> 0 | I68: =+I55 -> 0 | J68: 0 | K68: 0 | L68: 0 | M68: 0 | N68: 0 | O68: 0 | P68: 0 | Q68: 0 | R68: 0 | S68: 0 | T68: 0 | U68: 0 | V68: 0 | W68: 0 | X68: 0 | Y68: =+Y55 -> 0 | Z68: 0 | AA68: 0 | AB68: 0 | AC68: 0 | AD68: 0 | AE68: 0 | AF68: 0 | AG68: 0 | AI68: 0 | AO68: =+AO55 -> 0 | AP68: 0 | AQ68: 0 | AR68: 0 | AS68: 0 | AT68: 0 | AU68: 0 | AV68: 0 | AW68: 0 | AX68: 0 | AY68: 0 | AZ68: 0 | BA68: 0 | BB68: 0 | BC68: 0 | BD68: 0 | BE68: 0 | BF68: 0 | BG68: 0 | BH68: 0 | BJ68: 0
A69: =+A57 -> Contingency | H69: =+H61 -> 0 | I69: =+I61 -> 0 | J69: 0 | K69: 0 | L69: 0 | M69: 0 | N69: 0 | O69: 0 | P69: 0 | Q69: 0 | R69: 0 | S69: 0 | T69: 0 | U69: 0 | V69: 0 | W69: 0 | X69: 0 | Y69: =+Y61 -> 0 | Z69: 0 | AA69: 0 | AB69: 0 | AC69: 0 | AD69: 0 | AE69: 0 | AF69: 0 | AG69: 0 | AI69: 0 | AO69: =+AO61 -> 0 | AP69: 0 | AQ69: 0 | AR69: 0 | AS69: 0 | AT69: 0 | AU69: 0 | AV69: 0 | AW69: 0 | AX69: 0 | AY69: 0 | AZ69: 0 | BA69: 0 | BB69: 0 | BC69: 0 | BD69: 0 | BE69: 0 | BF69: 0 | BG69: 0 | BH69: 0 | BJ69: 0
H70: =+SUM(H64:H69) -> 0 | I70: =+SUM(I64:I69) -> 0 | J70: 0 | K70: 0 | L70: 0 | M70: 0 | N70: 0 | O70: 0 | P70: 0 | Q70: 0 | R70: 0 | S70: 0 | T70: 0 | U70: 0 | V70: 0 | W70: 0 | X70: 0 | Y70: =+SUM(Y64:Y69) -> 0 | Z70: 0 | AA70: 0 | AB70: 0 | AC70: 0 | AD70: 0 | AE70: 0 | AF70: 0 | AG70: 0 | AI70: =+NPV(6.075%,M70:AF70)+L70 -> 0 | AO70: =+SUM(AO64:AO69) -> 0 | AP70: 0 | AQ70: 0 | AR70: 0 | AS70: 0 | AT70: 0 | AU70: 0 | AV70: 0 | AW70: 0 | AX70: 0 | AY70: 0 | AZ70: 0 | BA70: 0 | BB70: 0 | BC70: 0 | BD70: 0 | BE70: 0 | BF70: 0 | BG70: 0 | BH70: 0 | BJ70: =+NPV(6.075%,AT70:BG70)+AS70 -> 0
A72: Capital | H72: =+H70-H73 -> 0 | I72: =+I70-I73 -> 0 | J72: 0 | K72: 0 | L72: 0 | M72: 0 | N72: 0 | O72: 0 | P72: 0 | Q72: 0 | R72: 0 | S72: 0 | T72: 0 | U72: 0 | V72: 0 | W72: 0 | X72: 0 | Y72: =+Y70-Y73 -> 0 | Z72: 0 | AA72: 0 | AB72: 0 | AC72: 0 | AD72: 0 | AE72: 0 | AF72: 0 | AG72: 0 | AI72: =+NPV(6.075%,M72:AF72)+L72 -> 0
A73: Revenue | H73: =+H65+H66 -> 0 | I73: =+I65+I66 -> 0 | J73: 0 | K73: 0 | L73: 0 | M73: 0 | N73: 0 | O73: 0 | P73: 0 | Q73: 0 | R73: 0 | S73: 0 | T73: 0 | U73: 0 | V73: 0 | W73: 0 | X73: 0 | Y73: =+Y65+Y66 -> 0 | Z73: 0 | AA73: 0 | AB73: 0 | AC73: 0 | AD73: 0 | AE73: 0 | AF73: 0 | AG73: =+AG65+AG66 -> 0 | AI73: =+NPV(6.075%,M73:AF73)+L73 -> 0
H74: =+SUM(H72:H73) -> 0 | I74: =+SUM(I72:I73) -> 0 | J74: 0 | K74: 0 | L74: 0 | M74: 0 | N74: 0 | O74: 0 | P74: 0 | Q74: 0 | R74: 0 | S74: 0 | T74: 0 | U74: 0 | V74: 0 | W74: 0 | X74: 0 | Y74: =+SUM(Y72:Y73) -> 0 | Z74: 0 | AA74: 0 | AB74: 0 | AC74: 0 | AD74: 0 | AE74: 0 | AF74: 0 | AG74: 0 | AI74: =+SUM(AI72:AI73) -> 0
D76: Approved
D77: Approved subject to conditions
D78: Approved in principle
D79: Request/bid submitted
D80: Speculative
A81: Name of Funder | B81: Notes | D81: Status | E81: Link to supporting notes | H81: =+L82 -> 2020 / 2021 | L81: =+L8 -> Profile (£) | AG81: =+AG8 -> Total (£) | AI81: =+AI8 -> NPV (£)
H82: Qtr 1 | I82: Qtr 2 | J82: Qtr 3 | K82: Qtr 4 | L82: =+L9 -> 2020 / 2021 | M82: =+M9 -> 2021 / 2022 | N82: 2022 / 2023 | O82: 2023 / 2024 | P82: 2024 / 2025 | Q82: 2025 / 2026 | R82: 2026 / 2027 | S82: 2027 / 2028 | T82: 2028 / 2029 | U82: 2029 / 2030 | V82: 2030 / 2031 | W82: 2031 / 2032 | X82: 2032 / 2033 | Y82: =+Y9 -> 2033 / 2034 | Z82: 2034 / 2035 | AA82: 2035 / 2036 | AB82: 2036 / 2037 | AC82: 2037 / 2038 | AD82: 2038 / 2039 | AE82: 2039 / 2040 | AF82: 2040 / 2041
D83: what is the status of this funding? Choose from the list | H83: =+H10 -> £ | I83: =+H83 -> £ | J83: =+I83 -> £ | K83: £ | L83: £ | M83: £ | N83: £ | O83: £ | P83: £ | Q83: £ | R83: £ | S83: £ | T83: £ | U83: £ | V83: £ | W83: £ | X83: £ | Y83: =+X83 -> £ | Z83: =+Y83 -> £ | AA83: =+Z83 -> £ | AB83: =+AA83 -> £ | AC83: =+AB83 -> £ | AD83: =+AC83 -> £ | AE83: =+AD83 -> £ | AF83: £
A85: East Riding of Yorkshire Council | B85: can only fund capital
A86: Enterprise Zone Retained Business Rates Grant Fund | D86: Request/bid submitted | L86: =+SUM(H86:K86) -> 0 | O86: 0 | P86: 0 | Q86: 0 | R86: 0 | S86: 0 | T86: 0 | U86: 0 | V86: 0 | W86: 0 | X86: 0 | Y86: 0 | Z86: 0 | AA86: 0 | AB86: 0 | AC86: 0 | AD86: 0 | AE86: 0 | AF86: 0 | AG86: =+SUM(L86:AF86) -> 0
H87: =+SUM(H86:H86) -> 0 | I87: 0 | J87: 0 | K87: 0 | L87: 0 | M87: 0 | N87: 0 | O87: 0 | P87: 0 | Q87: 0 | R87: 0 | S87: 0 | T87: 0 | U87: 0 | V87: 0 | W87: 0 | X87: 0 | Y87: =+SUM(Y86:Y86) -> 0 | Z87: 0 | AA87: 0 | AB87: 0 | AC87: 0 | AD87: 0 | AE87: 0 | AF87: 0 | AG87: 0 | AI87: =+NPV(6.075%,M87:AF87)+L87 -> 0
A89: Local Authority | B89: name each LA separately if there is more than one. We will need to see evidence of this in due course (eg Cabinet minute). Please include a reference or hyperlink where appropriate | L89: =+SUM(H89:K89) -> 0
A90: East Riding of Yorkshire Council | D90: Speculative | L90: =+SUM(H90:K90) -> 0 | AG90: =+SUM(L90:AF90) -> 0
A91: name | D91: Speculative | L91: =+SUM(H91:K91) -> 0 | AG91: =+SUM(L91:AF91) -> 0
A92: name | D92: Speculative | L92: =+SUM(H92:K92) -> 0 | AG92: =+SUM(L92:AF92) -> 0
A93: name | D93: Speculative | L93: =+SUM(H93:K93) -> 0 | AG93: =+SUM(L93:AF93) -> 0
H94: =+SUM(H90:H93) -> 0 | I94: 0 | J94: 0 | K94: 0 | L94: 0 | M94: 0 | N94: 0 | O94: 0 | P94: 0 | Q94: 0 | R94: 0 | S94: 0 | T94: 0 | U94: 0 | V94: 0 | W94: 0 | X94: 0 | Y94: =+SUM(Y90:Y93) -> 0 | Z94: 0 | AA94: 0 | AB94: 0 | AC94: 0 | AD94: 0 | AE94: 0 | AF94: 0 | AG94: 0 | AI94: =+NPV(6.075%,M94:AF94)+L94 -> 0
A96: Other Government Agencies | B96: e.g. Highways England, Environment Agency, Homes England etc. Again we will need to see evidence of commitments. | L96: =+SUM(H96:K96) -> 0
A97: name | D97: Speculative | L97: =+SUM(H97:K97) -> 0 | AG97: =+SUM(L97:AF97) -> 0
A98: name | D98: Speculative | L98: =+SUM(H98:K98) -> 0 | AG98: =+SUM(L98:AF98) -> 0
A99: name | D99: Speculative | L99: =+SUM(H99:K99) -> 0 | AG99: =+SUM(L99:AF99) -> 0
H100: =+SUM(H97:H99) -> 0 | I100: 0 | J100: 0 | K100: 0 | L100: 0 | M100: 0 | N100: 0 | O100: 0 | P100: 0 | Q100: 0 | R100: 0 | S100: 0 | T100: 0 | U100: 0 | V100: 0 | W100: 0 | X100: 0 | Y100: =+SUM(Y97:Y99) -> 0 | Z100: 0 | AA100: 0 | AB100: 0 | AC100: 0 | AD100: 0 | AE100: 0 | AF100: 0 | AG100: 0 | AI100: =+NPV(6.075%,M100:AF100)+L100 -> 0
A102: Other public sector | B102: list as appropriate. Evidence of commitment will also need to be provided for these in due course. | L102: =+SUM(H102:K102) -> 0
A103: name | D103: Speculative | L103: =+SUM(H103:K103) -> 0 | AG103: =+SUM(L103:AF103) -> 0
A104: name | D104: Speculative | L104: =+SUM(H104:K104) -> 0 | AG104: =+SUM(L104:AF104) -> 0
A105: uuu | D105: Speculative | L105: =+SUM(H105:K105) -> 0 | AG105: =+SUM(L105:AF105) -> 0
H106: =+SUM(H103:H105) -> 0 | I106: 0 | J106: 0 | K106: 0 | L106: 0 | M106: 0 | N106: 0 | O106: 0 | P106: 0 | Q106: 0 | R106: 0 | S106: 0 | T106: 0 | U106: 0 | V106: 0 | W106: 0 | X106: 0 | Y106: =+SUM(Y103:Y105) -> 0 | Z106: 0 | AA106: 0 | AB106: 0 | AC106: 0 | AD106: 0 | AE106: 0 | AF106: 0 | AG106: 0 | AI106: =+NPV(6.075%,M106:AF106)+L106 -> 0
A108: Third sector | B108: list as appropriate. Evidence of commitment will also need to be provided for these in due course. | L108: =+SUM(H108:K108) -> 0
A109: name | D109: Speculative | L109: =+SUM(H109:K109) -> 0 | AG109: =+SUM(L109:AF109) -> 0
A110: name | D110: Speculative | L110: =+SUM(H110:K110) -> 0 | AG110: =+SUM(L110:AF110) -> 0
A111: name | D111: Speculative | L111: =+SUM(H111:K111) -> 0 | AG111: =+SUM(L111:AF111) -> 0
H112: =+SUM(H109:H111) -> 0 | I112: 0 | J112: 0 | K112: 0 | L112: 0 | M112: 0 | N112: 0 | O112: 0 | P112: 0 | Q112: 0 | R112: 0 | S112: 0 | T112: 0 | U112: 0 | V112: 0 | W112: 0 | X112: 0 | Y112: =+SUM(Y109:Y111) -> 0 | Z112: 0 | AA112: 0 | AB112: 0 | AC112: 0 | AD112: 0 | AE112: 0 | AF112: 0 | AG112: 0 | AI112: =+NPV(6.075%,M112:AF112)+L112 -> 0
A114: European Funding | B114: list as appropriate. Evidence of commitment will also need to be provided for these in due course. | L114: =+SUM(H114:K114) -> 0
A115: name | D115: Speculative | L115: =+SUM(H115:K115) -> 0 | AG115: =+SUM(L115:AF115) -> 0
A116: name | D116: Speculative | L116: =+SUM(H116:K116) -> 0 | AG116: =+SUM(L116:AF116) -> 0
A117: name | D117: Speculative | L117: =+SUM(H117:K117) -> 0 | AG117: =+SUM(L117:AF117) -> 0
H118: =+SUM(H115:H117) -> 0 | I118: 0 | J118: 0 | K118: 0 | L118: 0 | M118: 0 | N118: 0 | O118: 0 | P118: 0 | Q118: 0 | R118: 0 | S118: 0 | T118: 0 | U118: 0 | V118: 0 | W118: 0 | X118: 0 | Y118: =+SUM(Y115:Y117) -> 0 | Z118: 0 | AA118: 0 | AB118: 0 | AC118: 0 | AD118: 0 | AE118: 0 | AF118: 0 | AG118: 0 | AI118: =+NPV(6.075%,M118:AF118)+L118 -> 0
A120: Private sector | B120: list as appropriate. Evidence of commitment will also need to be provided for these in due course where this is appropriate. Where sales receipts are expected we will need to understand the basis of calculation and the liklihood of achieving your forecasts.
A121: Private Sector Partners (see narrative for explanation) | D121: Approved in principle | L121: =+SUM(H121:K121) -> 0 | AG121: =+SUM(L121:AF121) -> 0
A122: name | D122: Speculative | L122: 0 | AG122: 0
A123: name | D123: Speculative | L123: 0 | AG123: 0
A124: name | D124: Speculative | L124: 0 | AG124: 0
A125: name | D125: Speculative | L125: 0 | AG125: 0
D126: Speculative | L126: 0 | AG126: 0
H127: =+SUM(H121:H126) -> 0 | I127: 0 | J127: 0 | K127: 0 | L127: 0 | M127: 0 | N127: 0 | O127: 0 | P127: 0 | Q127: 0 | R127: 0 | S127: 0 | T127: 0 | U127: 0 | V127: 0 | W127: 0 | X127: 0 | Y127: =+SUM(Y121:Y126) -> 0 | Z127: 0 | AA127: 0 | AB127: 0 | AC127: 0 | AD127: 0 | AE127: 0 | AF127: 0 | AG127: 0 | AI127: =+NPV(6.075%,M127:AF127)+L127 -> 0
A130: Summary
A131: =+A86 -> Enterprise Zone Retained Business Rates Grant Fund | H131: =+H87 -> 0 | I131: =+I87 -> 0 | J131: 0 | K131: 0 | L131: 0 | M131: 0 | N131: 0 | O131: 0 | P131: 0 | Q131: 0 | R131: 0 | S131: 0 | T131: 0 | U131: 0 | V131: 0 | W131: 0 | X131: 0 | Y131: =+Y87 -> 0 | Z131: 0 | AA131: 0 | AB131: 0 | AC131: 0 | AD131: 0 | AE131: 0 | AF131: 0 | AG131: =+SUM(L131:AF131) -> 0 | AI131: =+NPV(6.075%,M131:AF131)+L131 -> 0
A132: =+A89 -> Local Authority | H132: =+H94 -> 0 | I132: =+I94 -> 0 | J132: 0 | K132: 0 | L132: 0 | M132: 0 | N132: 0 | O132: 0 | P132: 0 | Q132: 0 | R132: 0 | S132: 0 | T132: 0 | U132: 0 | V132: 0 | W132: 0 | X132: 0 | Y132: =+Y94 -> 0 | Z132: 0 | AA132: 0 | AB132: 0 | AC132: 0 | AD132: 0 | AE132: 0 | AF132: 0 | AG132: 0 | AI132: 0
A133: =+A96 -> Other Government Agencies | H133: =+H100 -> 0 | I133: =+I100 -> 0 | J133: 0 | K133: 0 | L133: 0 | M133: 0 | N133: 0 | O133: 0 | P133: 0 | Q133: 0 | R133: 0 | S133: 0 | T133: 0 | U133: 0 | V133: 0 | W133: 0 | X133: 0 | Y133: =+Y100 -> 0 | Z133: 0 | AA133: 0 | AB133: 0 | AC133: 0 | AD133: 0 | AE133: 0 | AF133: 0 | AG133: 0 | AI133: 0
A134: =+A102 -> Other public sector | H134: =+H106 -> 0 | I134: =+I106 -> 0 | J134: 0 | K134: 0 | L134: 0 | M134: 0 | N134: 0 | O134: 0 | P134: 0 | Q134: 0 | R134: 0 | S134: 0 | T134: 0 | U134: 0 | V134: 0 | W134: 0 | X134: 0 | Y134: =+Y106 -> 0 | Z134: 0 | AA134: 0 | AB134: 0 | AC134: 0 | AD134: 0 | AE134: 0 | AF134: 0 | AG134: 0 | AI134: 0
A135: =+A108 -> Third sector | H135: =+H112 -> 0 | I135: =+I112 -> 0 | J135: 0 | K135: 0 | L135: 0 | M135: 0 | N135: 0 | O135: 0 | P135: 0 | Q135: 0 | R135: 0 | S135: 0 | T135: 0 | U135: 0 | V135: 0 | W135: 0 | X135: 0 | Y135: =+Y112 -> 0 | Z135: 0 | AA135: 0 | AB135: 0 | AC135: 0 | AD135: 0 | AE135: 0 | AF135: 0 | AG135: 0 | AI135: 0
A136: =+A114 -> European Funding | H136: =+H118 -> 0 | I136: =+I118 -> 0 | J136: 0 | K136: 0 | L136: 0 | M136: 0 | N136: 0 | O136: 0 | P136: 0 | Q136: 0 | R136: 0 | S136: 0 | T136: 0 | U136: 0 | V136: 0 | W136: 0 | X136: 0 | Y136: =+Y118 -> 0 | Z136: 0 | AA136: 0 | AB136: 0 | AC136: 0 | AD136: 0 | AE136: 0 | AF136: 0 | AG136: 0 | AI136: 0
A137: =+A120 -> Private sector | H137: =+H127 -> 0 | I137: =+I127 -> 0 | J137: 0 | K137: 0 | L137: 0 | M137: 0 | N137: 0 | O137: 0 | P137: 0 | Q137: 0 | R137: 0 | S137: 0 | T137: 0 | U137: 0 | V137: 0 | W137: 0 | X137: 0 | Y137: =+Y127 -> 0 | Z137: 0 | AA137: 0 | AB137: 0 | AC137: 0 | AD137: 0 | AE137: 0 | AF137: 0 | AG137: =+SUM(L137:AF137) -> 0 | AI137: 0
H138: =+SUM(H131:H137) -> 0 | I138: =+SUM(I131:I137) -> 0 | J138: 0 | K138: 0 | L138: 0 | M138: 0 | N138: 0 | O138: 0 | P138: 0 | Q138: 0 | R138: 0 | S138: 0 | T138: 0 | U138: 0 | V138: 0 | W138: 0 | X138: 0 | Y138: =+SUM(Y131:Y137) -> 0 | Z138: 0 | AA138: 0 | AB138: 0 | AC138: 0 | AD138: 0 | AE138: 0 | AF138: 0 | AG138: =+SUM(AG131:AG137) -> 0 | AI138: =+NPV(6.075%,M138:AF138)+L138 -> 0
A142: Difference | H142: =+H70-H138 -> 0 | I142: 0 | J142: 0 | K142: 0 | L142: 0 | M142: 0 | N142: 0 | O142: 0 | P142: 0 | Q142: 0 | R142: 0 | S142: 0 | T142: 0 | U142: 0 | V142: 0 | W142: 0 | X142: 0 | Y142: =+Y70-Y138 -> 0 | Z142: 0 | AA142: 0 | AB142: 0 | AC142: 0 | AD142: 0 | AE142: 0 | AF142: 0 | AG142: 0 | AI142: =+AI70-AI138 -> 0
A144: if there is a difference here then the project can not progress - all funding needs to be shown, even if highly speculative
A150: Analyses
D152: Local Authority
D153: Approved | H153: =+SUMIF($D$89:$AG$93,$D153,H$89:H$93) -> 0 | I153: 0 | J153: 0 | K153: 0 | L153: 0 | M153: 0 | N153: 0 | O153: 0 | P153: 0 | Q153: 0 | R153: =+SUMIF($D$89:$AG$93,$D153,R$89:R$93) -> 0 | S153: 0 | T153: 0 | U153: 0 | V153: 0 | W153: 0 | X153: 0 | Y153: 0 | Z153: 0 | AA153: 0 | AB153: 0 | AC153: 0 | AD153: 0 | AE153: 0 | AF153: 0 | AG153: 0
D154: Approved subject to conditions | H154: 0 | I154: 0 | J154: 0 | K154: 0 | L154: 0 | M154: 0 | N154: 0 | O154: 0 | P154: 0 | Q154: 0 | R154: 0 | S154: 0 | T154: 0 | U154: 0 | V154: 0 | W154: 0 | X154: 0 | Y154: 0 | Z154: 0 | AA154: 0 | AB154: 0 | AC154: 0 | AD154: 0 | AE154: 0 | AF154: 0 | AG154: 0
D155: Approved in principle | H155: 0 | I155: 0 | J155: 0 | K155: 0 | L155: 0 | M155: 0 | N155: 0 | O155: 0 | P155: 0 | Q155: 0 | R155: 0 | S155: 0 | T155: 0 | U155: 0 | V155: 0 | W155: 0 | X155: 0 | Y155: 0 | Z155: 0 | AA155: 0 | AB155: 0 | AC155: 0 | AD155: 0 | AE155: 0 | AF155: 0 | AG155: 0
D156: Request/bid submitted | H156: 0 | I156: 0 | J156: 0 | K156: 0 | L156: 0 | M156: 0 | N156: 0 | O156: 0 | P156: 0 | Q156: 0 | R156: 0 | S156: 0 | T156: 0 | U156: 0 | V156: 0 | W156: 0 | X156: 0 | Y156: 0 | Z156: 0 | AA156: 0 | AB156: 0 | AC156: 0 | AD156: 0 | AE156: 0 | AF156: 0 | AG156: 0
D157: Speculative | H157: 0 | I157: 0 | J157: 0 | K157: 0 | L157: 0 | M157: 0 | N157: 0 | O157: 0 | P157: 0 | Q157: 0 | R157: 0 | S157: 0 | T157: 0 | U157: 0 | V157: 0 | W157: 0 | X157: 0 | Y157: 0 | Z157: 0 | AA157: 0 | AB157: 0 | AC157: 0 | AD157: 0 | AE157: 0 | AF157: 0 | AG157: 0
H158: =+SUM(H152:H157) -> 0 | I158: =+SUM(I152:I157) -> 0 | J158: 0 | K158: 0 | L158: 0 | M158: 0 | N158: 0 | O158: 0 | P158: 0 | Q158: 0 | R158: 0 | S158: 0 | T158: 0 | U158: 0 | V158: 0 | W158: 0 | X158: 0 | Y158: =+SUM(Y152:Y157) -> 0 | Z158: 0 | AA158: 0 | AB158: 0 | AC158: 0 | AD158: 0 | AE158: 0 | AF158: 0 | AG158: 0
D159: Other Government Agencies
D160: Approved | H160: =+SUMIF($D$97:$AG$99,$D160,H$97:H$99) -> 0 | I160: 0 | J160: 0 | K160: 0 | L160: 0 | M160: 0 | N160: 0 | O160: 0 | P160: 0 | Q160: 0 | R160: =+SUMIF($D$97:$AG$99,$D160,R$97:R$99) -> 0 | S160: 0 | T160: 0 | U160: 0 | V160: 0 | W160: 0 | X160: 0 | Y160: 0 | Z160: 0 | AA160: 0 | AB160: 0 | AC160: 0 | AD160: 0 | AE160: 0 | AF160: 0 | AG160: 0
D161: Approved subject to conditions | H161: 0 | I161: 0 | J161: 0 | K161: 0 | L161: 0 | M161: 0 | N161: 0 | O161: 0 | P161: 0 | Q161: 0 | R161: 0 | S161: 0 | T161: 0 | U161: 0 | V161: 0 | W161: 0 | X161: 0 | Y161: 0 | Z161: 0 | AA161: 0 | AB161: 0 | AC161: 0 | AD161: 0 | AE161: 0 | AF161: 0 | AG161: 0
D162: Approved in principle | H162: 0 | I162: 0 | J162: 0 | K162: 0 | L162: 0 | M162: 0 | N162: 0 | O162: 0 | P162: 0 | Q162: 0 | R162: 0 | S162: 0 | T162: 0 | U162: 0 | V162: 0 | W162: 0 | X162: 0 | Y162: 0 | Z162: 0 | AA162: 0 | AB162: 0 | AC162: 0 | AD162: 0 | AE162: 0 | AF162: 0 | AG162: 0
D163: Request/bid submitted | H163: 0 | I163: 0 | J163: 0 | K163: 0 | L163: 0 | M163: 0 | N163: 0 | O163: 0 | P163: 0 | Q163: 0 | R163: 0 | S163: 0 | T163: 0 | U163: 0 | V163: 0 | W163: 0 | X163: 0 | Y163: 0 | Z163: 0 | AA163: 0 | AB163: 0 | AC163: 0 | AD163: 0 | AE163: 0 | AF163: 0 | AG163: 0
D164: Speculative | H164: 0 | I164: 0 | J164: 0 | K164: 0 | L164: 0 | M164: 0 | N164: 0 | O164: 0 | P164: 0 | Q164: 0 | R164: 0 | S164: 0 | T164: 0 | U164: 0 | V164: 0 | W164: 0 | X164: 0 | Y164: 0 | Z164: 0 | AA164: 0 | AB164: 0 | AC164: 0 | AD164: 0 | AE164: 0 | AF164: 0 | AG164: 0
H165: =+SUM(H159:H164) -> 0 | I165: 0 | J165: 0 | K165: 0 | L165: 0 | M165: 0 | N165: 0 | O165: 0 | P165: 0 | Q165: 0 | R165: 0 | S165: 0 | T165: 0 | U165: 0 | V165: 0 | W165: 0 | X165: 0 | Y165: =+SUM(Y159:Y164) -> 0 | Z165: 0 | AA165: 0 | AB165: 0 | AC165: 0 | AD165: 0 | AE165: 0 | AF165: 0 | AG165: 0
D166: Other public sector
D167: Approved | H167: =+SUMIF($D$103:$AG$105,$D167,H$103:H$105) -> 0 | I167: 0 | J167: 0 | K167: 0 | L167: 0 | M167: 0 | N167: 0 | O167: 0 | P167: 0 | Q167: 0 | R167: =+SUMIF($D$103:$AG$105,$D167,R$103:R$105) -> 0 | S167: 0 | T167: 0 | U167: 0 | V167: 0 | W167: 0 | X167: 0 | Y167: 0 | Z167: 0 | AA167: 0 | AB167: 0 | AC167: 0 | AD167: 0 | AE167: 0 | AF167: 0 | AG167: 0
D168: Approved subject to conditions | H168: 0 | I168: 0 | J168: 0 | K168: 0 | L168: 0 | M168: 0 | N168: 0 | O168: 0 | P168: 0 | Q168: 0 | R168: 0 | S168: 0 | T168: 0 | U168: 0 | V168: 0 | W168: 0 | X168: 0 | Y168: 0 | Z168: 0 | AA168: 0 | AB168: 0 | AC168: 0 | AD168: 0 | AE168: 0 | AF168: 0 | AG168: 0
D169: Approved in principle | H169: 0 | I169: 0 | J169: 0 | K169: 0 | L169: 0 | M169: 0 | N169: 0 | O169: 0 | P169: 0 | Q169: 0 | R169: 0 | S169: 0 | T169: 0 | U169: 0 | V169: 0 | W169: 0 | X169: 0 | Y169: 0 | Z169: 0 | AA169: 0 | AB169: 0 | AC169: 0 | AD169: 0 | AE169: 0 | AF169: 0 | AG169: 0
D170: Request/bid submitted | H170: 0 | I170: 0 | J170: 0 | K170: 0 | L170: 0 | M170: 0 | N170: 0 | O170: 0 | P170: 0 | Q170: 0 | R170: 0 | S170: 0 | T170: 0 | U170: 0 | V170: 0 | W170: 0 | X170: 0 | Y170: 0 | Z170: 0 | AA170: 0 | AB170: 0 | AC170: 0 | AD170: 0 | AE170: 0 | AF170: 0 | AG170: 0
D171: Speculative | H171: 0 | I171: 0 | J171: 0 | K171: 0 | L171: 0 | M171: 0 | N171: 0 | O171: 0 | P171: 0 | Q171: 0 | R171: 0 | S171: 0 | T171: 0 | U171: 0 | V171: 0 | W171: 0 | X171: 0 | Y171: 0 | Z171: 0 | AA171: 0 | AB171: 0 | AC171: 0 | AD171: 0 | AE171: 0 | AF171: 0 | AG171: 0
H172: =+SUM(H166:H171) -> 0 | I172: 0 | J172: 0 | K172: 0 | L172: 0 | M172: 0 | N172: 0 | O172: 0 | P172: 0 | Q172: 0 | R172: 0 | S172: 0 | T172: 0 | U172: 0 | V172: 0 | W172: 0 | X172: 0 | Y172: =+SUM(Y166:Y171) -> 0 | Z172: 0 | AA172: 0 | AB172: 0 | AC172: 0 | AD172: 0 | AE172: 0 | AF172: 0 | AG172: 0
D173: Third sector
D174: Approved | H174: =+SUMIF($D$109:$AG$111,$D174,H$109:H$111) -> 0 | I174: 0 | J174: 0 | K174: 0 | L174: 0 | M174: 0 | N174: 0 | O174: 0 | P174: 0 | Q174: 0 | R174: =+SUMIF($D$109:$AG$111,$D174,R$109:R$111) -> 0 | S174: 0 | T174: 0 | U174: 0 | V174: 0 | W174: 0 | X174: 0 | Y174: 0 | Z174: 0 | AA174: 0 | AB174: 0 | AC174: 0 | AD174: 0 | AE174: 0 | AF174: 0 | AG174: 0
D175: Approved subject to conditions | H175: 0 | I175: 0 | J175: 0 | K175: 0 | L175: 0 | M175: 0 | N175: 0 | O175: 0 | P175: 0 | Q175: 0 | R175: 0 | S175: 0 | T175: 0 | U175: 0 | V175: 0 | W175: 0 | X175: 0 | Y175: 0 | Z175: 0 | AA175: 0 | AB175: 0 | AC175: 0 | AD175: 0 | AE175: 0 | AF175: 0 | AG175: 0
D176: Approved in principle | H176: 0 | I176: 0 | J176: 0 | K176: 0 | L176: 0 | M176: 0 | N176: 0 | O176: 0 | P176: 0 | Q176: 0 | R176: 0 | S176: 0 | T176: 0 | U176: 0 | V176: 0 | W176: 0 | X176: 0 | Y176: 0 | Z176: 0 | AA176: 0 | AB176: 0 | AC176: 0 | AD176: 0 | AE176: 0 | AF176: 0 | AG176: 0
D177: Request/bid submitted | H177: 0 | I177: 0 | J177: 0 | K177: 0 | L177: 0 | M177: 0 | N177: 0 | O177: 0 | P177: 0 | Q177: 0 | R177: 0 | S177: 0 | T177: 0 | U177: 0 | V177: 0 | W177: 0 | X177: 0 | Y177: 0 | Z177: 0 | AA177: 0 | AB177: 0 | AC177: 0 | AD177: 0 | AE177: 0 | AF177: 0 | AG177: 0
D178: Speculative | H178: 0 | I178: 0 | J178: 0 | K178: 0 | L178: 0 | M178: 0 | N178: 0 | O178: 0 | P178: 0 | Q178: 0 | R178: 0 | S178: 0 | T178: 0 | U178: 0 | V178: 0 | W178: 0 | X178: 0 | Y178: 0 | Z178: 0 | AA178: 0 | AB178: 0 | AC178: 0 | AD178: 0 | AE178: 0 | AF178: 0 | AG178: 0
H179: =+SUM(H173:H178) -> 0 | I179: 0 | J179: 0 | K179: 0 | L179: 0 | M179: 0 | N179: 0 | O179: 0 | P179: 0 | Q179: 0 | R179: 0 | S179: 0 | T179: 0 | U179: 0 | V179: 0 | W179: 0 | X179: 0 | Y179: =+SUM(Y173:Y178) -> 0 | Z179: 0 | AA179: 0 | AB179: 0 | AC179: 0 | AD179: 0 | AE179: 0 | AF179: 0 | AG179: 0
D180: European Funding
D181: Approved | H181: =+SUMIF($D$115:$AG$117,$D181,H$115:H$117) -> 0 | I181: 0 | J181: 0 | K181: 0 | L181: 0 | M181: 0 | N181: 0 | O181: 0 | P181: 0 | Q181: 0 | R181: =+SUMIF($D$115:$AG$117,$D181,R$115:R$117) -> 0 | S181: 0 | T181: 0 | U181: 0 | V181: 0 | W181: 0 | X181: 0 | Y181: 0 | Z181: 0 | AA181: 0 | AB181: 0 | AC181: 0 | AD181: 0 | AE181: 0 | AF181: 0 | AG181: 0
D182: Approved subject to conditions | H182: 0 | I182: 0 | J182: 0 | K182: 0 | L182: 0 | M182: 0 | N182: 0 | O182: 0 | P182: 0 | Q182: 0 | R182: 0 | S182: 0 | T182: 0 | U182: 0 | V182: 0 | W182: 0 | X182: 0 | Y182: 0 | Z182: 0 | AA182: 0 | AB182: 0 | AC182: 0 | AD182: 0 | AE182: 0 | AF182: 0 | AG182: 0
D183: Approved in principle | H183: 0 | I183: 0 | J183: 0 | K183: 0 | L183: 0 | M183: 0 | N183: 0 | O183: 0 | P183: 0 | Q183: 0 | R183: 0 | S183: 0 | T183: 0 | U183: 0 | V183: 0 | W183: 0 | X183: 0 | Y183: 0 | Z183: 0 | AA183: 0 | AB183: 0 | AC183: 0 | AD183: 0 | AE183: 0 | AF183: 0 | AG183: 0
D184: Request/bid submitted | H184: 0 | I184: 0 | J184: 0 | K184: 0 | L184: 0 | M184: 0 | N184: 0 | O184: 0 | P184: 0 | Q184: 0 | R184: 0 | S184: 0 | T184: 0 | U184: 0 | V184: 0 | W184: 0 | X184: 0 | Y184: 0 | Z184: 0 | AA184: 0 | AB184: 0 | AC184: 0 | AD184: 0 | AE184: 0 | AF184: 0 | AG184: 0
D185: Speculative | H185: 0 | I185: 0 | J185: 0 | K185: 0 | L185: 0 | M185: 0 | N185: 0 | O185: 0 | P185: 0 | Q185: 0 | R185: 0 | S185: 0 | T185: 0 | U185: 0 | V185: 0 | W185: 0 | X185: 0 | Y185: 0 | Z185: 0 | AA185: 0 | AB185: 0 | AC185: 0 | AD185: 0 | AE185: 0 | AF185: 0 | AG185: 0
H186: =+SUM(H180:H185) -> 0 | I186: 0 | J186: 0 | K186: 0 | L186: 0 | M186: 0 | N186: 0 | O186: 0 | P186: 0 | Q186: 0 | R186: 0 | S186: 0 | T186: 0 | U186: 0 | V186: 0 | W186: 0 | X186: 0 | Y186: =+SUM(Y180:Y185) -> 0 | Z186: 0 | AA186: 0 | AB186: 0 | AC186: 0 | AD186: 0 | AE186: 0 | AF186: 0 | AG186: 0
D187: Private sector
D188: Approved | H188: =+SUMIF($D$120:$AG$126,$D188,H$120:H$126) -> 0 | I188: 0 | J188: 0 | K188: 0 | L188: 0 | M188: 0 | N188: 0 | O188: 0 | P188: 0 | Q188: 0 | R188: =+SUMIF($D$120:$AG$126,$D188,R$120:R$126) -> 0 | S188: 0 | T188: 0 | U188: 0 | V188: 0 | W188: 0 | X188: 0 | Y188: 0 | Z188: 0 | AA188: 0 | AB188: 0 | AC188: 0 | AD188: 0 | AE188: 0 | AF188: 0 | AG188: 0
D189: Approved subject to conditions | H189: 0 | I189: 0 | J189: 0 | K189: 0 | L189: 0 | M189: 0 | N189: 0 | O189: 0 | P189: 0 | Q189: 0 | R189: 0 | S189: 0 | T189: 0 | U189: 0 | V189: 0 | W189: 0 | X189: 0 | Y189: 0 | Z189: 0 | AA189: 0 | AB189: 0 | AC189: 0 | AD189: 0 | AE189: 0 | AF189: 0 | AG189: 0
D190: Approved in principle | H190: 0 | I190: 0 | J190: 0 | K190: 0 | L190: 0 | M190: 0 | N190: 0 | O190: 0 | P190: 0 | Q190: 0 | R190: 0 | S190: 0 | T190: 0 | U190: 0 | V190: 0 | W190: 0 | X190: 0 | Y190: 0 | Z190: 0 | AA190: 0 | AB190: 0 | AC190: 0 | AD190: 0 | AE190: 0 | AF190: 0 | AG190: 0
D191: Request/bid submitted | H191: 0 | I191: 0 | J191: 0 | K191: 0 | L191: 0 | M191: 0 | N191: 0 | O191: 0 | P191: 0 | Q191: 0 | R191: 0 | S191: 0 | T191: 0 | U191: 0 | V191: 0 | W191: 0 | X191: 0 | Y191: 0 | Z191: 0 | AA191: 0 | AB191: 0 | AC191: 0 | AD191: 0 | AE191: 0 | AF191: 0 | AG191: 0
D192: Speculative | H192: 0 | I192: 0 | J192: 0 | K192: 0 | L192: 0 | M192: 0 | N192: 0 | O192: 0 | P192: 0 | Q192: 0 | R192: 0 | S192: 0 | T192: 0 | U192: 0 | V192: 0 | W192: 0 | X192: 0 | Y192: 0 | Z192: 0 | AA192: 0 | AB192: 0 | AC192: 0 | AD192: 0 | AE192: 0 | AF192: 0 | AG192: 0
H193: =+SUM(H187:H192) -> 0 | I193: 0 | J193: 0 | K193: 0 | L193: 0 | M193: 0 | N193: 0 | O193: 0 | P193: 0 | Q193: 0 | R193: 0 | S193: 0 | T193: 0 | U193: 0 | V193: 0 | W193: 0 | X193: 0 | Y193: =+SUM(Y187:Y192) -> 0 | Z193: 0 | AA193: 0 | AB193: 0 | AC193: 0 | AD193: 0 | AE193: 0 | AF193: 0 | AG193: 0
L197: =+L9 -> 2020 / 2021 | M197: =+M9 -> 2021 / 2022 | N197: 2022 / 2023 | O197: 2023 / 2024 | P197: 2024 / 2025 | Q197: 2025 / 2026 | R197: 2026 / 2027 | S197: 2027 / 2028 | T197: 2028 / 2029 | U197: 2029 / 2030 | V197: 2030 / 2031 | W197: 2031 / 2032 | X197: 2032 / 2033 | Y197: =+Y9 -> 2033 / 2034 | Z197: 2034 / 2035 | AA197: 2035 / 2036 | AB197: 2036 / 2037 | AC197: 2037 / 2038 | AD197: 2038 / 2039 | AE197: 2039 / 2040 | AF197: 2040 / 2041 | AG197: 0
K198: Capital | L198: =+L72 -> 0 | M198: =+M72 -> 0 | N198: 0 | O198: 0 | P198: 0 | Q198: 0 | R198: 0 | S198: 0 | T198: 0 | U198: 0 | V198: 0 | W198: 0 | X198: 0 | Y198: =+Y72 -> 0 | Z198: 0 | AA198: 0 | AB198: 0 | AC198: 0 | AD198: 0 | AE198: 0 | AF198: 0 | AG198: 0
K199: Revenue | L199: =+L73 -> 0 | M199: =+M73 -> 0 | N199: 0 | O199: 0 | P199: 0 | Q199: 0 | R199: 0 | S199: 0 | T199: 0 | U199: 0 | V199: 0 | W199: 0 | X199: 0 | Y199: =+Y73 -> 0 | Z199: 0 | AA199: 0 | AB199: 0 | AC199: 0 | AD199: 0 | AE199: 0 | AF199: 0 | AG199: 0

Sheet Risk Retained
A1: =+Summary!$B$8 -> Project name as it appears on your main business case/expression of interest form:
A2: Retained risk
A4: Description of risk | B4: Financial impact if it does occur | C4: Liklihood of occuring | D4: Quantified Risk
A5: describe the risk - (eg need for a public enquiry) | B5: how much would it cost if that happened | C5: what is the %age chance that might happen
D6: =+C6*B6 -> 0
D7: =+C7*B7 -> 0
D8: 0
D9: 0
D10: 0
D11: 0
D12: 0
D13: 0
D14: 0
D15: =+SUM(D5:D14) -> 0
A17: e.g.
A18: residents will object which could result in a public enquiry | B18: 1000000 | C18: 0.05 | D18: =+C18*B18 -> 50000

Sheet Outputs
B1: =+Summary!$B$8 -> Project name as it appears on your main business case/expression of interest form: | AK1: Inflation assumed
B2: outputs | AO2: 0 | AP2: 0.025 | AQ2: 0.025 | AR2: 0.025 | AS2: 0.025 | AT2: 0.025 | AU2: 0.025 | AV2: 0.025 | AW2: 0.025 | AX2: 0.025 | AY2: 0.025 | AZ2: 0.025 | BA2: 0.025 | BB2: 0.025 | BC2: 0.025
AO3: =+(1+AO2)*(1+AN3)-1 -> 0 | AP3: =+(1+AP2)*(1+AO3)-1 -> 0.025 | AQ3: 0.050625 | AR3: 0.076890625 | AS3: 0.1038128906 | AT3: 0.1314082129 | AU3: 0.1596934182 | AV3: 0.1886857537 | AW3: 0.2184028975 | AX3: 0.2488629699 | AY3: 0.2800845442 | AZ3: 0.3120866578 | BA3: 0.3448888242 | BB3: 0.3785110449 | BC3: 0.412973821
C4: =+G5 -> 2020 / 2021 | AC4: Notes (where appropriate) | AE4: Each | AF4: Year | AG4: GDP | AH4: Each | AI4: Source | AK4: =+AO5 -> 2020 / 2021
C5: =+'Project Costs'!H9 -> Qtr 1 | D5: =+'Project Costs'!I9 -> Qtr 2 | E5: =+'Project Costs'!J9 -> Qtr 3 | F5: =+'Project Costs'!K9 -> Qtr 4 | G5: =+'Project Costs'!L9 -> 2020 / 2021 | H5: =+'Project Costs'!M9 -> 2021 / 2022 | I5: =+'Project Costs'!N9 -> 2022 / 2023 | J5: =+'Project Costs'!O9 -> 2023 / 2024 | K5: =+'Project Costs'!P9 -> 2024 / 2025 | L5: =+'Project Costs'!Q9 -> 2025 / 2026 | M5: =+'Project Costs'!R9 -> 2026 / 2027 | N5: =+'Project Costs'!S9 -> 2027 / 2028 | O5: =+'Project Costs'!T9 -> 2028 / 2029 | P5: =+'Project Costs'!U9 -> 2029 / 2030 | Q5: =+'Project Costs'!V9 -> 2030 / 2031 | R5: =+'Project Costs'!W9 -> 2031 / 2032 | S5: =+'Project Costs'!X9 -> 2032 / 2033 | T5: =+'Project Costs'!Y9 -> 2033 / 2034 | U5: =+'Project Costs'!Z9 -> 2034 / 2035 | V5: =+'Project Costs'!AA9 -> 2035 / 2036 | W5: =+'Project Costs'!AB9 -> 2036 / 2037 | X5: =+'Project Costs'!AC9 -> 2037 / 2038 | Y5: =+'Project Costs'!AD9 -> 2038 / 2039 | Z5: =+'Project Costs'!AE9 -> 2039 / 2040 | AA5: =+'Project Costs'!AF9 -> 2040 / 2041 | AB5: Total | AH5: 19/20 | AK5: =+C5 -> Qtr 1 | AL5: Qtr 2 | AM5: Qtr 3 | AN5: Qtr 4 | AO5: 2020 / 2021 | AP5: 2021 / 2022 | AQ5: 2022 / 2023 | AR5: 2023 / 2024 | AS5: 2024 / 2025 | AT5: 2025 / 2026 | AU5: 2026 / 2027 | AV5: 2027 / 2028 | AW5: 2028 / 2029 | AX5: 2029 / 2030 | AY5: 2030 / 2031 | AZ5: 2031 / 2032 | BA5: =+Y5 -> 2038 / 2039 | BB5: 2039 / 2040 | BC5: 2040 / 2041 | BD5: Total
AE6: can include your own… | AF6: select from list | AG6: automatic calculation | AH6: automatic calculation | AI6: … but must be sourced
B8: Jobs
B9: Jobs Created | AC9: The total number of newly created and safeguarded permanent full-time equivalent jobs as a direct result of the intervention at predetermined employment sites. Employment sites include occupied newly developed commercial premises, the premises of supported enterprises, and any FE space directly improved or constructed by the intervention. Created and safeguarded jobs exclude those created solely to deliver the intervention (e.g. construction). A job is deemed as permanent if it lasts at least a year.
B10: lasting 3 or more years | G10: 0 | AB10: =+SUM(G10:AA10) -> 0 | AE10: =VLOOKUP(Summary!B11,'Land values'!A33:B35,2,0) -> 47182.8 | AF10: 2018-19 | AG10: =+VLOOKUP(AF10,'GDP Deflators'!$B$8:$C$77,2,0)/'GDP Deflators'!$C$72 -> 0.9605302599 | AH10: =+AE10/AG10 -> 49121.61748 | AI10: ONS (2018) Sub regional Productivity: Labour Productivity (GVA per hour worked and GVA per filled job) indices by UK NUTS2 and NUTS3 sub regions | AJ10: economic benefit from a workless claimant entering work | AK10: =+$AH10*(1+$AO$3)*C10 -> 0 | AL10: =+$AH10*(1+$AO$3)*D10 -> 0 | AM10: =+$AH10*(1+$AO$3)*E10 -> 0 | AN10: =+$AH10*(1+$AO$3)*F10 -> 0 | AO10: =+SUM(AK10:AN10) -> 0 | AP10: =+$AH10*(1+AP$3)*H10 -> 0 | AQ10: =+$AH10*(1+AQ$3)*I10 -> 0 | AR10: =+$AH10*(1+AR$3)*J10 -> 0 | AS10: =+$AH10*(1+AS$3)*K10 -> 0 | AT10: =+$AH10*(1+AT$3)*L10 -> 0 | AU10: =+$AH10*(1+AU$3)*M10 -> 0 | AV10: =+$AH10*(1+AV$3)*N10 -> 0 | AW10: =+$AH10*(1+AW$3)*O10 -> 0 | AX10: =+$AH10*(1+AX$3)*P10 -> 0 | AY10: =+$AH10*(1+AY$3)*Q10 -> 0 | AZ10: =+$AH10*(1+AZ$3)*R10 -> 0 | BA10: =+$AH10*(1+BA$3)*Y10 -> 0 | BB10: =+$AH10*(1+BB$3)*Z10 -> 0 | BC10: =+$AH10*(1+BC$3)*AA10 -> 0 | BD10: =+SUM(AO10:BC10) -> 0 | BF10: =+NPV(6.075%,AP10:BC10)+AO10 -> 0
B11: lasting up to 3 years | G11: =+SUM(C11:F11) -> 0 | AB11: =+SUM(G11:AA11) -> 0 | AE11: =AE10 -> 47182.8 | AF11: 2018-19 | AG11: =+VLOOKUP(AF11,'GDP Deflators'!$B$8:$C$77,2,0)/'GDP Deflators'!$C$72 -> 0.9605302599 | AH11: =+AE11/AG11 -> 49121.61748 | AI11: ONS (2018) Sub regional Productivity: Labour Productivity (GVA per hour worked and GVA per filled job) indices by UK NUTS2 and NUTS3 sub regions | AJ11: economic benefit from a workless claimant entering work | AK11: =+$AH11*(1+$AO$3)*C11 -> 0 | AL11: =+$AH11*(1+$AO$3)*D11 -> 0 | AM11: =+$AH11*(1+$AO$3)*E11 -> 0 | AN11: =+$AH11*(1+$AO$3)*F11 -> 0 | AO11: =+SUM(AK11:AN11) -> 0 | AP11: 0 | AQ11: 0 | AR11: 0 | AS11: 0 | AT11: 0 | AU11: 0 | AV11: 0 | AW11: 0 | AX11: 0 | AY11: 0 | AZ11: 0 | BA11: 0 | BB11: 0 | BC11: 0 | BD11: =+SUM(AO11:BC11) -> 0 | BF11: =+NPV(6.075%,AP11:BC11)+AO11 -> 0
C12: =+SUM(C9:C11) -> 0 | D12: 0 | E12: 0 | F12: 0 | G12: 0 | H12: 0 | I12: 0 | J12: 0 | K12: 0 | L12: 0 | M12: 0 | N12: 0 | O12: 0 | P12: 0 | Q12: 0 | R12: 0 | S12: =+SUM(S9:S11) -> 0 | T12: 0 | U12: 0 | V12: 0 | W12: 0 | X12: 0 | Y12: 0 | Z12: 0 | AA12: 0 | AB12: 0 | AK12: =+SUM(AK9:AK11) -> 0 | AL12: =+SUM(AL9:AL11) -> 0 | AM12: 0 | AN12: 0 | AO12: 0 | AP12: 0 | AQ12: 0 | AR12: 0 | AS12: 0 | AT12: 0 | AU12: 0 | AV12: 0 | AW12: 0 | AX12: 0 | AY12: 0 | AZ12: 0 | BA12: 0 | BB12: 0 | BC12: 0 | BD12: 0 | BF12: 0
B13: Jobs Safegaurded
B14: lasting 3 or more years | G14: =+SUM(C14:F14) -> 0 | AB14: =+SUM(G14:AA14) -> 0 | AE14: =AE10 -> 47182.8 | AF14: 2018-19 | AG14: =+VLOOKUP(AF14,'GDP Deflators'!$B$8:$C$77,2,0)/'GDP Deflators'!$C$72 -> 0.9605302599 | AH14: =+AE14/AG14 -> 49121.61748 | AI14: ONS (2018) Sub regional Productivity: Labour Productivity (GVA per hour worked and GVA per filled job) indices by UK NUTS2 and NUTS3 sub regions | AJ14: economic benefit from a workless claimant entering work | AK14: =+$AH14*(1+$AO$3)*C14 -> 0 | AL14: =+$AH14*(1+$AO$3)*D14 -> 0 | AM14: =+$AH14*(1+$AO$3)*E14 -> 0 | AN14: =+$AH14*(1+$AO$3)*F14 -> 0 | AO14: =+SUM(AK14:AN14) -> 0 | AP14: =+$AH14*(1+AP$3)*H14 -> 0 | AQ14: =+$AH14*(1+AQ$3)*I14 -> 0 | AR14: =+$AH14*(1+AR$3)*J14 -> 0 | AS14: =+$AH14*(1+AS$3)*K14 -> 0 | AT14: =+$AH14*(1+AT$3)*L14 -> 0 | AU14: =+$AH14*(1+AU$3)*M14 -> 0 | AV14: =+$AH14*(1+AV$3)*N14 -> 0 | AW14: =+$AH14*(1+AW$3)*O14 -> 0 | AX14: =+$AH14*(1+AX$3)*P14 -> 0 | AY14: =+$AH14*(1+AY$3)*Q14 -> 0 | AZ14: =+$AH14*(1+AZ$3)*R14 -> 0 | BA14: =+$AH14*(1+BA$3)*Y14 -> 0 | BB14: =+$AH14*(1+BB$3)*Z14 -> 0 | BC14: =+$AH14*(1+BC$3)*AA14 -> 0 | BD14: =+SUM(AO14:BC14) -> 0 | BF14: =+NPV(6.075%,AP14:BC14)+AO14 -> 0
B15: lasting up to 3 years | G15: 0 | AB15: =+SUM(G15:AA15) -> 0 | AE15: =AE10 -> 47182.8 | AF15: 2018-19 | AG15: =+VLOOKUP(AF15,'GDP Deflators'!$B$8:$C$77,2,0)/'GDP Deflators'!$C$72 -> 0.9605302599 | AH15: =+AE15/AG15 -> 49121.61748 | AI15: ONS (2018) Sub regional Productivity: Labour Productivity (GVA per hour worked and GVA per filled job) indices by UK NUTS2 and NUTS3 sub regions | AJ15: economic benefit from a workless claimant entering work | AK15: =+$AH15*(1+$AO$3)*C15 -> 0 | AL15: 0 | AM15: 0 | AN15: 0 | AO15: =+SUM(AK15:AN15) -> 0 | AP15: 0 | AQ15: 0 | AR15: 0 | AS15: 0 | AT15: 0 | AU15: 0 | AV15: 0 | AW15: 0 | AX15: 0 | AY15: 0 | AZ15: 0 | BA15: 0 | BB15: 0 | BC15: 0 | BD15: =+SUM(AO15:BC15) -> 0 | BF15: =+NPV(6.075%,AP15:BC15)+AO15 -> 0
C16: =+SUM(C13:C15) -> 0 | D16: 0 | E16: 0 | F16: 0 | G16: 0 | H16: 0 | I16: 0 | J16: 0 | K16: 0 | L16: 0 | M16: 0 | N16: 0 | O16: 0 | P16: 0 | Q16: 0 | R16: 0 | S16: =+SUM(S13:S15) -> 0 | T16: 0 | U16: 0 | V16: 0 | W16: 0 | X16: 0 | Y16: 0 | Z16: 0 | AA16: 0 | AB16: 0 | AK16: =+SUM(AK13:AK15) -> 0 | AL16: 0 | AM16: 0 | AN16: 0 | AO16: 0 | AP16: 0 | AQ16: 0 | AR16: 0 | AS16: 0 | AT16: 0 | AU16: 0 | AV16: 0 | AW16: 0 | AX16: 0 | AY16: 0 | AZ16: 0 | BA16: 0 | BB16: 0 | BC16: 0 | BD16: 0 | BF16: =+SUM(BF13:BF15) -> 0
B17: Apprenticeships Created | G17: =+SUM(C17:F17) -> 0 | H17: =+SUM(H65:H69) -> 0 | I17: 0 | J17: 0 | K17: 0 | L17: 0 | M17: 0 | N17: 0 | O17: 0 | P17: 0 | Q17: 0 | R17: 0 | S17: =+SUM(S65:S69) -> 0 | T17: 0 | U17: 0 | V17: 0 | W17: 0 | X17: 0 | Y17: 0 | Z17: 0 | AA17: 0 | AB17: =+SUM(G17:AA17) -> 0 | AC17: No of apprenticeship positions created as a direct result of the intervention. Valued below based on levels. | AE17: 0 | AF17: 2019-20 | AG17: =+VLOOKUP(AF17,'GDP Deflators'!$B$8:$C$77,2,0)/'GDP Deflators'!$C$72 -> 1 | AH17: =+AE17/AG17 -> 0 | AJ17: Numbers also to be included in Skills section
B18: Construction jobs | G18: =+SUM(C18:F18) -> 0 | AB18: =+SUM(G18:AA18) -> 0 | AE18: 0 | AF18: 2019-20 | AG18: =+VLOOKUP(AF18,'GDP Deflators'!$B$8:$C$77,2,0)/'GDP Deflators'!$C$72 -> 1 | AH18: 0 | AK18: =+$AH18*(1+$AO$3)*C18 -> 0 | AL18: =+$AH18*(1+$AO$3)*D18 -> 0 | AM18: =+$AH18*(1+$AO$3)*E18 -> 0 | AN18: =+$AH18*(1+$AO$3)*F18 -> 0 | AO18: =+SUM(AK18:AN18) -> 0 | AP18: =+$AH18*(1+AP$3)*H18 -> 0 | AQ18: 0 | AR18: 0 | AS18: 0 | AT18: 0 | AU18: 0 | AV18: 0 | AW18: 0 | AX18: 0 | AY18: 0 | AZ18: 0 | BA18: =+$AH18*(1+BA$3)*Y18 -> 0 | BB18: =+$AH18*(1+BB$3)*Z18 -> 0 | BC18: =+$AH18*(1+BC$3)*AA18 -> 0 | BD18: =+SUM(AO18:BC18) -> 0 | BF18: =+NPV(6.075%,AP18:BC18)+AO18 -> 0
B20: Displacement | AC20: Displacement arises when the benefits of an intervention in terms of increased output or employment are offset by a reduction in output or employment elsewhere. This cell is your estimate of what percentage of the jobs have been displaced from other settings. | AE20: 0.25
B22: Housing | AC22: At the impact site, the number of started & completed units. Complete refers to physical completion of the individual unit, or, in the case of flats, on physical completion of the block. Housing unit refers to one discrete unit (e.g. house, flat, live/work), regardless of size. Also complete details of new residential land in hectares below.
B23: Housing Units started | G23: =+SUM(C23:F23) -> 0 | AB23: =+SUM(G23:AA23) -> 0 | AE23: 0 | AF23: 2019-20 | AG23: =+VLOOKUP(AF23,'GDP Deflators'!$B$8:$C$77,2,0)/'GDP Deflators'!$C$72 -> 1 | AH23: =+AE23/AG23 -> 0 | AK23: =+$AH23*(1+$AO$3)*C23 -> 0 | AL23: =+$AH23*(1+$AO$3)*D23 -> 0 | AM23: =+$AH23*(1+$AO$3)*E23 -> 0 | AN23: =+$AH23*(1+$AO$3)*F23 -> 0 | AO23: =+SUM(AK23:AN23) -> 0 | AP23: =+$AH23*(1+AP$3)*H23 -> 0 | AQ23: 0 | AR23: 0 | AS23: 0 | AT23: 0 | AU23: 0 | AV23: 0 | AW23: 0 | AX23: 0 | AY23: 0 | AZ23: 0 | BA23: =+$AH23*(1+BA$3)*Y23 -> 0 | BB23: 0 | BC23: 0 | BD23: =+SUM(AO23:BC23) -> 0 | BF23: =+NPV(6.075%,AP23:BC23)+AO23 -> 0
B24: Housing Units completed | G24: 0 | AB24: 0 | AE24: 0 | AF24: 2019-20 | AG24: =+VLOOKUP(AF24,'GDP Deflators'!$B$8:$C$77,2,0)/'GDP Deflators'!$C$72 -> 1 | AH24: =+AE24/AG24 -> 0 | AK24: =+$AH24*(1+$AO$3)*C24 -> 0 | AL24: 0 | AM24: 0 | AN24: 0 | AO24: =+SUM(AK24:AN24) -> 0 | AP24: 0 | AQ24: 0 | AR24: 0 | AS24: 0 | AT24: 0 | AU24: 0 | AV24: 0 | AW24: 0 | AX24: 0 | AY24: 0 | AZ24: 0 | BA24: 0 | BB24: 0 | BC24: 0 | BD24: 0 | BF24: =+NPV(6.075%,AP24:BC24)+AO24 -> 0
B25: Number of homes with improved broadband | G25: 0 | AB25: 0 | AK25: =+$AH25*(1+$AO$3)*C25 -> 0 | AL25: 0 | AM25: 0 | AN25: 0 | AO25: =+SUM(AK25:AN25) -> 0 | AP25: 0 | AQ25: 0 | AR25: 0 | AS25: 0 | AT25: 0 | AU25: 0 | AV25: 0 | AW25: 0 | AX25: 0 | AY25: 0 | AZ25: 0 | BA25: 0 | BB25: 0 | BC25: 0 | BD25: 0 | BF25: =+NPV(6.075%,AP25:BC25)+AO25 -> 0
A27: Houses by expected Council Tax Band | B27: A | G27: 0 | AB27: 0 | AE27: =0.666666666666667*AE30 -> 1166.586667 | AF27: 2019-20 | AG27: =+VLOOKUP(AF27,'GDP Deflators'!$B$8:$C$77,2,0)/'GDP Deflators'!$C$72 -> 1 | AH27: =+AE27/AG27 -> 1166.586667 | AI27: NHB Calculator, MoHCLG | AK27: =+$AH27*(1+$AO$3)*C27 -> 0 | AL27: =+$AH27*(1+$AO$3)*D27 -> 0 | AM27: =+$AH27*(1+$AO$3)*E27 -> 0 | AN27: =+$AH27*(1+$AO$3)*F27 -> 0 | AO27: =+SUM(AK27:AN27) -> 0 | AP27: =+$AH27*(1+AP$3)*SUM(G27:H27) -> 0 | AQ27: =+$AH27*(1+AQ$3)*SUM(G27:I27) -> 0 | AR27: =+$AH27*(1+AR$3)*SUM(G27:J27) -> 0 | AS27: =+$AH27*(1+AS$3)*SUM(H27:K27) -> 0 | AT27: =+$AH27*(1+AT$3)*SUM(I27:L27) -> 0 | AU27: =+$AH27*(1+AU$3)*SUM(J27:M27) -> 0 | AV27: =+$AH27*(1+AV$3)*SUM(K27:N27) -> 0 | AW27: =+$AH27*(1+AW$3)*SUM(L27:O27) -> 0 | AX27: =+$AH27*(1+AX$3)*SUM(M27:P27) -> 0 | AY27: =+$AH27*(1+AY$3)*SUM(N27:Q27) -> 0 | AZ27: =+$AH27*(1+AZ$3)*SUM(O27:R27) -> 0 | BA27: =+$AH27*(1+BA$3)*SUM(P27:Y27) -> 0 | BB27: =+$AH27*(1+BB$3)*SUM(Q27:Z27) -> 0 | BC27: =+$AH27*(1+BC$3)*SUM(R27:AA27) -> 0 | BD27: 0 | BF27: =+NPV(6.075%,AP27:BC27)+AO27 -> 0
B28: B | G28: 0 | AB28: 0 | AE28: =0.777777777777778*AE30 -> 1361.017778 | AF28: 2019-20 | AG28: =+VLOOKUP(AF28,'GDP Deflators'!$B$8:$C$77,2,0)/'GDP Deflators'!$C$72 -> 1 | AH28: 1361.017778 | AI28: NHB Calculator, MoHCLG | AK28: 0 | AL28: 0 | AM28: 0 | AN28: 0 | AO28: 0 | AP28: 0 | AQ28: 0 | AR28: 0 | AS28: 0 | AT28: 0 | AU28: 0 | AV28: 0 | AW28: 0 | AX28: 0 | AY28: 0 | AZ28: 0 | BA28: 0 | BB28: 0 | BC28: 0 | BD28: 0 | BF28: 0
B29: C | G29: 0 | AB29: 0 | AE29: =0.888888888888889*AE30 -> 1555.448889 | AF29: 2019-20 | AG29: =+VLOOKUP(AF29,'GDP Deflators'!$B$8:$C$77,2,0)/'GDP Deflators'!$C$72 -> 1 | AH29: 1555.448889 | AI29: NHB Calculator, MoHCLG | AK29: 0 | AL29: 0 | AM29: 0 | AN29: 0 | AO29: 0 | AP29: 0 | AQ29: 0 | AR29: 0 | AS29: 0 | AT29: 0 | AU29: 0 | AV29: 0 | AW29: 0 | AX29: 0 | AY29: 0 | AZ29: 0 | BA29: 0 | BB29: 0 | BC29: 0 | BD29: 0 | BF29: 0
B30: D | G30: 0 | AB30: 0 | AE30: 1749.88 | AF30: 2019-20 | AG30: =+VLOOKUP(AF30,'GDP Deflators'!$B$8:$C$77,2,0)/'GDP Deflators'!$C$72 -> 1 | AH30: 1749.88 | AI30: NHB Calculator, MoHCLG | AK30: 0 | AL30: 0 | AM30: 0 | AN30: 0 | AO30: 0 | AP30: 0 | AQ30: 0 | AR30: 0 | AS30: 0 | AT30: 0 | AU30: 0 | AV30: 0 | AW30: 0 | AX30: 0 | AY30: 0 | AZ30: 0 | BA30: 0 | BB30: 0 | BC30: 0 | BD30: 0 | BF30: 0
B31: E | G31: 0 | AB31: 0 | AE31: =1.22222222222222*AE30 -> 2138.742222 | AF31: 2019-20 | AG31: =+VLOOKUP(AF31,'GDP Deflators'!$B$8:$C$77,2,0)/'GDP Deflators'!$C$72 -> 1 | AH31: 2138.742222 | AI31: NHB Calculator, MoHCLG | AK31: 0 | AL31: 0 | AM31: 0 | AN31: 0 | AO31: 0 | AP31: 0 | AQ31: 0 | AR31: 0 | AS31: 0 | AT31: 0 | AU31: 0 | AV31: 0 | AW31: 0 | AX31: 0 | AY31: 0 | AZ31: 0 | BA31: 0 | BB31: 0 | BC31: 0 | BD31: 0 | BF31: 0
B32: F | G32: 0 | AB32: 0 | AE32: =1.44444444444444*AE30 -> 2527.604444 | AF32: 2019-20 | AG32: =+VLOOKUP(AF32,'GDP Deflators'!$B$8:$C$77,2,0)/'GDP Deflators'!$C$72 -> 1 | AH32: 2527.604444 | AI32: NHB Calculator, MoHCLG | AK32: 0 | AL32: 0 | AM32: 0 | AN32: 0 | AO32: 0 | AP32: 0 | AQ32: 0 | AR32: 0 | AS32: 0 | AT32: 0 | AU32: 0 | AV32: 0 | AW32: 0 | AX32: 0 | AY32: 0 | AZ32: 0 | BA32: 0 | BB32: 0 | BC32: 0 | BD32: 0 | BF32: 0
B33: G | G33: =+SUM(C33:F33) -> 0 | AB33: =+SUM(G33:AA33) -> 0 | AE33: =1.66666666666667*AE30 -> 2916.466667 | AF33: 2019-20 | AG33: =+VLOOKUP(AF33,'GDP Deflators'!$B$8:$C$77,2,0)/'GDP Deflators'!$C$72 -> 1 | AH33: 2916.466667 | AI33: NHB Calculator, MoHCLG | AK33: 0 | AL33: 0 | AM33: 0 | AN33: 0 | AO33: 0 | AP33: 0 | AQ33: 0 | AR33: 0 | AS33: 0 | AT33: 0 | AU33: 0 | AV33: 0 | AW33: 0 | AX33: 0 | AY33: 0 | AZ33: 0 | BA33: 0 | BB33: 0 | BC33: 0 | BD33: 0 | BF33: 0
B34: H | G34: =+SUM(C34:F34) -> 0 | AB34: =+SUM(G34:AA34) -> 0 | AE34: =2*AE30 -> 3499.76 | AF34: 2019-20 | AG34: =+VLOOKUP(AF34,'GDP Deflators'!$B$8:$C$77,2,0)/'GDP Deflators'!$C$72 -> 1 | AH34: 3499.76 | AI34: NHB Calculator, MoHCLG | AK34: 0 | AL34: 0 | AM34: 0 | AN34: 0 | AO34: 0 | AP34: 0 | AQ34: 0 | AR34: 0 | AS34: 0 | AT34: 0 | AU34: 0 | AV34: 0 | AW34: 0 | AX34: 0 | AY34: 0 | AZ34: 0 | BA34: 0 | BB34: 0 | BC34: 0 | BD34: 0 | BF34: 0
B35: I | G35: =+SUM(C35:F35) -> 0 | AB35: =+SUM(G35:AA35) -> 0 | AE35: =2.33333333333333*AE30 -> 4083.053333 | AF35: 2019-20 | AG35: =+VLOOKUP(AF35,'GDP Deflators'!$B$8:$C$77,2,0)/'GDP Deflators'!$C$72 -> 1 | AH35: =+AE35/AG35 -> 4083.053333 | AI35: NHB Calculator, MoHCLG | AK35: =+$AH35*(1+$AO$3)*C35 -> 0 | AL35: =+$AH35*(1+$AO$3)*D35 -> 0 | AM35: =+$AH35*(1+$AO$3)*E35 -> 0 | AN35: =+$AH35*(1+$AO$3)*F35 -> 0 | AO35: =+SUM(AK35:AN35) -> 0 | AP35: =+$AH35*(1+AP$3)*SUM(G35:H35) -> 0 | AQ35: =+$AH35*(1+AQ$3)*SUM(G35:I35) -> 0 | AR35: =+$AH35*(1+AR$3)*SUM(G35:J35) -> 0 | AS35: =+$AH35*(1+AS$3)*SUM(H35:K35) -> 0 | AT35: =+$AH35*(1+AT$3)*SUM(I35:L35) -> 0 | AU35: =+$AH35*(1+AU$3)*SUM(J35:M35) -> 0 | AV35: =+$AH35*(1+AV$3)*SUM(K35:N35) -> 0 | AW35: =+$AH35*(1+AW$3)*SUM(L35:O35) -> 0 | AX35: =+$AH35*(1+AX$3)*SUM(M35:P35) -> 0 | AY35: =+$AH35*(1+AY$3)*SUM(N35:Q35) -> 0 | AZ35: =+$AH35*(1+AZ$3)*SUM(O35:R35) -> 0 | BA35: =+$AH35*(1+BA$3)*SUM(P35:Y35) -> 0 | BB35: =+$AH35*(1+BB$3)*SUM(Q35:Z35) -> 0 | BC35: =+$AH35*(1+BC$3)*SUM(R35:AA35) -> 0 | BD35: 0 | BF35: =+NPV(6.075%,AP35:BC35)+AO35 -> 0
B36: Not analysed | C36: =+C24-SUM(C27:C34) -> 0 | D36: =+D24-SUM(D27:D34) -> 0 | E36: =+E24-SUM(E27:E34) -> 0 | F36: =+F24-SUM(F27:F34) -> 0 | G36: =+SUM(C36:F36) -> 0 | H36: =+H24-SUM(H27:H34) -> 0 | I36: 0 | J36: 0 | K36: 0 | L36: 0 | M36: 0 | N36: 0 | O36: 0 | P36: 0 | Q36: 0 | R36: 0 | S36: =+S24-SUM(S27:S34) -> 0 | T36: 0 | U36: 0 | V36: 0 | W36: 0 | X36: 0 | Y36: 0 | Z36: 0 | AA36: 0 | AB36: 0 | AK36: 0 | AL36: 0 | AM36: 0 | AN36: 0 | AO36: 0 | AP36: 0 | AQ36: 0 | AR36: 0 | AS36: 0 | AT36: 0 | AU36: 0 | AV36: 0 | AW36: 0 | AX36: 0 | AY36: 0 | AZ36: 0 | BA36: 0 | BB36: 0 | BC36: 0 | BD36: 0 | BF36: 0
C37: =+SUM(C27:C36) -> 0 | D37: =+SUM(D27:D36) -> 0 | E37: 0 | F37: 0 | G37: 0 | H37: 0 | I37: 0 | J37: 0 | K37: 0 | L37: 0 | M37: 0 | N37: 0 | O37: 0 | P37: 0 | Q37: 0 | R37: 0 | S37: =+SUM(S27:S36) -> 0 | T37: 0 | U37: 0 | V37: 0 | W37: 0 | X37: 0 | Y37: 0 | Z37: 0 | AA37: 0 | AB37: 0 | AK37: =+SUM(AK27:AK36) -> 0 | AL37: =+SUM(AL27:AL36) -> 0 | AM37: =+SUM(AM27:AM36) -> 0 | AN37: 0 | AO37: 0 | AP37: 0 | AQ37: 0 | AR37: 0 | AS37: 0 | AT37: 0 | AU37: 0 | AV37: 0 | AW37: 0 | AX37: 0 | AY37: 0 | AZ37: 0 | BA37: 0 | BB37: 0 | BC37: 0 | BD37: 0 | BF37: 0
B38: of which, Affordable | G38: 0 | AB38: =+SUM(G38:AA38) -> 0 | AE38: 350 | AF38: 2019-20 | AG38: =+VLOOKUP(AF38,'GDP Deflators'!$B$8:$C$77,2,0)/'GDP Deflators'!$C$72 -> 1 | AH38: =+AE38/AG38 -> 350 | AI38: NHB Calculator, MoHCLG | AK38: =+$AH38*(1+$AO$3)*C38 -> 0 | AL38: =+$AH38*(1+$AO$3)*D38 -> 0 | AM38: =+$AH38*(1+$AO$3)*E38 -> 0 | AN38: =+$AH38*(1+$AO$3)*F38 -> 0 | AO38: =+SUM(AK38:AN38) -> 0 | AP38: =+$AH38*(1+AP$3)*SUM(G38:H38) -> 0 | AQ38: =+$AH38*(1+AQ$3)*SUM(G38:I38) -> 0 | AR38: =+$AH38*(1+AR$3)*SUM(G38:J38) -> 0 | AS38: 0 | AT38: 0 | AU38: 0 | AV38: 0 | AW38: 0 | AX38: 0 | AY38: 0 | AZ38: 0 | BA38: =+$AH38*(1+BA$3)*SUM(P38:Y38) -> 0 | BB38: =+$AH38*(1+BB$3)*SUM(Q38:Z38) -> 0 | BC38: =+$AH38*(1+BC$3)*SUM(R38:AA38) -> 0 | BD38: 0 | BF38: =+NPV(6.075%,AP38:BC38)+AO38 -> 0
B39: of which, Affordable & rented | G39: 0 | AB39: =+SUM(G39:AA39) -> 0 | AF39: 2019-20 | AK39: =+$AH39*(1+$AO$3)*C39 -> 0 | AL39: =+$AH39*(1+$AO$3)*D39 -> 0 | AM39: =+$AH39*(1+$AO$3)*E39 -> 0 | AN39: =+$AH39*(1+$AO$3)*F39 -> 0 | AO39: =+SUM(AK39:AN39) -> 0 | AP39: =+$AH39*(1+AP$3)*SUM(G39:H39) -> 0 | AQ39: =+$AH39*(1+AQ$3)*SUM(G39:I39) -> 0 | AR39: =+$AH39*(1+AR$3)*SUM(G39:J39) -> 0 | AS39: =+$AH39*(1+AS$3)*SUM(H39:K39) -> 0 | AT39: =+$AH39*(1+AT$3)*SUM(I39:L39) -> 0 | AU39: =+$AH39*(1+AU$3)*SUM(J39:M39) -> 0 | AV39: =+$AH39*(1+AV$3)*SUM(K39:N39) -> 0 | AW39: =+$AH39*(1+AW$3)*SUM(L39:O39) -> 0 | AX39: =+$AH39*(1+AX$3)*SUM(M39:P39) -> 0 | AY39: =+$AH39*(1+AY$3)*SUM(N39:Q39) -> 0 | AZ39: =+$AH39*(1+AZ$3)*SUM(O39:R39) -> 0 | BA39: =+$AH39*(1+BA$3)*SUM(P39:Y39) -> 0 | BB39: =+$AH39*(1+BB$3)*SUM(Q39:Z39) -> 0 | BC39: =+$AH39*(1+BC$3)*SUM(R39:AA39) -> 0 | BD39: =+SUM(AO39:BC39) -> 0 | BF39: =+NPV(6.075%,AP39:BC39)+AO39 -> 0
B40: Health benefits of additional affordable housing | C40: =+C39 -> 0 | D40: =+D39 -> 0 | E40: =+E39 -> 0 | F40: =+F39 -> 0 | G40: 0 | H40: =+H39 -> 0 | I40: 0 | J40: 0 | K40: 0 | L40: 0 | M40: 0 | N40: 0 | O40: 0 | P40: 0 | Q40: 0 | R40: 0 | S40: =+S39 -> 0 | T40: 0 | U40: 0 | V40: 0 | W40: 0 | X40: 0 | Y40: 0 | Z40: 0 | AA40: 0 | AB40: 0 | AC40: Health and Educational benefits to existing individuals to to less overcrowding and homelessness | AE40: 125 | AF40: 2019-20 | AG40: =+VLOOKUP(AF40,'GDP Deflators'!$B$8:$C$77,2,0)/'GDP Deflators'!$C$72 -> 1 | AH40: =+AE40/AG40 -> 125 | AI40: DCLG Appraisal Guide | AK40: =+$AH40*(1+$AO$3)*C40 -> 0 | AL40: =+$AH40*(1+$AO$3)*D40 -> 0 | AM40: =+$AH40*(1+$AO$3)*E40 -> 0 | AN40: =+$AH40*(1+$AO$3)*F40 -> 0 | AO40: =+SUM(AK40:AN40) -> 0 | AP40: =+$AH40*(1+AP$3)*SUM($G40:H40) -> 0 | AQ40: =+$AH40*(1+AQ$3)*SUM($G40:I40) -> 0 | AR40: =+$AH40*(1+AR$3)*SUM($G40:J40) -> 0 | AS40: =+$AH40*(1+AS$3)*SUM($G40:K40) -> 0 | AT40: =+$AH40*(1+AT$3)*SUM($G40:L40) -> 0 | AU40: =+$AH40*(1+AU$3)*SUM($G40:M40) -> 0 | AV40: =+$AH40*(1+AV$3)*SUM($G40:N40) -> 0 | AW40: =+$AH40*(1+AW$3)*SUM($G40:O40) -> 0 | AX40: =+$AH40*(1+AX$3)*SUM($G40:P40) -> 0 | AY40: =+$AH40*(1+AY$3)*SUM($G40:Q40) -> 0 | AZ40: =+$AH40*(1+AZ$3)*SUM($G40:R40) -> 0 | BA40: =+$AH40*(1+BA$3)*SUM($G40:Y40) -> 0 | BB40: =+$AH40*(1+BB$3)*SUM($G40:Z40) -> 0 | BC40: =+$AH40*(1+BC$3)*SUM($G40:AA40) -> 0 | BD40: 0 | BF40: =+NPV(6.075%,AP40:BC40)+AO40 -> 0
B42: Transport
B43: Length of Road Resurfaced (Km) | G43: =+SUM(C43:F43) -> 0 | AB43: =+SUM(G43:AA43) -> 0 | AC43: Length of road for which maintenance works are to be completed (km). | AE43: 0 | AF43: 2019-20 | AG43: =+VLOOKUP(AF43,'GDP Deflators'!$B$8:$C$77,2,0)/'GDP Deflators'!$C$72 -> 1 | AH43: =+AE43/AG43 -> 0 | AI43: expect this to be completed via WebTag | AK43: =+$AH43*(1+$AO$3)*C43 -> 0 | AL43: =+$AH43*(1+$AO$3)*D43 -> 0 | AM43: =+$AH43*(1+$AO$3)*E43 -> 0 | AN43: =+$AH43*(1+$AO$3)*F43 -> 0 | AO43: =+SUM(AK43:AN43) -> 0 | AP43: =+$AH43*(1+AP$3)*H43 -> 0 | AQ43: 0 | AR43: 0 | AS43: 0 | AT43: 0 | AU43: 0 | AV43: 0 | AW43: 0 | AX43: 0 | AY43: 0 | AZ43: 0 | BA43: =+$AH43*(1+BA$3)*Y43 -> 0 | BB43: 0 | BC43: 0 | BD43: =+SUM(AO43:BC43) -> 0 | BF43: =+NPV(6.075%,AP43:BC43)+AO43 -> 0
B44: Length of Newly Built Road (Km) | G44: =+SUM(C44:F44) -> 0 | AB44: =+SUM(G44:AA44) -> 0 | AC44: Length of road open for public use (km). | AE44: 0 | AF44: 2019-20 | AG44: =+VLOOKUP(AF44,'GDP Deflators'!$B$8:$C$77,2,0)/'GDP Deflators'!$C$72 -> 1 | AH44: =+AE44/AG44 -> 0 | AI44: expect this to be completed via WebTag | AK44: =+$AH44*(1+$AO$3)*C44 -> 0 | AL44: 0 | AM44: 0 | AN44: 0 | AO44: =+SUM(AK44:AN44) -> 0 | AP44: 0 | AQ44: 0 | AR44: 0 | AS44: 0 | AT44: 0 | AU44: 0 | AV44: 0 | AW44: 0 | AX44: 0 | AY44: 0 | AZ44: 0 | BA44: 0 | BB44: 0 | BC44: 0 | BD44: 0 | BF44: 0
B45: Length New Cycle Ways (Km) | G45: =+SUM(C45:F45) -> 0 | AB45: =+SUM(G45:AA45) -> 0 | AC45: Length of cycle way open for public use (km). | AE45: 0 | AF45: 2019-20 | AG45: =+VLOOKUP(AF45,'GDP Deflators'!$B$8:$C$77,2,0)/'GDP Deflators'!$C$72 -> 1 | AH45: =+AE45/AG45 -> 0 | AI45: expect this to be completed via WebTag | AK45: =+$AH45*(1+$AO$3)*C45 -> 0 | AL45: 0 | AM45: 0 | AN45: 0 | AO45: =+SUM(AK45:AN45) -> 0 | AP45: 0 | AQ45: 0 | AR45: 0 | AS45: 0 | AT45: 0 | AU45: 0 | AV45: 0 | AW45: 0 | AX45: 0 | AY45: 0 | AZ45: 0 | BA45: 0 | BB45: 0 | BC45: 0 | BD45: 0 | BF45: 0
B47: Investment in walking & cycling | G47: =+SUM(C47:F47) -> 0 | AB47: =+SUM(G47:AA47) -> 0 | AC47: Total investment cost | AE47: 13 | AH47: =+AE47 -> 13 | AI47: Department for Transport, Walking and cycling: the economic benefits, 2018 | AK47: =+$AH47*(1+$AO$3)*C47 -> 0 | AL47: =+$AH47*(1+$AO$3)*D47 -> 0 | AM47: =+$AH47*(1+$AO$3)*E47 -> 0 | AN47: =+$AH47*(1+$AO$3)*F47 -> 0 | AO47: =+SUM(AK47:AN47) -> 0 | AP47: =+$AH47*(1+AP$3)*H47 -> 0 | AQ47: =+$AH47*(1+AQ$3)*I47 -> 0 | AR47: =+$AH47*(1+AR$3)*J47 -> 0 | AS47: =+$AH47*(1+AS$3)*K47 -> 0 | AT47: =+$AH47*(1+AT$3)*L47 -> 0 | AU47: =+$AH47*(1+AU$3)*M47 -> 0 | AV47: =+$AH47*(1+AV$3)*N47 -> 0 | AW47: =+$AH47*(1+AW$3)*O47 -> 0 | AX47: =+$AH47*(1+AX$3)*P47 -> 0 | AY47: =+$AH47*(1+AY$3)*Q47 -> 0 | AZ47: =+$AH47*(1+AZ$3)*R47 -> 0 | BA47: =+$AH47*(1+BA$3)*Y47 -> 0 | BB47: =+$AH47*(1+BB$3)*Z47 -> 0 | BC47: =+$AH47*(1+BC$3)*AA47 -> 0 | BD47: =+SUM(AO47:BC47) -> 0 | BF47: =+NPV(6.075%,AP47:BC47)+AO47 -> 0
B50: Skills Capital
B51: Area of new build floorspace (m2) | G51: =+SUM(C51:F51) -> 0 | AB51: =+SUM(G51:AA51) -> 0 | AE51: 0 | AF51: 2019-20 | AG51: =+VLOOKUP(AF51,'GDP Deflators'!$B$8:$C$77,2,0)/'GDP Deflators'!$C$72 -> 1 | AH51: =+AE51/AG51 -> 0 | AK51: =+$AH51*(1+$AO$3)*C51 -> 0 | AL51: =+$AH51*(1+$AO$3)*D51 -> 0 | AM51: =+$AH51*(1+$AO$3)*E51 -> 0 | AN51: =+$AH51*(1+$AO$3)*F51 -> 0 | AO51: =+SUM(AK51:AN51) -> 0 | AP51: =+$AH51*(1+AP$3)*H51 -> 0 | AQ51: 0 | AR51: 0 | AS51: 0 | AT51: 0 | AU51: 0 | AV51: 0 | AW51: 0 | AX51: 0 | AY51: 0 | AZ51: 0 | BA51: =+$AH51*(1+BA$3)*Y51 -> 0 | BB51: 0 | BC51: 0 | BD51: =+SUM(AO51:BC51) -> 0 | BF51: =+NPV(6.075%,AP51:BC51)+AO51 -> 0
B52: Area of refurbished floorspace (m2) | G52: =+SUM(C52:F52) -> 0 | AB52: =+SUM(G52:AA52) -> 0 | AE52: 0 | AF52: 2019-20 | AG52: =+VLOOKUP(AF52,'GDP Deflators'!$B$8:$C$77,2,0)/'GDP Deflators'!$C$72 -> 1 | AH52: =+AE52/AG52 -> 0 | AK52: =+$AH52*(1+$AO$3)*C52 -> 0 | AL52: 0 | AM52: 0 | AN52: 0 | AO52: =+SUM(AK52:AN52) -> 0 | AP52: 0 | AQ52: 0 | AR52: 0 | AS52: 0 | AT52: 0 | AU52: 0 | AV52: 0 | AW52: 0 | AX52: 0 | AY52: 0 | AZ52: 0 | BA52: 0 | BB52: 0 | BC52: 0 | BD52: =+SUM(AO52:BC52) -> 0 | BF52: =+NPV(6.075%,AP52:BC52)+AO52 -> 0
B53: Area of new & refurbished floorspace (m2) | C53: =+SUM(C51:C52) -> 0 | D53: =+SUM(D51:D52) -> 0 | E53: 0 | F53: 0 | G53: 0 | H53: 0 | I53: 0 | J53: 0 | K53: 0 | L53: 0 | M53: 0 | N53: 0 | O53: 0 | P53: 0 | Q53: 0 | R53: 0 | S53: =+SUM(S51:S52) -> 0 | T53: 0 | U53: 0 | V53: 0 | W53: 0 | X53: 0 | Y53: 0 | Z53: 0 | AA53: =+SUM(AA51:AA52) -> 0 | AB53: =+SUM(AB51:AB52) -> 0 | AE53: 0 | AF53: 2019-20 | AG53: =+VLOOKUP(AF53,'GDP Deflators'!$B$8:$C$77,2,0)/'GDP Deflators'!$C$72 -> 1 | AH53: =+AE53/AG53 -> 0 | AK53: =+SUM(AK51:AK52) -> 0 | AL53: 0 | AM53: 0 | AN53: 0 | AO53: 0 | AP53: 0 | AQ53: 0 | AR53: 0 | AS53: 0 | AT53: 0 | AU53: 0 | AV53: 0 | AW53: 0 | AX53: 0 | AY53: 0 | AZ53: 0 | BA53: 0 | BB53: 0 | BC53: 0 | BD53: 0 | BF53: =+SUM(BF51:BF52) -> 0
B55: Skills
B56: Number of New Learners Assisted | G56: =+SUM(C56:F56) -> 0 | AB56: =+SUM(G56:AA56) -> 0 | AE56: 0 | AF56: 2019-20 | AG56: =+VLOOKUP(AF56,'GDP Deflators'!$B$8:$C$77,2,0)/'GDP Deflators'!$C$72 -> 1 | AH56: =+AE56/AG56 -> 0 | AK56: =+$AH56*(1+$AO$3)*C56 -> 0 | AL56: =+$AH56*(1+$AO$3)*D56 -> 0 | AM56: =+$AH56*(1+$AO$3)*E56 -> 0 | AN56: =+$AH56*(1+$AO$3)*F56 -> 0 | AO56: =+SUM(AK56:AN56) -> 0 | AP56: =+$AH56*(1+AP$3)*H56 -> 0 | AQ56: 0 | AR56: 0 | AS56: 0 | AT56: 0 | AU56: 0 | AV56: 0 | AW56: 0 | AX56: 0 | AY56: 0 | AZ56: 0 | BA56: =+$AH56*(1+BA$3)*Y56 -> 0 | BB56: =+$AH56*(1+BB$3)*Z56 -> 0 | BC56: =+$AH56*(1+BC$3)*AA56 -> 0 | BD56: =+SUM(AO56:BC56) -> 0 | BF56: =+NPV(6.075%,AP56:BC56)+AO56 -> 0
B57: Qualifications Completed
B58: Level 1 qualifications completed | G58: =+SUM(C58:F58) -> 0 | AB58: =+SUM(G58:AA58) -> 0 | AE58: 0 | AF58: 2010-11 | AG58: =+VLOOKUP(AF58,'GDP Deflators'!$B$8:$C$77,2,0)/'GDP Deflators'!$C$72 -> 0.8539460365 | AH58: =+AE58/AG58 -> 0 | AI58: New Economy, Manchester | AK58: =+$AH58*(1+$AO$3)*C58 -> 0 | AL58: =+$AH58*(1+$AO$3)*D58 -> 0 | AM58: =+$AH58*(1+$AO$3)*E58 -> 0 | AN58: =+$AH58*(1+$AO$3)*F58 -> 0 | AO58: =+SUM(AK58:AN58) -> 0 | AP58: =+$AH58*(1+AP$3)*H58 -> 0 | AQ58: 0 | AR58: 0 | AS58: 0 | AT58: 0 | AU58: 0 | AV58: 0 | AW58: 0 | AX58: 0 | AY58: 0 | AZ58: 0 | BA58: =+$AH58*(1+BA$3)*Y58 -> 0 | BB58: 0 | BC58: 0 | BD58: =+SUM(AO58:BC58) -> 0 | BF58: =+NPV(6.075%,AP58:BC58)+AO58 -> 0
B59: Level 2 qualifications completed | G59: =+SUM(C59:F59) -> 0 | AB59: =+SUM(G59:AA59) -> 0 | AE59: 443 | AF59: 2010-11 | AG59: =+VLOOKUP(AF59,'GDP Deflators'!$B$8:$C$77,2,0)/'GDP Deflators'!$C$72 -> 0.8539460365 | AH59: =+AE59/AG59 -> 518.7681435 | AI59: New Economy, Manchester | AK59: =+$AH59*(1+$AO$3)*C59 -> 0 | AL59: 0 | AM59: 0 | AN59: 0 | AO59: =+SUM(AK59:AN59) -> 0 | AP59: 0 | AQ59: 0 | AR59: 0 | AS59: 0 | AT59: 0 | AU59: 0 | AV59: 0 | AW59: 0 | AX59: 0 | AY59: 0 | AZ59: 0 | BA59: 0 | BB59: 0 | BC59: 0 | BD59: =+SUM(AO59:BC59) -> 0 | BF59: =+NPV(6.075%,AP59:BC59)+AO59 -> 0
B60: Level 3 qualifications completed | G60: =+SUM(C60:F60) -> 0 | AB60: =+SUM(G60:AA60) -> 0 | AE60: 921 | AF60: 2010-11 | AG60: =+VLOOKUP(AF60,'GDP Deflators'!$B$8:$C$77,2,0)/'GDP Deflators'!$C$72 -> 0.8539460365 | AH60: =+AE60/AG60 -> 1078.522483 | AI60: New Economy, Manchester | AK60: =+$AH60*(1+$AO$3)*C60 -> 0 | AL60: 0 | AM60: 0 | AN60: 0 | AO60: =+SUM(AK60:AN60) -> 0 | AP60: 0 | AQ60: 0 | AR60: 0 | AS60: 0 | AT60: 0 | AU60: 0 | AV60: 0 | AW60: 0 | AX60: 0 | AY60: 0 | AZ60: 0 | BA60: 0 | BB60: 0 | BC60: 0 | BD60: =+SUM(AO60:BC60) -> 0 | BF60: =+NPV(6.075%,AP60:BC60)+AO60 -> 0
B61: Level 4 qualifications completed | G61: =+SUM(C61:F61) -> 0 | AB61: =+SUM(G61:AA61) -> 0 | AE61: 3125 | AF61: 2010-11 | AG61: =+VLOOKUP(AF61,'GDP Deflators'!$B$8:$C$77,2,0)/'GDP Deflators'!$C$72 -> 0.8539460365 | AH61: =+AE61/AG61 -> 3659.481825 | AI61: New Economy, Manchester | AK61: =+$AH61*(1+$AO$3)*C61 -> 0 | AL61: 0 | AM61: 0 | AN61: 0 | AO61: =+SUM(AK61:AN61) -> 0 | AP61: 0 | AQ61: 0 | AR61: 0 | AS61: 0 | AT61: 0 | AU61: 0 | AV61: 0 | AW61: 0 | AX61: 0 | AY61: 0 | AZ61: 0 | BA61: 0 | BB61: 0 | BC61: 0 | BD61: =+SUM(AO61:BC61) -> 0 | BF61: =+NPV(6.075%,AP61:BC61)+AO61 -> 0
B62: Level 5+ qualifications completed | G62: =+SUM(C62:F62) -> 0 | AB62: =+SUM(G62:AA62) -> 0 | AE62: 3125 | AF62: 2010-11 | AG62: =+VLOOKUP(AF62,'GDP Deflators'!$B$8:$C$77,2,0)/'GDP Deflators'!$C$72 -> 0.8539460365 | AH62: =+AE62/AG62 -> 3659.481825 | AI62: New Economy, Manchester | AK62: =+$AH62*(1+$AO$3)*C62 -> 0 | AL62: 0 | AM62: 0 | AN62: 0 | AO62: =+SUM(AK62:AN62) -> 0 | AP62: 0 | AQ62: 0 | AR62: 0 | AS62: 0 | AT62: 0 | AU62: 0 | AV62: 0 | AW62: 0 | AX62: 0 | AY62: 0 | AZ62: 0 | BA62: 0 | BB62: 0 | BC62: 0 | BD62: =+SUM(AO62:BC62) -> 0 | BF62: =+NPV(6.075%,AP62:BC62)+AO62 -> 0
B63: total | C63: =+SUM(C58:C62) -> 0 | D63: =+SUM(D58:D62) -> 0 | E63: 0 | F63: 0 | G63: 0 | H63: 0 | I63: 0 | J63: 0 | K63: 0 | L63: 0 | M63: 0 | N63: 0 | O63: 0 | P63: 0 | Q63: 0 | R63: 0 | S63: =+SUM(S58:S62) -> 0 | T63: 0 | U63: 0 | V63: 0 | W63: 0 | X63: 0 | Y63: 0 | Z63: 0 | AA63: =+SUM(AA58:AA62) -> 0 | AB63: =+SUM(AB58:AB62) -> 0 | AK63: =+SUM(AK58:AK62) -> 0 | AL63: 0 | AM63: 0 | AN63: 0 | AO63: 0 | AP63: 0 | AQ63: 0 | AR63: 0 | AS63: 0 | AT63: 0 | AU63: 0 | AV63: 0 | AW63: 0 | AX63: 0 | AY63: 0 | AZ63: 0 | BA63: 0 | BB63: 0 | BC63: 0 | BD63: 0 | BF63: =+SUM(BF58:BF62) -> 0
B64: Apprenticeships completed
B65: Level 1 qualifications completed | G65: =+SUM(C65:F65) -> 0 | AB65: =+SUM(G65:AA65) -> 0 | AE65: 0 | AF65: 2010-11 | AG65: =+VLOOKUP(AF65,'GDP Deflators'!$B$8:$C$77,2,0)/'GDP Deflators'!$C$72 -> 0.8539460365 | AH65: =+AE65/AG65 -> 0 | AI65: New Economy, Manchester | AK65: =+$AH65*(1+$AO$3)*C65 -> 0 | AL65: =+$AH65*(1+$AO$3)*D65 -> 0 | AM65: =+$AH65*(1+$AO$3)*E65 -> 0 | AN65: =+$AH65*(1+$AO$3)*F65 -> 0 | AO65: =+SUM(AK65:AN65) -> 0 | AP65: =+$AH65*(1+AP$3)*H65 -> 0 | AQ65: 0 | AR65: 0 | AS65: 0 | AT65: 0 | AU65: 0 | AV65: 0 | AW65: 0 | AX65: 0 | AY65: 0 | AZ65: 0 | BA65: =+$AH65*(1+BA$3)*Y65 -> 0 | BB65: 0 | BC65: 0 | BD65: =+SUM(AO65:BC65) -> 0 | BF65: =+NPV(6.075%,AP65:BC65)+AO65 -> 0
B66: Level 2 qualifications completed | G66: =+SUM(C66:F66) -> 0 | AB66: 0 | AE66: 1208 | AF66: 2010-11 | AG66: =+VLOOKUP(AF66,'GDP Deflators'!$B$8:$C$77,2,0)/'GDP Deflators'!$C$72 -> 0.8539460365 | AH66: =+AE66/AG66 -> 1414.609294 | AI66: New Economy, Manchester | AK66: =+$AH66*(1+$AO$3)*C66 -> 0 | AL66: 0 | AM66: 0 | AN66: 0 | AO66: =+SUM(AK66:AN66) -> 0 | AP66: 0 | AQ66: 0 | AR66: 0 | AS66: 0 | AT66: 0 | AU66: 0 | AV66: 0 | AW66: 0 | AX66: 0 | AY66: 0 | AZ66: 0 | BA66: 0 | BB66: 0 | BC66: 0 | BD66: =+SUM(AO66:BC66) -> 0 | BF66: =+NPV(6.075%,AP66:BC66)+AO66 -> 0
B67: Level 3 qualifications completed | G67: =+SUM(C67:F67) -> 0 | AB67: 0 | AE67: 1925 | AF67: 2010-11 | AG67: =+VLOOKUP(AF67,'GDP Deflators'!$B$8:$C$77,2,0)/'GDP Deflators'!$C$72 -> 0.8539460365 | AH67: =+AE67/AG67 -> 2254.240804 | AI67: New Economy, Manchester | AK67: =+$AH67*(1+$AO$3)*C67 -> 0 | AL67: 0 | AM67: 0 | AN67: 0 | AO67: =+SUM(AK67:AN67) -> 0 | AP67: 0 | AQ67: 0 | AR67: 0 | AS67: 0 | AT67: 0 | AU67: 0 | AV67: 0 | AW67: 0 | AX67: 0 | AY67: 0 | AZ67: 0 | BA67: 0 | BB67: 0 | BC67: 0 | BD67: =+SUM(AO67:BC67) -> 0 | BF67: =+NPV(6.075%,AP67:BC67)+AO67 -> 0
B68: Level 4 qualifications completed | G68: =+SUM(C68:F68) -> 0 | AB68: 0 | AE68: 3125 | AF68: 2010-11 | AG68: =+VLOOKUP(AF68,'GDP Deflators'!$B$8:$C$77,2,0)/'GDP Deflators'!$C$72 -> 0.8539460365 | AH68: =+AE68/AG68 -> 3659.481825 | AI68: New Economy, Manchester | AK68: =+$AH68*(1+$AO$3)*C68 -> 0 | AL68: 0 | AM68: 0 | AN68: 0 | AO68: =+SUM(AK68:AN68) -> 0 | AP68: 0 | AQ68: 0 | AR68: 0 | AS68: 0 | AT68: 0 | AU68: 0 | AV68: 0 | AW68: 0 | AX68: 0 | AY68: 0 | AZ68: 0 | BA68: 0 | BB68: 0 | BC68: 0 | BD68: =+SUM(AO68:BC68) -> 0 | BF68: =+NPV(6.075%,AP68:BC68)+AO68 -> 0
B69: Level 5+ qualifications completed | G69: =+SUM(C69:F69) -> 0 | AB69: 0 | AE69: 3125 | AF69: 2010-11 | AG69: =+VLOOKUP(AF69,'GDP Deflators'!$B$8:$C$77,2,0)/'GDP Deflators'!$C$72 -> 0.8539460365 | AH69: =+AE69/AG69 -> 3659.481825 | AI69: New Economy, Manchester | AK69: =+$AH69*(1+$AO$3)*C69 -> 0 | AL69: 0 | AM69: 0 | AN69: 0 | AO69: =+SUM(AK69:AN69) -> 0 | AP69: 0 | AQ69: 0 | AR69: 0 | AS69: 0 | AT69: 0 | AU69: 0 | AV69: 0 | AW69: 0 | AX69: 0 | AY69: 0 | AZ69: 0 | BA69: 0 | BB69: 0 | BC69: 0 | BD69: =+SUM(AO69:BC69) -> 0 | BF69: =+NPV(6.075%,AP69:BC69)+AO69 -> 0
C70: =+SUM(C65:C69) -> 0 | D70: 0 | E70: 0 | F70: 0 | G70: 0 | H70: 0 | I70: 0 | J70: 0 | K70: 0 | L70: 0 | M70: 0 | N70: 0 | O70: 0 | P70: 0 | Q70: 0 | R70: 0 | S70: =+SUM(S65:S69) -> 0 | T70: 0 | U70: 0 | V70: 0 | W70: 0 | X70: 0 | Y70: 0 | Z70: 0 | AA70: 0 | AB70: 0 | AK70: =+SUM(AK65:AK69) -> 0 | AL70: 0 | AM70: 0 | AN70: 0 | AO70: 0 | AP70: 0 | AQ70: 0 | AR70: 0 | AS70: 0 | AT70: 0 | AU70: 0 | AV70: 0 | AW70: 0 | AX70: 0 | AY70: 0 | AZ70: 0 | BA70: 0 | BB70: 0 | BC70: 0 | BD70: 0 | BF70: =+SUM(BF65:BF69) -> 0
B71: Traineeships completed | AB71: 0 | AE71: 0 | AF71: 2019-20 | AG71: =+VLOOKUP(AF71,'GDP Deflators'!$B$8:$C$77,2,0)/'GDP Deflators'!$C$72 -> 1 | AH71: =+AE71/AG71 -> 0 | BD71: =+SUM(AO71:BC71) -> 0 | BF71: =+NPV(6.075%,AP71:BC71)+AO71 -> 0
B72: Other learners supported | AB72: 0 | AE72: 0 | AF72: 2019-20 | AG72: =+VLOOKUP(AF72,'GDP Deflators'!$B$8:$C$77,2,0)/'GDP Deflators'!$C$72 -> 1 | AH72: =+AE72/AG72 -> 0 | BD72: =+SUM(AO72:BC72) -> 0 | BF72: =+NPV(6.075%,AP72:BC72)+AO72 -> 0
B75: Land & Property
B76: Area of sites reclaimed (ha) | G76: =+SUM(C76:F76) -> 0 | AB76: =+SUM(G76:AA76) -> 0 | AE76: 0 | AF76: 2019-20 | AG76: =+VLOOKUP(AF76,'GDP Deflators'!$B$8:$C$77,2,0)/'GDP Deflators'!$C$72 -> 1 | AH76: =+AE76/AG76 -> 0 | AK76: =+$AH76*(1+$AO$3)*C76 -> 0 | AL76: =+$AH76*(1+$AO$3)*D76 -> 0 | AM76: =+$AH76*(1+$AO$3)*E76 -> 0 | AN76: =+$AH76*(1+$AO$3)*F76 -> 0 | AO76: =+SUM(AK76:AN76) -> 0 | AP76: =+$AH76*(1+AP$3)*H76 -> 0 | AQ76: 0 | AR76: 0 | AS76: 0 | AT76: 0 | AU76: 0 | AV76: 0 | AW76: 0 | AX76: 0 | AY76: 0 | AZ76: 0 | BA76: =+$AH76*(1+BA$3)*Y76 -> 0 | BB76: =+$AH76*(1+BB$3)*Z76 -> 0 | BC76: =+$AH76*(1+BC$3)*AA76 -> 0 | BD76: =+SUM(AO76:BC76) -> 0 | BF76: =+NPV(6.075%,AP76:BC76)+AO76 -> 0
B78: Area of new development sites (ha)
B79: residential | G79: =+SUM(C79:F79) -> 0 | AB79: 0 | AE79: =+'Land values'!C11 -> 1945000 | AF79: 2017-18 | AG79: =+VLOOKUP(AF79,'GDP Deflators'!$B$8:$C$77,2,0)/'GDP Deflators'!$C$72 -> 0.9605302599 | AH79: =+AE79/AG79 -> 2024923.192 | AI79: Land Value estimates for policy appraisal, MoHCLG | AK79: =+$AH79*(1+$AO$3)*C79 -> 0 | AL79: =+$AH79*(1+$AO$3)*D79 -> 0 | AM79: =+$AH79*(1+$AO$3)*E79 -> 0 | AN79: =+$AH79*(1+$AO$3)*F79 -> 0 | AO79: =+SUM(AK79:AN79) -> 0 | AP79: =+$AH79*(1+AP$3)*H79 -> 0 | AQ79: 0 | AR79: 0 | AS79: 0 | AT79: 0 | AU79: 0 | AV79: 0 | AW79: 0 | AX79: 0 | AY79: 0 | AZ79: 0 | BA79: =+$AH79*(1+BA$3)*Y79 -> 0 | BB79: 0 | BC79: 0 | BD79: =+SUM(AO79:BC79) -> 0 | BF79: =+NPV(6.075%,AP79:BC79)+AO79 -> 0
B80: industrial | G80: 0 | AB80: 0 | AE80: =+'Land values'!C12 -> 440000 | AF80: 2017-18 | AG80: =+VLOOKUP(AF80,'GDP Deflators'!$B$8:$C$77,2,0)/'GDP Deflators'!$C$72 -> 0.9605302599 | AH80: =+AE80/AG80 -> 458080.3108 | AI80: Land Value estimates for policy appraisal, MoHCLG | AK80: =+$AH80*(1+$AO$3)*C80 -> 0 | AL80: 0 | AM80: 0 | AN80: 0 | AO80: =+SUM(AK80:AN80) -> 0 | AP80: 0 | AQ80: 0 | AR80: 0 | AS80: 0 | AT80: 0 | AU80: 0 | AV80: 0 | AW80: 0 | AX80: 0 | AY80: 0 | AZ80: 0 | BA80: 0 | BB80: 0 | BC80: 0 | BD80: =+SUM(AO80:BC80) -> 0 | BF80: =+NPV(6.075%,AP80:BC80)+AO80 -> 0
A81: Previous use | B81: industrial | AC81: select from the list the previous use of the land | AE81: =-VLOOKUP(B81,'Land values'!B11:C13,2,0) -> -440000 | AF81: 2017-18 | AG81: =+VLOOKUP(AF81,'GDP Deflators'!$B$8:$C$77,2,0)/'GDP Deflators'!$C$72 -> 0.9605302599 | AH81: =+AE81/AG81 -> -458080.3108 | AI81: Land Value estimates for policy appraisal, MoHCLG | AJ81: choose from list | AK81: =+$AH81*(1+$AO$3)*C81 -> 0 | AL81: 0 | AM81: 0 | AN81: 0 | AO81: =+SUM(AK81:AN81) -> 0 | AP81: 0 | AQ81: 0 | AR81: 0 | AS81: 0 | AT81: 0 | AU81: 0 | AV81: 0 | AW81: 0 | AX81: 0 | AY81: 0 | AZ81: 0 | BA81: 0 | BB81: 0 | BC81: 0 | BD81: =+SUM(AO81:BC81) -> 0 | BF81: =+NPV(6.075%,AP81:BC81)+AO81 -> 0
B83: Amenity Value of new residential land | AC83: Amenity benefit to existing individuals as a result of new development | AE83: =+VLOOKUP(B84,'Land values'!A22:B28,2,0) -> 109138 | AF83: 2016-17 | AG83: =+VLOOKUP(AF83,'GDP Deflators'!$B$8:$C$77,2,0)/'GDP Deflators'!$C$72 -> 0.9442175139 | AH83: =+AE83/AG83 -> 115585.6552 | AI83: =+AI40 -> DCLG Appraisal Guide | AJ83: choose from list | AK83: =+$AH83*(1+$AO$3)*C83 -> 0 | AL83: =+$AH83*(1+$AO$3)*D83 -> 0 | AM83: =+$AH83*(1+$AO$3)*E83 -> 0 | AN83: =+$AH83*(1+$AO$3)*F83 -> 0 | AO83: =+SUM(AK83:AN83) -> 0 | AP83: =+$AH83*(1+AP$3)*H83 -> 0 | AQ83: 0 | AR83: 0 | AS83: 0 | AT83: 0 | AU83: 0 | AV83: 0 | AW83: 0 | AX83: 0 | AY83: 0 | AZ83: 0 | BA83: =+$AH83*(1+BA$3)*Y83 -> 0 | BB83: =+$AH83*(1+BB$3)*Z83 -> 0 | BC83: =+$AH83*(1+BC$3)*AA83 -> 0 | BD83: =+SUM(AO83:BC83) -> 0 | BF83: =+NPV(6.075%,AP83:BC83)+AO83 -> 0
A84: Previous use | B84: Urban core | AC84: select from the list the previous use of the land
B86: Commercial floorspace created (m2) | C86: =+SUM(C87:C88) -> 0 | D86: =+SUM(D87:D88) -> 0 | E86: =+SUM(E87:E88) -> 0 | F86: =+SUM(F87:F88) -> 0 | G86: 0 | H86: =+SUM(H87:H88) -> 0 | I86: 0 | J86: 0 | K86: 0 | L86: 0 | M86: 0 | N86: 0 | O86: 0 | P86: 0 | Q86: 0 | R86: 0 | S86: =+SUM(S87:S88) -> 0 | T86: 0 | U86: 0 | V86: 0 | W86: 0 | X86: 0 | Y86: 0 | Z86: 0 | AA86: 0 | AB86: 0 | AC86: please ensure jobs created or safeguarded / skills outputs are completed above | AK86: =+SUM(AK87:AK88) -> 0 | AL86: =+SUM(AL87:AL88) -> 0 | AM86: 0 | AN86: 0 | AO86: 0 | AP86: 0 | AQ86: 0 | AR86: 0 | AS86: 0 | AT86: 0 | AU86: 0 | AV86: 0 | AW86: 0 | AX86: 0 | AY86: 0 | AZ86: 0 | BA86: 0 | BB86: 0 | BC86: 0 | BD86: 0 | BF86: =+NPV(6.075%,AP86:BC86)+AO86 -> 0
B87: town centre | G87: 0 | AB87: 0 | AE87: =VLOOKUP(Summary!$B$11,'Land values'!$A$3:$F$5,4,0)/4830.9 -> 91.080337 | AF87: 2017-18 | AG87: =+VLOOKUP(AF87,'GDP Deflators'!$B$8:$C$77,2,0)/'GDP Deflators'!$C$72 -> 0.9605302599 | AH87: =+AE87/AG87 -> 94.82297519 | AI87: Land Value estimates for policy appraisal, MoHCLG | AK87: =+$AH87*(1+$AO$3)*C87 -> 0 | AL87: =+$AH87*(1+$AO$3)*D87 -> 0 | AM87: =+$AH87*(1+$AO$3)*E87 -> 0 | AN87: =+$AH87*(1+$AO$3)*F87 -> 0 | AO87: =+SUM(AK87:AN87) -> 0 | AP87: =+$AH87*(1+AP$3)*H87 -> 0 | AQ87: =+$AH87*(1+AQ$3)*I87 -> 0 | AR87: =+$AH87*(1+AR$3)*J87 -> 0 | AS87: =+$AH87*(1+AS$3)*K87 -> 0 | AT87: =+$AH87*(1+AT$3)*L87 -> 0 | AU87: =+$AH87*(1+AU$3)*M87 -> 0 | AV87: =+$AH87*(1+AV$3)*N87 -> 0 | AW87: =+$AH87*(1+AW$3)*O87 -> 0 | AX87: =+$AH87*(1+AX$3)*P87 -> 0 | AY87: =+$AH87*(1+AY$3)*Q87 -> 0 | AZ87: =+$AH87*(1+AZ$3)*R87 -> 0 | BA87: =+$AH87*(1+BA$3)*Y87 -> 0 | BB87: =+$AH87*(1+BB$3)*Z87 -> 0 | BC87: =+$AH87*(1+BC$3)*AA87 -> 0 | BD87: =+SUM(AO87:BC87) -> 0 | BF87: =+NPV(6.075%,AP87:BC87)+AO87 -> 0
B88: out of town | G88: 0 | AB88: 0 | AE88: =VLOOKUP(Summary!$B$11,'Land values'!$A$3:$F$5,5,0)/4830.9 -> 179.0556625 | AF88: 2017-18 | AG88: =+VLOOKUP(AF88,'GDP Deflators'!$B$8:$C$77,2,0)/'GDP Deflators'!$C$72 -> 0.9605302599 | AH88: =+AE88/AG88 -> 186.4133489 | AI88: Land Value estimates for policy appraisal, MoHCLG | AK88: =+$AH88*(1+$AO$3)*C88 -> 0 | AL88: 0 | AM88: 0 | AN88: 0 | AO88: =+SUM(AK88:AN88) -> 0 | AP88: 0 | AQ88: 0 | AR88: 0 | AS88: 0 | AT88: 0 | AU88: 0 | AV88: 0 | AW88: 0 | AX88: 0 | AY88: 0 | AZ88: 0 | BA88: 0 | BB88: 0 | BC88: 0 | BD88: =+SUM(AO88:BC88) -> 0 | BF88: =+NPV(6.075%,AP88:BC88)+AO88 -> 0
B90: Commercial floorspace refurbished (m2) | C90: =+SUM(C91:C92) -> 0 | D90: =+SUM(D91:D92) -> 0 | E90: =+SUM(E91:E92) -> 0 | F90: =+SUM(F91:F92) -> 0 | G90: 0 | H90: =+SUM(H91:H92) -> 0 | I90: 0 | J90: 0 | K90: 0 | L90: 0 | M90: 0 | N90: 0 | O90: 0 | P90: 0 | Q90: 0 | R90: 0 | S90: =+SUM(S91:S92) -> 0 | T90: 0 | U90: 0 | V90: 0 | W90: 0 | X90: 0 | Y90: 0 | Z90: 0 | AB90: 0 | AC90: =+AC86 -> please ensure jobs created or safeguarded / skills outputs are completed above | AK90: =+SUM(AK91:AK92) -> 0 | AL90: =+SUM(AL91:AL92) -> 0 | AM90: 0 | AN90: 0 | AO90: 0 | AP90: 0 | AQ90: 0 | AR90: 0 | AS90: 0 | AT90: 0 | AU90: 0 | AV90: 0 | AW90: 0 | AX90: 0 | AY90: 0 | AZ90: 0 | BA90: 0 | BB90: 0 | BC90: 0 | BD90: 0 | BF90: =+NPV(6.075%,AP90:BC90)+AO90 -> 0
B91: town centre | G91: 0 | AB91: 0 | AE91: 0 | AF91: 2017-18 | AG91: =+VLOOKUP(AF91,'GDP Deflators'!$B$8:$C$77,2,0)/'GDP Deflators'!$C$72 -> 0.9605302599 | AH91: =+AE91/AG91 -> 0 | AK91: =+$AH91*(1+$AO$3)*C91 -> 0 | AL91: =+$AH91*(1+$AO$3)*D91 -> 0 | AM91: =+$AH91*(1+$AO$3)*E91 -> 0 | AN91: =+$AH91*(1+$AO$3)*F91 -> 0 | AO91: =+SUM(AK91:AN91) -> 0 | AP91: =+$AH91*(1+AP$3)*H91 -> 0 | AQ91: =+$AH91*(1+AQ$3)*I91 -> 0 | AR91: =+$AH91*(1+AR$3)*J91 -> 0 | AS91: =+$AH91*(1+AS$3)*K91 -> 0 | AT91: =+$AH91*(1+AT$3)*L91 -> 0 | AU91: =+$AH91*(1+AU$3)*M91 -> 0 | AV91: =+$AH91*(1+AV$3)*N91 -> 0 | AW91: =+$AH91*(1+AW$3)*O91 -> 0 | AX91: =+$AH91*(1+AX$3)*P91 -> 0 | AY91: =+$AH91*(1+AY$3)*Q91 -> 0 | AZ91: =+$AH91*(1+AZ$3)*R91 -> 0 | BA91: =+$AH91*(1+BA$3)*Y91 -> 0 | BB91: =+$AH91*(1+BB$3)*Z91 -> 0 | BC91: =+$AH91*(1+BC$3)*AA91 -> 0 | BD91: =+SUM(AO91:BC91) -> 0 | BF91: =+NPV(6.075%,AP91:BC91)+AO91 -> 0
B92: out of town | G92: 0 | H92: 0 | AB92: 0 | AE92: 0 | AF92: 2017-18 | AG92: =+VLOOKUP(AF92,'GDP Deflators'!$B$8:$C$77,2,0)/'GDP Deflators'!$C$72 -> 0.9605302599 | AH92: =+AE92/AG92 -> 0 | AK92: =+$AH92*(1+$AO$3)*C92 -> 0 | AL92: 0 | AM92: 0 | AN92: 0 | AO92: =+SUM(AK92:AN92) -> 0 | AP92: 0 | AQ92: 0 | AR92: 0 | AS92: 0 | AT92: 0 | AU92: 0 | AV92: 0 | AW92: 0 | AX92: 0 | AY92: 0 | AZ92: 0 | BA92: 0 | BB92: 0 | BC92: 0 | BD92: =+SUM(AO92:BC92) -> 0 | BF92: =+NPV(6.075%,AP92:BC92)+AO92 -> 0
B94: Commercial floorspace occupied (m2) | C94: =+SUM(C95:C96) -> 0 | D94: =+SUM(D95:D96) -> 0 | E94: =+SUM(E95:E96) -> 0 | F94: =+SUM(F95:F96) -> 0 | G94: 0 | H94: =+SUM(H95:H96) -> 0 | I94: 400 | J94: 400 | K94: 400 | L94: 0 | M94: 0 | N94: 0 | O94: 0 | P94: 0 | Q94: 0 | R94: 0 | S94: =+SUM(S95:S96) -> 0 | T94: 0 | U94: 0 | V94: 0 | W94: 0 | X94: 0 | Y94: 0 | Z94: 0 | AA94: 0 | AB94: 1200 | AC94: =+AC86 -> please ensure jobs created or safeguarded / skills outputs are completed above | AK94: =+SUM(AK95:AK96) -> 0 | AL94: 0 | AM94: 0 | AN94: 0 | AO94: 0 | AP94: 0 | AQ94: 0 | AR94: 0 | AS94: 0 | AT94: 0 | AU94: 0 | AV94: 0 | AW94: 0 | AX94: 0 | AY94: 0 | AZ94: 0 | BA94: 0 | BB94: 0 | BC94: 0 | BD94: 0 | BF94: =+NPV(6.075%,AP94:BC94)+AO94 -> 0
B95: town centre | G95: 0 | AB95: 0 | AE95: 0 | AF95: 2017-18 | AG95: =+VLOOKUP(AF95,'GDP Deflators'!$B$8:$C$77,2,0)/'GDP Deflators'!$C$72 -> 0.9605302599 | AH95: =+AE95/AG95 -> 0 | AK95: =+$AH95*(1+$AO$3)*C95 -> 0 | AL95: =+$AH95*(1+$AO$3)*D95 -> 0 | AM95: =+$AH95*(1+$AO$3)*E95 -> 0 | AN95: =+$AH95*(1+$AO$3)*F95 -> 0 | AO95: =+SUM(AK95:AN95) -> 0 | AP95: =+$AH95*(1+AP$3)*H95 -> 0 | AQ95: =+$AH95*(1+AQ$3)*I95 -> 0 | AR95: =+$AH95*(1+AR$3)*J95 -> 0 | AS95: =+$AH95*(1+AS$3)*K95 -> 0 | AT95: =+$AH95*(1+AT$3)*L95 -> 0 | AU95: =+$AH95*(1+AU$3)*M95 -> 0 | AV95: =+$AH95*(1+AV$3)*N95 -> 0 | AW95: =+$AH95*(1+AW$3)*O95 -> 0 | AX95: =+$AH95*(1+AX$3)*P95 -> 0 | AY95: =+$AH95*(1+AY$3)*Q95 -> 0 | AZ95: =+$AH95*(1+AZ$3)*R95 -> 0 | BA95: =+$AH95*(1+BA$3)*Y95 -> 0 | BB95: =+$AH95*(1+BB$3)*Z95 -> 0 | BC95: =+$AH95*(1+BC$3)*AA95 -> 0 | BD95: =+SUM(AO95:BC95) -> 0 | BF95: =+NPV(6.075%,AP95:BC95)+AO95 -> 0
B96: out of town | G96: 0 | AB96: 0 | AE96: 0 | AF96: 2017-18 | AG96: =+VLOOKUP(AF96,'GDP Deflators'!$B$8:$C$77,2,0)/'GDP Deflators'!$C$72 -> 0.9605302599 | AH96: =+AE96/AG96 -> 0 | AK96: =+$AH96*(1+$AO$3)*C96 -> 0 | AL96: 0 | AM96: 0 | AN96: 0 | AO96: =+SUM(AK96:AN96) -> 0 | AP96: 0 | AQ96: 0 | AR96: 0 | AS96: 0 | AT96: 0 | AU96: 0 | AV96: 0 | AW96: 0 | AX96: 0 | AY96: 0 | AZ96: 0 | BA96: 0 | BB96: 0 | BC96: 0 | BD96: =+SUM(AO96:BC96) -> 0 | BF96: =+NPV(6.075%,AP96:BC96)+AO96 -> 0
B98: Number of additional commercial properties with broadband access | G98: 0 | AB98: 0 | AC98: =+AC86 -> please ensure jobs created or safeguarded / skills outputs are completed above | AE98: 0 | AF98: 2017-18 | AG98: =+VLOOKUP(AF98,'GDP Deflators'!$B$8:$C$77,2,0)/'GDP Deflators'!$C$72 -> 0.9605302599 | AH98: =+AE98/AG98 -> 0 | AK98: =+$AH98*(1+$AO$3)*C98 -> 0 | AL98: =+$AH98*(1+$AO$3)*D98 -> 0 | AM98: =+$AH98*(1+$AO$3)*E98 -> 0 | AN98: =+$AH98*(1+$AO$3)*F98 -> 0 | AO98: =+SUM(AK98:AN98) -> 0 | AP98: =+$AH98*(1+AP$3)*H98 -> 0 | AQ98: =+$AH98*(1+AQ$3)*I98 -> 0 | AR98: =+$AH98*(1+AR$3)*J98 -> 0 | AS98: =+$AH98*(1+AS$3)*K98 -> 0 | AT98: =+$AH98*(1+AT$3)*L98 -> 0 | AU98: =+$AH98*(1+AU$3)*M98 -> 0 | AV98: =+$AH98*(1+AV$3)*N98 -> 0 | AW98: =+$AH98*(1+AW$3)*O98 -> 0 | AX98: =+$AH98*(1+AX$3)*P98 -> 0 | AY98: =+$AH98*(1+AY$3)*Q98 -> 0 | AZ98: =+$AH98*(1+AZ$3)*R98 -> 0 | BA98: =+$AH98*(1+BA$3)*Y98 -> 0 | BB98: =+$AH98*(1+BB$3)*Z98 -> 0 | BC98: =+$AH98*(1+BC$3)*AA98 -> 0 | BD98: =+SUM(AO98:BC98) -> 0 | BF98: =+NPV(6.075%,AP98:BC98)+AO98 -> 0
B101: Flood Risk
B102: Area of land with reduced liklihood of flooding (ha) | G102: =+SUM(C102:F102) -> 0 | AB102: =+SUM(G102:AA102) -> 0 | AC102: Area of land with a reduced likelihood of flooding as a result of the project | AE102: 0 | AF102: 2019-20 | AG102: =+VLOOKUP(AF102,'GDP Deflators'!$B$8:$C$77,2,0)/'GDP Deflators'!$C$72 -> 1 | AH102: =+AE102/AG102 -> 0 | AI102: expect this to be completed via EA | AK102: =+$AH102*(1+$AO$3)*C102 -> 0 | AL102: =+$AH102*(1+$AO$3)*D102 -> 0 | AM102: =+$AH102*(1+$AO$3)*E102 -> 0 | AN102: =+$AH102*(1+$AO$3)*F102 -> 0 | AO102: =+SUM(AK102:AN102) -> 0 | AP102: =+$AH102*(1+AP$3)*H102 -> 0 | AQ102: =+$AH102*(1+AQ$3)*I102 -> 0 | AR102: =+$AH102*(1+AR$3)*J102 -> 0 | AS102: =+$AH102*(1+AS$3)*K102 -> 0 | AT102: =+$AH102*(1+AT$3)*L102 -> 0 | AU102: =+$AH102*(1+AU$3)*M102 -> 0 | AV102: =+$AH102*(1+AV$3)*N102 -> 0 | AW102: =+$AH102*(1+AW$3)*O102 -> 0 | AX102: =+$AH102*(1+AX$3)*P102 -> 0 | AY102: =+$AH102*(1+AY$3)*Q102 -> 0 | AZ102: =+$AH102*(1+AZ$3)*R102 -> 0 | BA102: =+$AH102*(1+BA$3)*Y102 -> 0 | BB102: =+$AH102*(1+BB$3)*Z102 -> 0 | BC102: =+$AH102*(1+BC$3)*AA102 -> 0 | BD102: =+SUM(AO102:BC102) -> 0 | BF102: =+NPV(6.075%,AP102:BC102)+AO102 -> 0
B103: Number of domestic properties with reduced liklihood of flooding | G103: =+SUM(C103:F103) -> 0 | AB103: =+SUM(G103:AA103) -> 0 | AC103: Number of homes with a reduced likelihood of flooding as a result of the project | AE103: 0 | AF103: 2019-20 | AG103: =+VLOOKUP(AF103,'GDP Deflators'!$B$8:$C$77,2,0)/'GDP Deflators'!$C$72 -> 1 | AH103: =+AE103/AG103 -> 0 | AI103: expect this to be completed via EA | AK103: =+$AH103*(1+$AO$3)*C103 -> 0 | AL103: 0 | AM103: 0 | AN103: 0 | AO103: =+SUM(AK103:AN103) -> 0 | AP103: 0 | AQ103: 0 | AR103: 0 | AS103: 0 | AT103: 0 | AU103: 0 | AV103: 0 | AW103: 0 | AX103: 0 | AY103: 0 | AZ103: 0 | BA103: 0 | BB103: 0 | BC103: 0 | BD103: =+SUM(AO103:BC103) -> 0 | BF103: =+NPV(6.075%,AP103:BC103)+AO103 -> 0
B104: Number of commercial units with reduced liklihood of flooding | G104: =+SUM(C104:F104) -> 0 | AB104: =+SUM(G104:AA104) -> 0 | AC104: Number of commercial units with a reduced likelihood of flooding as a result of the project | AE104: 0 | AF104: 2019-20 | AG104: =+VLOOKUP(AF104,'GDP Deflators'!$B$8:$C$77,2,0)/'GDP Deflators'!$C$72 -> 1 | AH104: =+AE104/AG104 -> 0 | AI104: expect this to be completed via EA | AK104: =+$AH104*(1+$AO$3)*C104 -> 0 | AL104: 0 | AM104: 0 | AN104: 0 | AO104: =+SUM(AK104:AN104) -> 0 | AP104: 0 | AQ104: 0 | AR104: 0 | AS104: 0 | AT104: 0 | AU104: 0 | AV104: 0 | AW104: 0 | AX104: 0 | AY104: 0 | AZ104: 0 | BA104: 0 | BB104: 0 | BC104: 0 | BD104: =+SUM(AO104:BC104) -> 0 | BF104: =+NPV(6.075%,AP104:BC104)+AO104 -> 0
B106: Business & Enterprise | AC106: =+AC86 -> please ensure jobs created or safeguarded / skills outputs are completed above
B107: Number of enterprises receiving grant support | G107: =+SUM(C107:F107) -> 0 | AB107: =+SUM(G107:AA107) -> 0 | AC107: Number of SMEs receiving grant funding support with the intention of improving performance (i.e. reduce costs, increase turnover/profit, innovation, exporting). To be counted where the support is at least £1,000. | AE107: 0 | AF107: 2019-20 | AG107: =+VLOOKUP(AF107,'GDP Deflators'!$B$8:$C$77,2,0)/'GDP Deflators'!$C$72 -> 1 | AH107: =+AE107/AG107 -> 0 | AK107: =+$AH107*(1+$AO$3)*C107 -> 0 | AL107: =+$AH107*(1+$AO$3)*D107 -> 0 | AM107: =+$AH107*(1+$AO$3)*E107 -> 0 | AN107: =+$AH107*(1+$AO$3)*F107 -> 0 | AO107: =+SUM(AK107:AN107) -> 0 | AP107: =+$AH107*(1+AP$3)*H107 -> 0 | AQ107: =+$AH107*(1+AQ$3)*I107 -> 0 | AR107: =+$AH107*(1+AR$3)*J107 -> 0 | AS107: =+$AH107*(1+AS$3)*K107 -> 0 | AT107: =+$AH107*(1+AT$3)*L107 -> 0 | AU107: =+$AH107*(1+AU$3)*M107 -> 0 | AV107: =+$AH107*(1+AV$3)*N107 -> 0 | AW107: =+$AH107*(1+AW$3)*O107 -> 0 | AX107: =+$AH107*(1+AX$3)*P107 -> 0 | AY107: =+$AH107*(1+AY$3)*Q107 -> 0 | AZ107: =+$AH107*(1+AZ$3)*R107 -> 0 | BA107: =+$AH107*(1+BA$3)*Y107 -> 0 | BB107: =+$AH107*(1+BB$3)*Z107 -> 0 | BC107: =+$AH107*(1+BC$3)*AA107 -> 0 | BD107: =+SUM(AO107:BC107) -> 0 | BF107: =+NPV(6.075%,AP107:BC107)+AO107 -> 0
B108: Number of enterprises receiving financial support other than grants | G108: =+SUM(C108:F108) -> 0 | AB108: =+SUM(G108:AA108) -> 0 | AC108: Number of SMEs receiving funding support in the form of equity or repayable loan instruments with the intention of improving performance (i.e. reduce costs, increase turnover/profit, innovation, exporting). Counted where amount of support is at least £1,000. | AE108: 0 | AF108: 2019-20 | AG108: =+VLOOKUP(AF108,'GDP Deflators'!$B$8:$C$77,2,0)/'GDP Deflators'!$C$72 -> 1 | AH108: =+AE108/AG108 -> 0 | AK108: =+$AH108*(1+$AO$3)*C108 -> 0 | AL108: 0 | AM108: 0 | AN108: 0 | AO108: =+SUM(AK108:AN108) -> 0 | AP108: 0 | AQ108: 0 | AR108: 0 | AS108: 0 | AT108: 0 | AU108: 0 | AV108: 0 | AW108: 0 | AX108: 0 | AY108: 0 | AZ108: 0 | BA108: 0 | BB108: 0 | BC108: 0 | BD108: =+SUM(AO108:BC108) -> 0 | BF108: =+NPV(6.075%,AP108:BC108)+AO108 -> 0
B109: Number of enterprises receiving non financial support | G109: =+SUM(C109:F109) -> 0 | AB109: =+SUM(G109:AA109) -> 0 | AC109: Number of SMEs receiving support (inc. advice and training) with the intention of improving performance (i.e. reduce costs, increase turnover/profit, innovation, exporting). Value of the support should be a minimum of £1,000, calculated at Gross Grant Equivalent (see ERDF guidance) or a minimum of 2 days of consulting advice | AE109: 0 | AF109: 2019-20 | AG109: =+VLOOKUP(AF109,'GDP Deflators'!$B$8:$C$77,2,0)/'GDP Deflators'!$C$72 -> 1 | AH109: =+AE109/AG109 -> 0 | AK109: =+$AH109*(1+$AO$3)*C109 -> 0 | AL109: 0 | AM109: 0 | AN109: 0 | AO109: =+SUM(AK109:AN109) -> 0 | AP109: 0 | AQ109: 0 | AR109: 0 | AS109: 0 | AT109: 0 | AU109: 0 | AV109: 0 | AW109: 0 | AX109: 0 | AY109: 0 | AZ109: 0 | BA109: 0 | BB109: 0 | BC109: 0 | BD109: =+SUM(AO109:BC109) -> 0 | BF109: =+NPV(6.075%,AP109:BC109)+AO109 -> 0
A112: These boxes allow you to insert your own outputs and value them. However please discuss these with the relevant ERYC officer before inclusion in this form. | B112: Other outputs
B113: Community Space (D1 & D2 uses) Sqm | G113: =+SUM(C113:F113) -> 0 | AB113: =+SUM(G113:AA113) -> 0 | AE113: 91 | AF113: 2017-18 | AG113: =+VLOOKUP(AF113,'GDP Deflators'!$B$8:$C$77,2,0)/'GDP Deflators'!$C$72 -> 0.9605302599 | AH113: =+AE113/AG113 -> 94.73933701 | AI113: Land Value estimates for policy appraisal, MoHCLG | AK113: =+$AH113*(1+$AO$3)*C113 -> 0 | AL113: =+$AH113*(1+$AO$3)*D113 -> 0 | AM113: =+$AH113*(1+$AO$3)*E113 -> 0 | AN113: =+$AH113*(1+$AO$3)*F113 -> 0 | AO113: =+SUM(AK113:AN113) -> 0 | AP113: =+$AH113*(1+AP$3)*H113 -> 0 | AQ113: =+$AH113*(1+AQ$3)*I113 -> 0 | AR113: =+$AH113*(1+AR$3)*J113 -> 0 | AS113: =+$AH113*(1+AS$3)*K113 -> 0 | AT113: =+$AH113*(1+AT$3)*L113 -> 0 | AU113: =+$AH113*(1+AU$3)*M113 -> 0 | AV113: =+$AH113*(1+AV$3)*N113 -> 0 | AW113: =+$AH113*(1+AW$3)*O113 -> 0 | AX113: =+$AH113*(1+AX$3)*P113 -> 0 | AY113: =+$AH113*(1+AY$3)*Q113 -> 0 | AZ113: =+$AH113*(1+AZ$3)*R113 -> 0 | BA113: =+$AH113*(1+BA$3)*Y113 -> 0 | BB113: =+$AH113*(1+BB$3)*Z113 -> 0 | BC113: =+$AH113*(1+BC$3)*AA113 -> 0 | BD113: =+SUM(AO113:BC113) -> 0 | BF113: =+NPV(6.075%,AP113:BC113)+AO113 -> 0
B116: uplift in business rates | G116: =+SUM(C116:F116) -> 0 | AB116: =+SUM(G116:AA116) -> 0 | AE116: 1 | AF116: 2019-20 | AG116: =+VLOOKUP(AF116,'GDP Deflators'!$B$8:$C$77,2,0)/'GDP Deflators'!$C$72 -> 1 | AH116: 1 | AK116: 0 | AL116: 0 | AM116: 0 | AN116: 0 | AO116: 0 | AP116: 0 | AQ116: 0 | AR116: 0 | AS116: 0 | AT116: 0 | AU116: 0 | AV116: 0 | AW116: 0 | AX116: 0 | AY116: 0 | AZ116: 0 | BA116: 0 | BB116: 0 | BC116: 0 | BD116: 0 | BF116: 0
B117: please list | G117: =+SUM(C117:F117) -> 0 | AB117: =+SUM(G117:AA117) -> 0 | AE117: 0 | AF117: 2019-20 | AG117: =+VLOOKUP(AF117,'GDP Deflators'!$B$8:$C$77,2,0)/'GDP Deflators'!$C$72 -> 1 | AH117: 0 | AK117: 0 | AL117: 0 | AM117: 0 | AN117: 0 | AO117: 0 | AP117: 0 | AQ117: 0 | AR117: 0 | AS117: 0 | AT117: 0 | AU117: 0 | AV117: 0 | AW117: 0 | AX117: 0 | AY117: 0 | AZ117: 0 | BA117: 0 | BB117: 0 | BC117: 0 | BD117: 0 | BF117: 0
B118: please list | G118: =+SUM(C118:F118) -> 0 | AB118: =+SUM(G118:AA118) -> 0 | AE118: 0 | AF118: 2019-20 | AG118: =+VLOOKUP(AF118,'GDP Deflators'!$B$8:$C$77,2,0)/'GDP Deflators'!$C$72 -> 1 | AH118: 0 | AK118: 0 | AL118: 0 | AM118: 0 | AN118: 0 | AO118: 0 | AP118: 0 | AQ118: 0 | AR118: 0 | AS118: 0 | AT118: 0 | AU118: 0 | AV118: 0 | AW118: 0 | AX118: 0 | AY118: 0 | AZ118: 0 | BA118: 0 | BB118: 0 | BC118: 0 | BD118: 0 | BF118: 0
B119: please list | G119: 0 | AB119: 0 | AE119: 0 | AF119: 2019-20 | AG119: =+VLOOKUP(AF119,'GDP Deflators'!$B$8:$C$77,2,0)/'GDP Deflators'!$C$72 -> 1 | AH119: 0 | AK119: 0 | AL119: 0 | AM119: 0 | AN119: 0 | AO119: 0 | AP119: 0 | AQ119: 0 | AR119: 0 | AS119: 0 | AT119: 0 | AU119: 0 | AV119: 0 | AW119: 0 | AX119: 0 | AY119: 0 | AZ119: 0 | BA119: 0 | BB119: 0 | BC119: 0 | BD119: 0 | BF119: 0
B120: please list | G120: 0 | AB120: 0 | AE120: 0 | AF120: 2019-20 | AG120: =+VLOOKUP(AF120,'GDP Deflators'!$B$8:$C$77,2,0)/'GDP Deflators'!$C$72 -> 1 | AH120: 0 | AK120: 0 | AL120: 0 | AM120: 0 | AN120: 0 | AO120: 0 | AP120: 0 | AQ120: 0 | AR120: 0 | AS120: 0 | AT120: 0 | AU120: 0 | AV120: 0 | AW120: 0 | AX120: 0 | AY120: 0 | AZ120: 0 | BA120: 0 | BB120: 0 | BC120: 0 | BD120: 0 | BF120: 0
B121: please list | G121: 0 | AB121: 0 | AE121: 0 | AF121: 2019-20 | AG121: =+VLOOKUP(AF121,'GDP Deflators'!$B$8:$C$77,2,0)/'GDP Deflators'!$C$72 -> 1 | AH121: =+AE121/AG121 -> 0 | AK121: =+$AH121*(1+$AO$3)*C121 -> 0 | AL121: =+$AH121*(1+$AO$3)*D121 -> 0 | AM121: =+$AH121*(1+$AO$3)*E121 -> 0 | AN121: =+$AH121*(1+$AO$3)*F121 -> 0 | AO121: =+SUM(AK121:AN121) -> 0 | AP121: =+$AH121*(1+AP$3)*H121 -> 0 | AQ121: =+$AH121*(1+AQ$3)*I121 -> 0 | AR121: =+$AH121*(1+AR$3)*J121 -> 0 | AS121: =+$AH121*(1+AS$3)*K121 -> 0 | AT121: =+$AH121*(1+AT$3)*L121 -> 0 | AU121: =+$AH121*(1+AU$3)*M121 -> 0 | AV121: =+$AH121*(1+AV$3)*N121 -> 0 | AW121: =+$AH121*(1+AW$3)*O121 -> 0 | AX121: =+$AH121*(1+AX$3)*P121 -> 0 | AY121: =+$AH121*(1+AY$3)*Q121 -> 0 | AZ121: =+$AH121*(1+AZ$3)*R121 -> 0 | BA121: =+$AH121*(1+BA$3)*Y121 -> 0 | BB121: =+$AH121*(1+BB$3)*Z121 -> 0 | BC121: =+$AH121*(1+BC$3)*AA121 -> 0 | BD121: =+SUM(AO121:BC121) -> 0 | BF121: =+NPV(6.075%,AP121:BC121)+AO121 -> 0
B122: please list | G122: 0 | AB122: 0 | AE122: 0 | AF122: 2019-20 | AG122: =+VLOOKUP(AF122,'GDP Deflators'!$B$8:$C$77,2,0)/'GDP Deflators'!$C$72 -> 1 | AH122: 0 | AK122: =+$AH122*(1+$AO$3)*C122 -> 0 | AL122: 0 | AM122: 0 | AN122: 0 | AO122: =+SUM(AK122:AN122) -> 0 | AP122: 0 | AQ122: 0 | AR122: 0 | AS122: 0 | AT122: 0 | AU122: 0 | AV122: 0 | AW122: 0 | AX122: 0 | AY122: 0 | AZ122: 0 | BA122: 0 | BB122: 0 | BC122: 0 | BD122: =+SUM(AO122:BC122) -> 0 | BF122: =+NPV(6.075%,AP122:BC122)+AO122 -> 0
B123: please list | G123: =+SUM(C123:F123) -> 0 | AB123: =+SUM(G123:AA123) -> 0 | AE123: 0 | AF123: 2019-20 | AG123: =+VLOOKUP(AF123,'GDP Deflators'!$B$8:$C$77,2,0)/'GDP Deflators'!$C$72 -> 1 | AH123: 0 | AK123: =+$AH123*(1+$AO$3)*C123 -> 0 | AL123: 0 | AM123: 0 | AN123: 0 | AO123: =+SUM(AK123:AN123) -> 0 | AP123: 0 | AQ123: 0 | AR123: 0 | AS123: 0 | AT123: 0 | AU123: 0 | AV123: 0 | AW123: 0 | AX123: 0 | AY123: 0 | AZ123: 0 | BA123: 0 | BB123: 0 | BC123: 0 | BD123: =+SUM(AO123:BC123) -> 0 | BF123: =+NPV(6.075%,AP123:BC123)+AO123 -> 0
B124: please list | G124: =+SUM(C124:F124) -> 0 | AB124: =+SUM(G124:AA124) -> 0 | AE124: 0 | AF124: 2019-20 | AG124: =+VLOOKUP(AF124,'GDP Deflators'!$B$8:$C$77,2,0)/'GDP Deflators'!$C$72 -> 1 | AH124: 0 | AK124: =+$AH124*(1+$AO$3)*C124 -> 0 | AL124: 0 | AM124: 0 | AN124: 0 | AO124: =+SUM(AK124:AN124) -> 0 | AP124: 0 | AQ124: 0 | AR124: 0 | AS124: 0 | AT124: 0 | AU124: 0 | AV124: 0 | AW124: 0 | AX124: 0 | AY124: 0 | AZ124: 0 | BA124: 0 | BB124: 0 | BC124: 0 | BD124: =+SUM(AO124:BC124) -> 0 | BF124: =+NPV(6.075%,AP124:BC124)+AO124 -> 0
AC131: Communities and Local Government (2010) Valuing the Benefits of Regeneration
AC132: Potential additional benefits

Sheet Risk Register
M1: Action Status (RAG) | Q1: Action Status (RAG)
G2: Risk Register | M2: R | N2: No plans/not started or actions not working. Still at Significant Risk
M3: A | N3: Plans behind schedule. Still at Some Risk
M4: G | N4: Plans on track. Risk being controlled
P5: 1 | Q5: 2
G6: =Summary!B8 -> Project name as it appears on your main business case/expression of interest form: | Q6: 1
A8: Risk Ref No. | B8: 5 Case Guidance cat. | C8: Risk Description | D8: Risk Owner | E8: Date Identified | F8: Date Last Review | G8: Impact (I) | H8: Likelihood | I8: Risk Score (I x L) | J8: Existing Controls | K8: Additional Treatment Actions | L8: Date Action Due | M8: Action Status (R, A or G) | N8: Action Owner | O8: Comments
B9: choose from list - see below for explanations of each category | C9: There are three parts (a,b,c) to naming a risk - a) Failure of…, lack of…, development of… b) Leads to… c) Resulting in… | G9: choose from list - see below for explanations of each category | I9: calculates & colours automatically | J9: The likelihood and impact of the risks need to be considered after the existing internal controls have been evaluated as to their effectiveness. | K9: These are actions which are planned for the future and once implemented these will become part of the "existing controls." | M9: enter R, A or G | N9: The Action Owner is nominated by the Risk Owner and is responsible for the on-going and progress reporting of the action.
B10: Availability and performance risk | G10: Insignificant | H10: Rare | I10: =VLOOKUP($G10,$G$41:$H$45,2,FALSE)*VLOOKUP($H10,$G$47:$H$51,2,FALSE) -> 1 | M10: G
I11: =VLOOKUP($G11,$G$41:$H$45,2,FALSE)*VLOOKUP($H11,$G$47:$H$51,2,FALSE) ->  | M11: G
I12: =VLOOKUP($G12,$G$41:$H$45,2,FALSE)*VLOOKUP($H12,$G$47:$H$51,2,FALSE) ->  | M12: G
M13: G
M14: G
M15: G
M16: G
I17: =VLOOKUP($G17,$G$41:$H$45,2,FALSE)*VLOOKUP($H17,$G$47:$H$51,2,FALSE) ->  | M17: G
M18: G
M19: G
M20: G
M21: G
M22: G
M23: G
M24: G
M25: G
M26: G
M27: G
M28: G
M29: G
M30: G
M31: G
M32: G
M33: G
M34: G
B39: Generic Risks
G40: Impact
A41: Business risk | B41: Reputational risk | C41: The risk that there will be an undermining of customer’s/media’s perception of the organisation’s ability to fulfil its business requirements – for example, adverse publicity concerning an operational problem | G41: Insignificant | H41: 1
A42: Service risk | B42: Design risk | C42: The risk that design cannot deliver the services to the required quality standards. | G42: Minor | H42: 2
B43: Planning risk | C43: The risk that the implementation of a project fails to adhere to the terms of the planning permission or that detailed planning cannot be obtained; or, if obtained, can only be implemented at costs greater than in the original budget. | G43: Moderate | H43: 3
B44: Build risk | C44: The risk that the construction of physical assets is not completed on time, to budget and to specification. | G44: Major | H44: 4
B45: Project intelligence risk | C45: The risk that the quality of initial intelligence (for example, preliminary site investigation) will impact on the likelihood of unforeseen problems occurring. | G45: Catastrophic | H45: 5
B46: Decant risk | C46: The risk arising in accommodation projects relating to the need to decant staff/clients from one site to another. | G46: Likelihood
B47: Environmental risk | C47: The risk that the nature of the project has a major impact on its adjacent area and there is a strong likelihood of objection from the general public. | G47: Rare | H47: 1
B48: Procurement risk | C48: The risk that can arise from the contractual arrangements between two parties – for example, the capabilities of the contractor/ when a dispute occurs. | G48: Unlikely | H48: 2
B49: Operational risk | C49: The risk that operating costs vary from budget and that performance standards slip or that a service cannot be provided. | G49: Possible | H49: 3
B50: Availability and performance risk | C50: The risk that the quantum of service provided is less than that required under the contract. | G50: Likely | H50: 4
B51: Demand risk | C51: The risk that the demand for a service does not match the levels planned, projected or assumed. As the demand for a service may be partially controllable by the public body concerned, the risk to the public sector may be less than perceived by the private sector. | G51: Almost Certain | H51: 5
B52: Volume risk | C52: The risk that actual usage of the service varies from the levels forecast.
B53: Occupancy risk | C53: The risk that a property will remain untenanted –a form of demand risk.
B54: Maintenance risk | C54: The risk that the costs of keeping the assets in good condition vary from budget.
B55: Technology risk | C55: The risk that changes in technology result in services being provided using sub-optimal technical solutions.
B56: Funding risk | C56: The risk that the availability of funding leads to delays and reductions in scope as a result of reduced monies.
B57: Residual value risk | C57: The risk relating to the uncertainty of the values of physical assets at the end of the contract period.
A58: External environmental risks | B58: Economic risk | C58: The risk that project outcomes are sensitive to economic influences – for example, where actual inflation differs from assumed inflation rates.
B59: Legislative risk | C59: The risk that legislative change increases costs. This can be divided into secondary legislative risk(for example, changes to corporate taxes) and primary legislative risk (for example, specific changes which affect a particular project).
B60: Policy risk | C60: The risk of changes in policy direction leading to unforeseen change. Again, this can either be general to all or specific to a particular project.

Sheet Land values
B1: https://www.gov.uk/government/publications/land-value-estimates-for-policy-appraisal-2017
B2: Post permission residential site | C2: agricultural land | D2: industrial land | E2: City centre office space | F2: out of town office space
A3: East Riding | B3: 1945000 | C3: 26000 | D3: 440000 | E3: 865000 | F3: 440000
A4: Hull | B4: 740000 | C4: 26000 | D4: 440000 | E4: 865000 | F4: 440000
A5: =+A3&" and "&A4 -> East Riding and Hull | C5: 26000 | D5: 440000 | E5: 865000 | F5: 440000
B11: residential | C11: =+VLOOKUP($B$15,$A$3:$B$5,2) -> 1945000
B12: industrial | C12: =+VLOOKUP($B$15,$A$3:$D$5,4) -> 440000
B13: agricultural | C13: =+VLOOKUP($B$15,$A$3:$C$5,3) -> 26000
B15: =+Summary!B11 -> East Riding
B21: Amenity benefit
A22: Urban core | B22: 109138
A23: Urban fringe (Greenbelt) | B23: 1797
A24: Urban fringe (Forested land) | B24: 5457
A25: Rural | B25: 13392
A26: Agricultural (Extensive) | B26: 6366
A27: Agricultural (Intensive) | B27: 208
A28: Natural & semi natural | B28: 13371
A32: GVA
A33: East Riding | B33: ='B3'!T47 -> 47182.8
A34: Hull | B34: ='B3'!T46 -> 46997.4
A35: =+A33&" and "&A34 -> East Riding and Hull | B35: =AVERAGE(B33:B34) -> 47090.1

Sheet GDP Deflators (hidden)
B1: GDP DEFLATORS AT MARKET PRICES, AND MONEY GDP
B3: Outturn data are as at the Quarterly National Accounts from ONS - last updated 29 March 2018.
B4: Forecast data are consistent with OBR Spring Statement EFO data as at 13 March 2018
B5: Financial year | H5: Calendar year
C6: GDP deflator at market prices | E6: Money GDP (3), (4) | I6: GDP deflator at market prices | K6: Money GDP (3)
B7: Financial year | C7: 2016-17 = 100 | D7: per cent change on previous year | E7: Cash £ million Non-Season-ally Adjusted | F7: Cash £ million Seasonally Adjusted | H7: Calendar year | I7: 2017 = 100 | J7: per cent change on previous year | K7: Cash £ million Non-Seasonally Adjusted
B8: 1955-56 | C8: 4.026875 | E8: 19558 | F8: 19573 | H8: 1955 | I8: 3.9883 | K8: 19154
B9: 1956-57 | C9: 4.2795 | D9: 6.273475089 | E9: 21145 | F9: 21120 | H9: 1956 | I9: 4.2649 | J9: 6.935285711 | K9: 20827
B10: 1957-58 | C10: 4.47645 | D10: 4.602173151 | E10: 22497 | F10: 22512 | H10: 1957 | I10: 4.4356 | J10: 4.00243851 | K10: 22090
B11: 1958-59 | C11: 4.5847 | D11: 2.418210859 | E11: 23320 | F11: 23292 | H11: 1958 | I11: 4.598 | J11: 3.661285959 | K11: 23210
B12: 1959-60 | C12: 4.6072 | D12: 0.4907627544 | E12: 24837 | F12: 24889 | H12: 1959 | I12: 4.6312 | J12: 0.7220530666 | K12: 24353
B13: 1960-61 | C13: 4.700925 | D13: 2.034315853 | E13: 26609 | F13: 26629 | H13: 1960 | I13: 4.6793 | J13: 1.038607704 | K13: 26169
B14: 1961-62 | C14: 4.87275 | D14: 3.655131703 | E14: 28115 | F14: 28144 | H14: 1961 | I14: 4.8564 | J14: 3.78475413 | K14: 27891
B15: 1962-63 | C15: 5.02515 | D15: 3.127597353 | E15: 29437 | F15: 29452 | H15: 1962 | I15: 5.0315 | J15: 3.605551437 | K15: 29216
B16: 1963-64 | C16: 5.109575 | D16: 1.680049352 | E16: 31907 | F16: 31865 | H16: 1963 | I16: 5.1051 | J16: 1.462784458 | K16: 31090
B17: 1964-65 | C17: 5.3511 | D17: 4.726909772 | E17: 34811 | F17: 34878 | H17: 1964 | I17: 5.2883 | J17: 3.588568294 | K17: 34007
B18: 1965-66 | C18: 5.63955 | D18: 5.390480462 | E18: 37429 | F18: 37385 | H18: 1965 | I18: 5.6031 | J18: 5.952763648 | K18: 36794
B19: 1966-67 | C19: 5.927475 | D19: 5.105460542 | E19: 39926 | F19: 39920 | H19: 1966 | I19: 5.9027 | J19: 5.347040031 | K19: 39367
B20: 1967-68 | C20: 6.090525 | D20: 2.750749687 | E20: 42493 | F20: 42602 | H20: 1967 | I20: 6.0776 | J20: 2.963050807 | K20: 41660
B21: 1968-69 | C21: 6.409275 | D21: 5.233538981 | E21: 46763 | F21: 46784 | H21: 1968 | I21: 6.3332 | J21: 4.205607477 | K21: 45792
B22: 1969-70 | C22: 6.852775 | D22: 6.9196594 | E22: 50860 | F22: 50915 | H22: 1969 | I22: 6.7536 | J22: 6.638034485 | K22: 49776
B23: 1970-71 | C23: 7.528975 | D23: 9.867535414 | E23: 57723 | F23: 57809 | H23: 1970 | I23: 7.4029 | J23: 9.614131722 | K23: 56055
B24: 1971-72 | C24: 8.097525 | D24: 7.551492733 | E24: 64517 | F24: 64419 | H24: 1971 | I24: 8.0164 | J24: 8.287292818 | K24: 62821
B25: 1972-73 | C25: 8.785725 | D25: 8.49889318 | E25: 73845 | F25: 73950 | H25: 1972 | I25: 8.622 | J25: 7.554513248 | K25: 70499
B26: 1973-74 | C26: 9.558925 | D26: 8.800639674 | E26: 82759 | F26: 82781 | H26: 1973 | I26: 9.3862 | J26: 8.863372767 | K26: 81703
B27: 1974-75 | C27: 11.499875 | D27: 20.30510753 | E27: 98107 | F27: 98277 | H27: 1974 | I27: 10.9039 | J27: 16.16948286 | K27: 92586
B28: 1975-76 | C28: 14.314875 | D28: 24.47852694 | E28: 120739 | F28: 120631 | H28: 1975 | I28: 13.7537 | J28: 26.13560286 | K28: 115023
B29: 1976-77 | C29: 16.307425 | D29: 13.91943695 | E29: 141816 | F29: 142319 | H29: 1976 | I29: 15.8805 | J29: 15.46347528 | K29: 136759
B30: 1977-78 | C30: 18.549975 | D30: 13.75171126 | E30: 165811 | F30: 165602 | H30: 1977 | I30: 18.0812 | J30: 13.85787601 | K30: 159502
B31: 1978-79 | C31: 20.63885 | D31: 11.26079685 | E31: 192055 | F31: 192168 | H31: 1978 | I31: 20.2162 | J31: 11.80784461 | K31: 185857
B32: 1979-80 | C32: 24.11645 | D32: 16.84977603 | E32: 232269 | F32: 232302 | H32: 1979 | I32: 23.1348 | J32: 14.43693671 | K32: 220658
B33: 1980-81 | C33: 28.729025 | D33: 19.12626029 | E33: 267153 | F33: 267446 | H33: 1980 | I33: 27.8101 | J33: 20.20894929 | K33: 259654
B34: 1981-82 | C34: 31.754225 | D34: 10.53011719 | E34: 297610 | F34: 297044 | H34: 1981 | I34: 31.2384 | J34: 12.32753568 | K34: 289551
B35: 1982-83 | C35: 34.0916 | D35: 7.360831511 | E35: 326887 | F35: 327136 | H35: 1982 | I35: 33.7396 | J35: 8.006812129 | K35: 318969
B36: 1983-84 | C36: 35.720075 | D36: 4.776763191 | E36: 357612 | F36: 356885 | H36: 1983 | I36: 35.61 | J36: 5.543634187 | K36: 350868
B37: 1984-85 | C37: 37.751375 | D37: 5.686718183 | E37: 385624 | F37: 384846 | H37: 1984 | I37: 37.4685 | J37: 5.219039596 | K37: 377543
B38: 1985-86 | C38: 39.85355 | D38: 5.568472672 | E38: 423581 | F38: 424134 | H38: 1985 | I38: 39.4863 | J38: 5.385323672 | K38: 414414
B39: 1986-87 | C39: 41.5051 | D39: 4.144047394 | E39: 455385 | F39: 456084 | H39: 1986 | I39: 41.2572 | J39: 4.484846643 | K39: 446620
B40: 1987-88 | C40: 43.827725 | D40: 5.595999046 | E40: 510953 | F40: 511248 | H40: 1987 | I40: 43.4771 | J40: 5.380636592 | K40: 496124
B41: 1988-89 | C41: 46.690675 | D41: 6.532280651 | E41: 570118 | F41: 571046 | H41: 1988 | I41: 46.0516 | J41: 5.921508104 | K41: 555591
B42: 1989-90 | C42: 50.310275 | D42: 7.752297434 | E42: 628384 | F42: 628126 | H42: 1989 | I42: 49.6648 | J42: 7.845981464 | K42: 614508
B43: 1990-91 | C43: 54.4473 | D43: 8.223022037 | E43: 678505 | F43: 680041 | H43: 1990 | I43: 53.6766 | J43: 8.077753258 | K43: 668915
B44: 1991-92 | C44: 57.609625 | D44: 5.808047415 | E44: 714825 | F44: 713484 | H44: 1991 | I44: 57.2349 | J44: 6.629145661 | K44: 705448
B45: 1992-93 | C45: 59.10995 | D45: 2.604295723 | E45: 737105 | F45: 738923 | H45: 1992 | I45: 59.0341 | J45: 3.143536549 | K45: 730561
B46: 1993-94 | C46: 60.56185 | D46: 2.456270053 | E46: 780778 | F46: 778210 | H46: 1993 | I46: 60.6403 | J46: 2.720800351 | K46: 769143
B47: 1994-95 | C47: 61.355225 | D47: 1.31002438 | E47: 819004 | F47: 819125 | H47: 1994 | I47: 61.456 | J47: 1.34514506 | K47: 809469
B48: 1995-96 | C48: 63.149175 | D48: 2.923874862 | E48: 863504 | F48: 862307 | H48: 1995 | I48: 62.9514 | J48: 2.433285603 | K48: 850162
B49: 1996-97 | C49: 65.6502 | D49: 3.960503047 | E49: 919295 | F49: 921184 | H49: 1996 | I49: 65.543 | J49: 4.116826631 | K49: 907245
B50: 1997-98 | C50: 65.928125 | D50: 0.4233421985 | E50: 963769 | F50: 961299 | H50: 1997 | I50: 66.2495 | J50: 1.077918313 | K50: 952285
B51: 1998-99 | C51: 66.9549 | D51: 1.557415746 | E51: 1008121 | F51: 1010831 | H51: 1998 | I51: 66.8723 | J51: 0.9400825667 | K51: 996374
B52: 1999-00 | C52: 67.2201 | D52: 0.3960875156 | E52: 1054782 | F52: 1052319 | H52: 1999 | I52: 67.4876 | J52: 0.9201119148 | K52: 1039891
B53: 2000-01 | C53: 68.529125 | D53: 1.947371396 | E53: 1107924 | F53: 1104616 | H53: 2000 | I53: 68.7403 | J53: 1.856192841 | K53: 1095651
B54: 2001-02 | C54: 69.38345 | D54: 1.246659723 | E54: 1147395 | F54: 1151712 | H54: 2001 | I54: 69.4243 | J54: 0.9950494833 | K54: 1139479
B55: 2002-03 | C55: 70.994175 | D55: 2.321483005 | E55: 1211222 | F55: 1206957 | H55: 2002 | I55: 70.8889 | J55: 2.109635963 | K55: 1190601
B56: 2003-04 | C56: 72.4219 | D56: 2.011045272 | E56: 1272293 | F56: 1273436 | H56: 2003 | I56: 72.4883 | J56: 2.256206543 | K56: 1257474
B57: 2004-05 | C57: 74.471325 | D57: 2.829841526 | E57: 1336299 | F57: 1335027 | H57: 2004 | I57: 74.3377 | J57: 2.55130828 | K57: 1320128
B58: 2005-06 | C58: 76.28685 | D58: 2.437884649 | E58: 1420214 | F58: 1420135 | H58: 2005 | I58: 76.1979 | J58: 2.502364211 | K58: 1396274
B59: 2006-07 | C59: 78.453125 | D59: 2.839644054 | E59: 1493214 | F59: 1492031 | H59: 2006 | I59: 78.3117 | J59: 2.774092199 | K59: 1474923
B60: 2007-08 | C60: 80.539675 | D60: 2.659613623 | E60: 1569164 | F60: 1571317 | H60: 2007 | I60: 80.3329 | J60: 2.580968106 | K60: 1549821
B61: 2008-09 | C61: 82.59495 | D61: 2.551878934 | E61: 1573876 | F61: 1573372 | H61: 2008 | I61: 82.6598 | J61: 2.896571641 | K61: 1589931
B62: 2009-10 | C62: 83.9567 | D62: 1.648708547 | E62: 1557283 | F62: 1557542 | H62: 2009 | I62: 84.0155 | J62: 1.640095911 | K62: 1547563
B63: 2010-11 | C63: 85.394625 | D63: 1.712698331 | E63: 1622044 | F63: 1621521 | H63: 2010 | I63: 85.3027 | J63: 1.532098244 | K63: 1601927
B64: 2011-12 | C64: 86.69795 | D64: 1.526237746 | E64: 1668699 | F64: 1666988 | H64: 2011 | I64: 87.0435 | J64: 2.040732591 | K64: 1659784
B65: 2012-13 | C65: 88.48365 | D65: 2.059679612 | E65: 1725624 | F65: 1728156 | H65: 2012 | I65: 88.487 | J65: 1.658366219 | K65: 1712321
B66: 2013-14 | C66: 90.19085 | D66: 1.929395996 | E66: 1806329 | F66: 1803916 | H66: 2013 | I66: 90.163 | J66: 1.894063535 | K66: 1782109
B67: 2014-15 | C67: 91.4503 | D67: 1.396427686 | E67: 1871789 | F67: 1875048 | H67: 2014 | I67: 91.8128 | J67: 1.829797145 | K67: 1861964
B68: 2015-16 | C68: 92.2379 | D68: 0.8612328226 | E68: 1934600 | F68: 1934489 | H68: 2015 | I68: 92.3466 | J68: 0.5814004148 | K68: 1916896
B69: 2016-17 | C69: 94.421775 | D69: 2.367654728 | E69: 2019484 | F69: 2019115 | H69: 2016 | I69: 94.3206 | J69: 2.137599002 | K69: 1995479
B70: 2017-18 | C70: 96.05305 | D70: 1.727647039 | E70: 2085654 | F70: 2086798 | H70: 2017 | I70: 96.1057 | J70: 1.892587621 | K70: 2071667
B71: 2018-19 | C71: 96.05305 | D71: 1.727647039 | E71: 2085654 | F71: 2086798 | H71: 2017 | I71: 96.1057 | J71: 1.892587621 | K71: 2071667
B72: 2019-20 | C72: 100.000025 | D72: 1.935214072 | E72: 2216479 | F72: 2218211 | H72: 2019 | I72: 100 | J72: 1.876047413 | K72: 2216451
B73: 2020-21 | C73: - | D73: 1.97010323 | E73: 2304464 | F73: 2304392 | H73: 2020 (1), (2) | I73: - | J73: 2.049146462 | K73: 2284094
B74: 2021-22 | C74: - | D74: 2.115007778 | E74: 2393868 | F74: 2393331 | H74: 2021 (1), (2) | I74: - | J74: 2.008528859 | K74: 2371006
B75: 2022-23 | C75: - | D75: 2.117522458 | E75: 2478094 | F75: 2478280 | H75: 2022 (1), (2) | I75: - | J75: 2.156742364 | K75: 2457739
B76: 2023-24 | C76: - | D76: 2.074148975 | E76: 2561641 | F76: 2561492 | H76: 2023 (1), (2) | I76: - | J76: 2.067809453 | K76: 2540162
B77: 2024-25 | C77: - | D77: 2.111937693 | E77: 2654177 | F77: 2653987 | H77: 2024 (1), (2) | I77: - | J77: 2.104966987 | K77: 2629694
B78: Sources and footnotes:
B79: GDP Deflator: | C79: Financial years 1955-56 to 2019-20 taken from ONS series L8GG in data tables: Table N.
C80: https://www.ons.gov.uk/file?uri=%2feconomy%2fgrossdomesticproductgdp%2fdatasets%2fuksecondestimateofgdpdatatables%2fquarter1jantomar2020quarterlynationalaccounts/quarterlynationalaccountsdatatables.xls
C81: Calendar years 1955 to 2019 taken from ONS series MNF2 in data tables: Table O.
C82: https://www.ons.gov.uk/file?uri=%2feconomy%2fgrossdomesticproductgdp%2fdatasets%2fuksecondestimateofgdpdatatables%2fquarter1jantomar2020quarterlynationalaccounts/quarterlynationalaccountsdatatables.xls
C83: For years 2020-21 to 2024-25 (2019 to 2024): taken from the Office for Budget Responsibility (OBR) forecasts for GDP deflator increases as of March 2020 Supplementary Economy tables.
C84: https://obr.uk/efo/economic-and-fiscal-outlook-march-2020/
B85: Money GDP: | C85: For years 1955-56 to 2019-20 (1955 to 2019): ONS data for money GDP not seasonally adjusted series BKTL in data tables: Table N.
C86: https://www.ons.gov.uk/file?uri=%2feconomy%2fgrossdomesticproductgdp%2fdatasets%2fuksecondestimateofgdpdatatables%2fquarter1jantomar2020quarterlynationalaccounts/quarterlynationalaccountsdatatables.xls
C87: For years 1955-56 to 2019-20: ONS data for money GDP seasonally adjusted series YBHA in data tables: Table N.
C88: https://www.ons.gov.uk/file?uri=%2feconomy%2fgrossdomesticproductgdp%2fdatasets%2fuksecondestimateofgdpdatatables%2fquarter1jantomar2020quarterlynationalaccounts/quarterlynationalaccountsdatatables.xls
C89: For years 2020-21 to 2024-25 (2020 to 2024): taken from the Office for Budget Responsibility (OBR) forecasts for GDP deflator increases as of March 2020 Supplementary Economy tables.
C90: https://obr.uk/efo/economic-and-fiscal-outlook-march-2020/
B91: Footnotes:
B92: (1) | C92: For years 2020-21 to 2024-25 (2020 to 2024), this presentation only shows percentage changes in line with OBR data as of the Budget, March 2020.
B93: (2) | C93: For years 2020-21 to 2024-25 (2020 to 2024), money GDP forecasts from the OBR as of the Budget, March 2020.
B94: (3) | C94: Non-Seasonally adjusted money GDP (BKTL) from 1955-56 to 2019-20 (1955 to 2019) consistent with ONS Quarterly National Accounts release of 30 June 2020.
B95: (4) | C95: Seasonally adjusted money GDP (YBHA) from 1955-56 to 2019-20 consistent with ONS First Quarterly Estimate of GDP release of 30 June 2020.
B96: (5) | C96: For further information and the 'User's Guide' to these series, please visit the following page on the GOV.UK website at:
C97: https://www.gov.uk/government/publications/gross-domestic-product-gdp-deflators-user-guide
B98: (6) | C98: For practical examples of how to use the GDP deflator series, please visit the following page on the GOV.UK website at:
C99: https://www.gov.uk/government/publications/how-to-use-the-gdp-deflator-series-practical-examples

Sheet B3 (hidden)
A1: Table B3: Nominal (smoothed) GVA (B) per filled job (£); NUTS 2 and NUTS 3 subregions, 2002 - 2018
A2: Including NUTS 1, England and UK figures for comparison purposes
D4: 2002 | E4: 2003 | F4: 2004 | G4: 2005 | H4: 2006 | I4: 2007 | J4: 2008 | K4: 2009 | L4: 2010 | M4: 2011 | N4: 2012 | O4: 2013 | P4: 2014 | Q4: 2015 | R4: 2016 | S4: 2017 | T4: 2018
A5: NUTS level | B5: NUTS code | C5: Region name | D5: £ | E5: £ | F5: £ | G5: £ | H5: £ | I5: £ | J5: £ | K5: £ | L5: £ | M5: £ | N5: £ | O5: £ | P5: £ | Q5: £ | R5: £ | S5: £ | T5: £
A6: UK | B6: UK | C6: United Kingdom less Extra-Regio | D6: 36220.35 | E6: 37970.95 | F6: 39437.33 | G6: 41277.31 | H6: 43217.03 | I6: 45024.96 | J6: 45870.66 | K6: 45894.73 | L6: 46758.97 | M6: 47696.63 | N6: 48879.39 | O6: 50289.65 | P6: 51414.64 | Q6: 52315.66 | R6: 53787.63 | S6: 55346.84 | T6: 56386.75
A7: Other | B7: E | C7: England | D7: 36967.04 | E7: 38753.4 | F7: 40248.52 | G7: 42141.12 | H7: 44132.86 | I7: 45983.83 | J7: 46831.57 | K7: 46818.75 | L7: 47657.56 | M7: 48551.14 | N7: 49705.74 | O7: 51107.13 | P7: 52254.95 | Q7: 53179.57 | R7: 54674.15 | S7: 56244.02 | T7: 57289.65
A8: NUTS1 | B8: UKC | C8: North East | D8: 31800.44 | E8: 33345.03 | F8: 34624.22 | G8: 35989.66 | H8: 37369.29 | I8: 38571.73 | J8: 39190.77 | K8: 39281.21 | L8: 40254.38 | M8: 41220.04 | N8: 42274.42 | O8: 43316.82 | P8: 44204.04 | Q8: 44886.86 | R8: 46085.45 | S8: 47200.64 | T8: 47925.68
A9: NUTS2 | B9: UKC1 | C9: Tees Valley and Durham | D9: 31825.53 | E9: 33408.7 | F9: 34707.18 | G9: 36067.27 | H9: 37447.82 | I9: 38876.92 | J9: 39910.41 | K9: 40374.13 | L9: 41438.89 | M9: 42223.39 | N9: 43026.39 | O9: 43884.92 | P9: 44713.49 | Q9: 45436.96 | R9: 46708.14 | S9: 47885.22 | T9: 48618.02
A10: NUTS3 | B10: UKC11 | C10: Hartlepool and Stockton-on-Tees | D10: 34988.52 | E10: 36780.9 | F10: 38291.63 | G10: 40072.22 | H10: 42086.45 | I10: 44287 | J10: 45842.14 | K10: 46331.88 | L10: 47229.68 | M10: 47647.73 | N10: 48182.16 | O10: 48909.54 | P10: 49888.62 | Q10: 50800.5 | R10: 52246.32 | S10: 53330.5 | T10: 53926.34
A11: NUTS3 | B11: UKC12 | C11: South Teesside | D11: 27212.08 | E11: 28295.03 | F11: 29056.18 | G11: 30025.5 | H11: 31421.68 | I11: 33015.24 | J11: 34279.8 | K11: 34941.23 | L11: 36107.1 | M11: 36929.34 | N11: 37515.31 | O11: 38146.54 | P11: 38891.08 | Q11: 39799.46 | R11: 41282.7 | S11: 42678.12 | T11: 43570.38
A12: NUTS3 | B12: UKC13 | C12: Darlington | D12: 36602.95 | E12: 38394.08 | F12: 39856.07 | G12: 40571.82 | H12: 40821.8 | I12: 40311.57 | J12: 39527.44 | K12: 38897.65 | L12: 39567.87 | M12: 41354.62 | N12: 43456.68 | O12: 46587.19 | P12: 48714.46 | Q12: 50465.45 | R12: 51801.52 | S12: 53510.3 | T12: 54558.02
A13: NUTS3 | B13: UKC14 | C13: Durham CC | D13: 31226.94 | E13: 32961.38 | F13: 34459.54 | G13: 35998.51 | H13: 37267.39 | I13: 38606.31 | J13: 39656.36 | K13: 40270.36 | L13: 41507.01 | M13: 42195.04 | N13: 42934.28 | O13: 43312.98 | P13: 43686.04 | Q13: 43844.68 | R13: 44869.88 | S13: 45862.23 | T13: 46528.29
A14: NUTS2 | B14: UKC2 | C14: Northumberland and Tyne and Wear | D14: 31782.85 | E14: 33299.99 | F14: 34565.64 | G14: 35935.54 | H14: 37314.44 | I14: 38355.62 | J14: 38679.93 | K14: 38506.81 | L14: 39416.98 | M14: 40512.1 | N14: 41743.82 | O14: 42914.18 | P14: 43842.84 | Q14: 44498.79 | R14: 45649.77 | S14: 46724.05 | T14: 47445.09
A15: NUTS3 | B15: UKC21 | C15: Northumberland | D15: 29801.57 | E15: 31059.91 | F15: 31969.06 | G15: 33100.05 | H15: 34253.6 | I15: 35129.95 | J15: 35202.05 | K15: 34892.72 | L15: 35822.94 | M15: 36843.43 | N15: 37943.47 | O15: 38789.76 | P15: 39961.12 | Q15: 40916.78 | R15: 42008.16 | S15: 42398.35 | T15: 42484.06
A16: NUTS3 | B16: UKC22 | C16: Tyneside | D16: 31667.71 | E16: 33252.62 | F16: 34649.39 | G16: 36128.3 | H16: 37578.16 | I16: 38566.88 | J16: 38766.62 | K16: 38470.01 | L16: 39366.18 | M16: 40460.25 | N16: 41498.62 | O16: 42153.68 | P16: 42471.77 | Q16: 42718.69 | R16: 43740.3 | S16: 44864.36 | T16: 45627.41
A17: NUTS3 | B17: UKC23 | C17: Sunderland | D17: 34148.89 | E17: 35692.45 | F17: 36866.34 | G17: 38087.85 | H17: 39443.13 | I17: 40826.29 | J17: 41866.25 | K17: 42278.58 | L17: 43213.86 | M17: 44317.88 | N17: 46239.6 | O17: 49432.86 | P17: 52201.18 | Q17: 54021.73 | R17: 55722.89 | S17: 57335.45 | T17: 58542.85
A18: NUTS1 | B18: UKD | C18: North West | D18: 33336.89 | E18: 34930.44 | F18: 36331.11 | G18: 38121.91 | H18: 39980.12 | I18: 41553.08 | J18: 42165.54 | K18: 42031.76 | L18: 42724.52 | M18: 43487.56 | N18: 44455.47 | O18: 45660.13 | P18: 46667.74 | Q18: 47588.33 | R18: 49002.38 | S18: 50460.59 | T18: 51373.16
A19: NUTS2 | B19: UKD1 | C19: Cumbria | D19: 30705.51 | E19: 32051.73 | F19: 33249.18 | G19: 34965.68 | H19: 36691.03 | I19: 38158.88 | J19: 38847.75 | K19: 38857.56 | L19: 39475.98 | M19: 39895.59 | N19: 40555.12 | O19: 41754.22 | P19: 42854.8 | Q19: 43869.02 | R19: 44965.15 | S19: 46137.25 | T19: 46817.32
A20: NUTS3 | B20: UKD11 | C20: West Cumbria | D20: 30852.44 | E20: 32116.01 | F20: 33283.86 | G20: 35117.21 | H20: 37135.56 | I20: 38931.48 | J20: 40117.1 | K20: 40515.25 | L20: 41589.13 | M20: 42278.55 | N20: 43294.23 | O20: 44790.38 | P20: 45915.55 | Q20: 46435.95 | R20: 46787.55 | S20: 47263.45 | T20: 47624.08
A21: NUTS3 | B21: UKD12 | C21: East Cumbria | D21: 30604.17 | E21: 32008.86 | F21: 33227.68 | G21: 34864.12 | H21: 36385.47 | I21: 37622.34 | J21: 37962.89 | K21: 37694.3 | L21: 37991.01 | M21: 38220.21 | N21: 38643.09 | O21: 39644.71 | P21: 40731.61 | Q21: 42080.89 | R21: 43689.2 | S21: 45340.76 | T21: 46242.05
A22: NUTS2 | B22: UKD3 | C22: Greater Manchester | D22: 32428.2 | E22: 33915.71 | F22: 35264.79 | G22: 37156.6 | H22: 39238.16 | I22: 41093.03 | J22: 41867.05 | K22: 41840.94 | L22: 42535 | M22: 43383.77 | N22: 44358.35 | O22: 45512.35 | P22: 46275.83 | Q22: 46996.39 | R22: 48159.12 | S22: 49451.72 | T22: 50211.67
A23: NUTS3 | B23: UKD33 | C23: Manchester | D23: 34433.73 | E23: 36511.33 | F23: 38646.52 | G23: 41446.61 | H23: 43991.56 | I23: 46321.67 | J23: 47349.53 | K23: 47667.87 | L23: 48500.45 | M23: 49032.32 | N23: 49206.42 | O23: 49285.12 | P23: 49430.07 | Q23: 49857.21 | R23: 51232.32 | S23: 52716.18 | T23: 53676.54
A24: NUTS3 | B24: UKD34 | C24: Greater Manchester South West | D24: 36164.74 | E24: 37846.09 | F24: 39397.66 | G24: 41622.5 | H24: 43983.62 | I24: 45919.12 | J24: 46423.57 | K24: 45788.6 | L24: 46103.24 | M24: 47197.42 | N24: 49160.2 | O24: 51516.95 | P24: 52977.14 | Q24: 53686.32 | R24: 54827.78 | S24: 56064.49 | T24: 56976.34
A25: NUTS3 | B25: UKD35 | C25: Greater Manchester South East | D25: 30818.56 | E25: 32015.74 | F25: 32879.4 | G25: 34138 | H25: 35698.58 | I25: 37200.03 | J25: 38045.65 | K25: 38211.84 | L25: 39132.23 | M25: 40015.6 | N25: 41103.02 | O25: 42266.23 | P25: 42993.78 | Q25: 43811.96 | R25: 45064.04 | S25: 46586.64 | T25: 47342.35
A26: NUTS3 | B26: UKD36 | C26: Greater Manchester North West | D26: 31431.85 | E26: 32671.32 | F26: 33681.13 | G26: 35149.45 | H26: 37012.31 | I26: 38664.43 | J26: 39165.23 | K26: 38916.55 | L26: 39346.91 | M26: 40147.3 | N26: 41010.29 | O26: 42350.55 | P26: 43351 | Q26: 44445.56 | R26: 45664.43 | S26: 46913.77 | T26: 47563.22
A27: NUTS3 | B27: UKD37 | C27: Greater Manchester North East | D27: 28089.97 | E27: 29121.85 | F27: 29992.35 | G27: 31308.61 | H27: 33052.32 | I27: 34585.67 | J27: 35339.45 | K27: 35383.79 | L27: 36124.68 | M27: 36966.48 | N27: 37794.44 | O27: 38801.23 | P27: 39328.32 | Q27: 39922.95 | R27: 40564.16 | S27: 41378.59 | T27: 41720.57
A28: NUTS2 | B28: UKD4 | C28: Lancashire | D28: 32337 | E28: 34008.2 | F28: 35312.59 | G28: 36770.99 | H28: 37953.94 | I28: 38796.32 | J28: 38758.73 | K28: 38117.67 | L28: 38606.12 | M28: 39350.66 | N28: 40545.33 | O28: 41973.08 | P28: 43447.74 | Q28: 45007.3 | R28: 46970.55 | S28: 48744.64 | T28: 49716.96
A29: NUTS3 | B29: UKD41 | C29: Blackburn with Darwen | D29: 26058.11 | E29: 27270.39 | F29: 28255.04 | G29: 29463.83 | H29: 30636.96 | I29: 31634.98 | J29: 32298.58 | K29: 32859.45 | L29: 34185.77 | M29: 35160.81 | N29: 35668.75 | O29: 36574.88 | P29: 37931.29 | Q29: 40166.9 | R29: 42332.5 | S29: 44098.48 | T29: 44676.32
A30: NUTS3 | B30: UKD42 | C30: Blackpool | D30: 29075.38 | E30: 30907.6 | F30: 32174.35 | G30: 33577.91 | H30: 33941.21 | I30: 33946.82 | J30: 32934.34 | K30: 31932.99 | L30: 32196.84 | M30: 32802.28 | N30: 33535.66 | O30: 34413.81 | P30: 35474.78 | Q30: 37113.98 | R30: 39345.33 | S30: 41461.27 | T30: 42575.32
A31: NUTS3 | B31: UKD44 | C31: Lancaster and Wyre | D31: 30595.79 | E31: 32208.19 | F31: 33686.45 | G31: 35435.31 | H31: 36925.04 | I31: 37594.76 | J31: 36988.02 | K31: 35686.36 | L31: 36000.96 | M31: 37201.35 | N31: 39238.18 | O31: 41175.5 | P31: 42308.28 | Q31: 42734.16 | R31: 43270.23 | S31: 44041.73 | T31: 44581.96
A32: NUTS3 | B32: UKD45 | C32: Mid Lancashire | D32: 33146.32 | E32: 34795.02 | F32: 36107.66 | G32: 37546.62 | H32: 38938.45 | I32: 40110.79 | J32: 40500.49 | K32: 39937.33 | L32: 40393.35 | M32: 40901.37 | N32: 42199.42 | O32: 43595.56 | P32: 45490.86 | Q32: 47284.03 | R32: 50001.73 | S32: 52187.32 | T32: 53567.14
A33: NUTS3 | B33: UKD46 | C33: East Lancashire | D33: 37114.4 | E33: 39301.61 | F33: 41234.75 | G33: 43425.74 | H33: 44948.12 | I33: 45702.47 | J33: 45032.39 | K33: 43880.33 | L33: 44116.52 | M33: 45026.8 | N33: 46364.75 | O33: 48345.99 | P33: 49872.47 | Q33: 51395.74 | R33: 52818.13 | S33: 54332.62 | T33: 55072.14
A34: NUTS3 | B34: UKD47 | C34: Chorley and West Lancashire | D34: 32464.43 | E34: 33772.52 | F34: 34312.32 | G34: 34782.31 | H34: 35322.5 | I34: 36214.68 | J34: 36807.45 | K34: 36750.4 | L34: 37279.26 | M34: 37692.6 | N34: 38317.55 | O34: 39336.3 | P34: 40535.91 | Q34: 42222.17 | R34: 44364.54 | S34: 46431.48 | T34: 47525.83
A35: NUTS2 | B35: UKD6 | C35: Cheshire | D35: 39787.09 | E35: 41603.44 | F35: 43202.82 | G35: 45214.39 | H35: 47377.9 | I35: 49082.98 | J35: 49455.17 | K35: 49013.44 | L35: 49804.41 | M35: 50984.25 | N35: 52529.24 | O35: 53964.79 | P35: 54940.96 | Q35: 55531.48 | R35: 57221.15 | S35: 59197.07 | T35: 60684.87
A36: NUTS3 | B36: UKD61 | C36: Warrington | D36: 37479.39 | E36: 39341.14 | F36: 40691.45 | G36: 42560.23 | H36: 44313.12 | I36: 45802.17 | J36: 45398.18 | K36: 44002.86 | L36: 43722.79 | M36: 44282.1 | N36: 45605.97 | O36: 47701.59 | P36: 49339.16 | Q36: 50558.52 | R36: 51340.82 | S36: 52544.68 | T36: 53254.41
A37: NUTS3 | B37: UKD62 | C37: Cheshire East | D37: 43480.19 | E37: 45446.93 | F37: 47297.72 | G37: 49227.85 | H37: 51206.5 | I37: 52358.85 | J37: 52500.39 | K37: 52030.59 | L37: 53410.84 | M37: 55360.82 | N37: 57950.23 | O37: 60044.57 | P37: 62023.77 | Q37: 63648.84 | R37: 67221.15 | S37: 70403.2 | T37: 72661.09
A38: NUTS3 | B38: UKD63 | C38: Cheshire West and Chester | D38: 37458.67 | E38: 39049.09 | F38: 40508.3 | G38: 42649.13 | H38: 45271.64 | I38: 47725.1 | J38: 48949.4 | K38: 49293 | L38: 50264.99 | M38: 51059.23 | N38: 51559.46 | O38: 51692.53 | P38: 51103.93 | Q38: 50264.91 | R38: 50834.79 | S38: 52203.46 | T38: 53463.69
A39: NUTS2 | B39: UKD7 | C39: Merseyside | D39: 32525.13 | E39: 34193.49 | F39: 35729.79 | G39: 37503.82 | H39: 39426.64 | I39: 41149.91 | J39: 42283.73 | K39: 42642.24 | L39: 43480.25 | M39: 43888.74 | N39: 44240.05 | O39: 45066.8 | P39: 45970.24 | Q39: 46746.18 | R39: 47946.57 | S39: 49096.29 | T39: 49908.64
A40: NUTS3 | B40: UKD71 | C40: East Merseyside | D40: 36783.94 | E40: 38506.4 | F40: 39768.42 | G40: 41085.07 | H40: 42574.44 | I40: 44017.99 | J40: 45091.49 | K40: 45447.39 | L40: 46309.21 | M40: 46836.61 | N40: 47291.78 | O40: 48598.52 | P40: 49548.38 | Q40: 50400.16 | R40: 51624.2 | S40: 53232.57 | T40: 54422.56
A41: NUTS3 | B41: UKD72 | C41: Liverpool | D41: 34070.96 | E41: 35941.61 | F41: 37737.7 | G41: 39790.99 | H41: 41836.05 | I41: 43631.24 | J41: 44804.16 | K41: 45334.16 | L41: 46360.83 | M41: 46835.77 | N41: 47065.86 | O41: 47661.14 | P41: 48293.32 | Q41: 48718.63 | R41: 49503.34 | S41: 50254.46 | T41: 50807.14
A42: NUTS3 | B42: UKD73 | C42: Sefton | D42: 24872.42 | E42: 26261.15 | F42: 27739.54 | G42: 29556.61 | H42: 31689.58 | I42: 33670.3 | J42: 35115.3 | K42: 35547.17 | L42: 36269.43 | M42: 36375.88 | N42: 36516.35 | O42: 36950.16 | P42: 37967.88 | Q42: 39194.58 | R42: 41123.96 | S42: 42694.49 | T42: 43697.66
A43: NUTS3 | B43: UKD74 | C43: Wirral | D43: 30322.14 | E43: 31696.04 | F43: 32975.32 | G43: 34557.88 | H43: 36381.96 | I43: 37899.96 | J43: 38574.26 | K43: 38409.1 | L43: 38840.94 | M43: 39145.39 | N43: 39705.93 | O43: 40558.07 | P43: 41749.24 | Q43: 42674.68 | R43: 43963.58 | S43: 44810.46 | T43: 45355.7
A44: NUTS1 | B44: UKE | C44: Yorkshire and The Humber | D44: 32109.63 | E44: 33565.15 | F44: 34706.44 | G44: 36261.07 | H44: 37972.05 | I44: 39571.11 | J44: 40090.02 | K44: 39754.84 | L44: 40128.06 | M44: 40714.53 | N44: 41565.38 | O44: 42589.07 | P44: 43233.82 | Q44: 43720.16 | R44: 44733.98 | S44: 46001.55 | T44: 46868.66
A45: NUTS2 | B45: UKE1 | C45: East Yorkshire and Northern Lincolnshire | D45: 33387.18 | E45: 34865.57 | F45: 36118.28 | G45: 37913.5 | H45: 40125.55 | I45: 42109.27 | J45: 42872.09 | K45: 42127.51 | L45: 42015.63 | M45: 42013.44 | N45: 42623.85 | O45: 43627.12 | P45: 44359.42 | Q45: 44926.83 | R45: 45776.91 | S45: 46832.76 | T45: 47495.55
A46: NUTS3 | B46: UKE11 | C46: Kingston upon Hull, City of | D46: 33216.14 | E46: 34502.05 | F46: 35487.42 | G46: 37321.16 | H46: 39987.7 | I46: 42971.76 | J46: 44923.61 | K46: 44770.65 | L46: 44332.77 | M46: 43278.65 | N46: 42863.18 | O46: 43322.04 | P46: 44107.53 | Q46: 44889.61 | R46: 45872.64 | S46: 46630.93 | T46: 46997.4
A47: NUTS3 | B47: UKE12 | C47: East Riding of Yorkshire | D47: 34555.64 | E47: 36343.16 | F47: 38137.78 | G47: 39998.9 | H47: 41850.62 | I47: 42748.22 | J47: 42409.2 | K47: 40857.17 | L47: 40576.37 | M47: 41007.43 | N47: 42258.23 | O47: 43787.5 | P47: 44474.47 | Q47: 44759.57 | R47: 45225.62 | S47: 46350.57 | T47: 47182.8
A48: NUTS3 | B48: UKE13 | C48: North and North East Lincolnshire | D48: 32548.79 | E48: 33946.89 | F48: 34992.5 | G48: 36700.12 | H48: 38825.39 | I48: 40875.46 | J48: 41593.96 | K48: 41057.47 | L48: 41374.7 | M48: 41866.59 | N48: 42766.99 | O48: 43753.52 | P48: 44489.83 | Q48: 45142.13 | R48: 46239.53 | S48: 47485.22 | T48: 48241.77
A49: NUTS2 | B49: UKE2 | C49: North Yorkshire | D49: 33195.93 | E49: 34842.59 | F49: 36087.97 | G49: 37309.38 | H49: 38495.57 | I49: 39488.57 | J49: 39555.06 | K49: 38892.99 | L49: 39058.29 | M49: 39614.52 | N49: 40457.62 | O49: 41423.88 | P49: 41996.78 | Q49: 42497.41 | R49: 43742.16 | S49: 45310.64 | T49: 46399.26
A50: NUTS3 | B50: UKE21 | C50: York | D50: 39619.54 | E50: 41735.24 | F50: 43527.71 | G50: 45506.02 | H50: 46900.15 | I50: 47681.45 | J50: 47067.69 | K50: 45918.37 | L50: 45933.36 | M50: 46639.38 | N50: 47781.91 | O50: 49311.75 | P50: 50264.55 | Q50: 50908.17 | R50: 51861.33 | S50: 52937 | T50: 53626.38
A51: NUTS3 | B51: UKE22 | C51: North Yorkshire CC | D51: 30798.83 | E51: 32273.08 | F51: 33336.68 | G51: 34329.77 | H51: 35475.09 | I51: 36556.62 | J51: 36851.46 | K51: 36348.18 | L51: 36541.66 | M51: 37033.05 | N51: 37769.91 | O51: 38580.75 | P51: 39072.12 | Q51: 39582.95 | R51: 40937.32 | S51: 42653.85 | T51: 43844.32
A52: NUTS2 | B52: UKE3 | C52: South Yorkshire | D52: 30006.97 | E52: 31211.11 | F52: 32015.29 | G52: 33234.49 | H52: 34735.24 | I52: 36269.21 | J52: 36919.81 | K52: 36936.68 | L52: 37753.71 | M52: 38711.93 | N52: 39742.13 | O52: 40766.32 | P52: 41265.04 | Q52: 41653.82 | R52: 42531.11 | S52: 43814.27 | T52: 44684.76
A53: NUTS3 | B53: UKE31 | C53: Barnsley, Doncaster and Rotherham | D53: 28936.4 | E53: 29962 | F53: 30501.07 | G53: 31464.3 | H53: 32877.57 | I53: 34468.73 | J53: 35267.15 | K53: 35293.46 | L53: 36087.69 | M53: 36995.99 | N53: 38129.46 | O53: 39223.33 | P53: 39913.76 | Q53: 40490.91 | R53: 41623.12 | S53: 43082.36 | T53: 44055.27
A54: NUTS3 | B54: UKE32 | C54: Sheffield | D54: 31246.12 | E54: 32666.07 | F54: 33795.54 | G54: 35322.4 | H54: 36924.62 | I54: 38370.67 | J54: 38825.63 | K54: 38812.53 | L54: 39650.38 | M54: 40666.55 | N54: 41582.3 | O54: 42539.93 | P54: 42833.16 | Q54: 43020.69 | R54: 43606.25 | S54: 44685.45 | T54: 45433.93
A55: NUTS2 | B55: UKE4 | C55: West Yorkshire | D55: 32338.83 | E55: 33858.01 | F55: 35116.75 | G55: 36899.54 | H55: 38740.45 | I55: 40457.77 | J55: 40983.12 | K55: 40730.19 | L55: 41119.77 | M55: 41735.91 | N55: 42586.16 | O55: 43643.65 | P55: 44367.04 | Q55: 44870.09 | R55: 45924.62 | S55: 47136.06 | T55: 47984.36
A56: NUTS3 | B56: UKE41 | C56: Bradford | D56: 28348.38 | E56: 29827.11 | F56: 31195.72 | G56: 32813.66 | H56: 34439.49 | I56: 35754.5 | J56: 36277.21 | K56: 36128.31 | L56: 36891.69 | M56: 37810.48 | N56: 38911.64 | O56: 39835.24 | P56: 40403.8 | Q56: 40836.7 | R56: 41905.66 | S56: 43090.25 | T56: 43866.82
A57: NUTS3 | B57: UKE42 | C57: Leeds | D57: 36200.07 | E57: 38074.78 | F57: 39706.26 | G57: 42102.89 | H57: 44351.33 | I57: 46582.44 | J57: 47120.74 | K57: 46966.56 | L57: 47271 | M57: 47865.98 | N57: 48590.68 | O57: 49633.8 | P57: 50395.6 | Q57: 50735.34 | R57: 51612.38 | S57: 52568.29 | T57: 53310.91
A58: NUTS3 | B58: UKE44 | C58: Calderdale and Kirklees | D58: 27985.31 | E58: 29226.8 | F58: 30167.73 | G58: 31623.25 | H58: 33270.08 | I58: 34864.45 | J58: 35363.98 | K58: 34908.32 | L58: 35078.05 | M58: 35582.45 | N58: 36659.4 | O58: 38056.73 | P58: 39121.16 | Q58: 39985.37 | R58: 41238.07 | S58: 42651.52 | T58: 43550.34
A59: NUTS3 | B59: UKE45 | C59: Wakefield | D59: 34797.12 | E59: 35754.76 | F59: 36191.4 | G59: 36900.09 | H59: 38082.54 | I59: 39086.38 | J59: 39531.03 | K59: 39254.7 | L59: 39688.66 | M59: 40152.61 | N59: 40605.06 | O59: 41340.79 | P59: 41659.19 | Q59: 42101.35 | R59: 43198.31 | S59: 44589.24 | T59: 45562.5
A60: NUTS1 | B60: UKF | C60: East Midlands | D60: 32250.77 | E60: 33611.16 | F60: 34588.59 | G60: 35718.01 | H60: 37116.26 | I60: 38501.01 | J60: 39352.79 | K60: 39410.8 | L60: 40168.01 | M60: 40899.32 | N60: 42002.17 | O60: 43351.49 | P60: 44354.1 | Q60: 44935.39 | R60: 45947.89 | S60: 47108.93 | T60: 47957.7
A61: NUTS2 | B61: UKF1 | C61: Derbyshire and Nottinghamshire | D61: 32169.11 | E61: 33627.07 | F61: 34737.9 | G61: 35943.5 | H61: 37260.8 | I61: 38489.09 | J61: 39172.57 | K61: 39226.12 | L61: 40068.46 | M61: 40966.09 | N61: 42064.64 | O61: 43259.05 | P61: 44039.47 | Q61: 44558.86 | R61: 45622.05 | S61: 46854.72 | T61: 47708.33
A62: NUTS3 | B62: UKF11 | C62: Derby | D62: 39218.81 | E62: 41134.45 | F62: 42812.05 | G62: 44729.24 | H62: 46397.05 | I62: 47630 | J62: 48177.39 | K62: 48336.81 | L62: 49241.4 | M62: 49757.07 | N62: 49727.7 | O62: 49949.4 | P62: 49889.95 | Q62: 49633.73 | R62: 49653.74 | S62: 49716.84 | T62: 49891.5
A63: NUTS3 | B63: UKF12 | C63: East Derbyshire | D63: 30606.48 | E63: 31960.56 | F63: 33186.64 | G63: 34699.81 | H63: 36361.85 | I63: 37903.74 | J63: 38723.41 | K63: 38812.16 | L63: 39317.08 | M63: 39632.48 | N63: 40615.92 | O63: 42232.47 | P63: 44080.79 | Q63: 45353.05 | R63: 46746.85 | S63: 47883.81 | T63: 48591.27
A64: NUTS3 | B64: UKF13 | C64: South and West Derbyshire | D64: 31654.48 | E64: 32956.04 | F64: 33765.57 | G64: 34649.72 | H64: 35597.54 | I64: 36520.32 | J64: 36871.77 | K64: 36790.23 | L64: 37404.62 | M64: 38275.8 | N64: 39680.58 | O64: 41774.25 | P64: 43632.95 | Q64: 44970.74 | R64: 46176.74 | S64: 47123.28 | T64: 47572.98
A65: NUTS3 | B65: UKF14 | C65: Nottingham | D65: 27773.49 | E65: 29408.62 | F65: 31001.43 | G65: 32853.47 | H65: 34742.44 | I65: 36521.16 | J65: 37380.07 | K65: 37254.82 | L65: 37621.44 | M65: 38199.41 | N65: 39169.64 | O65: 40125.56 | P65: 40709.43 | Q65: 41440.98 | R65: 43425.41 | S65: 46024.69 | T65: 47815.83
A66: NUTS3 | B66: UKF15 | C66: North Nottinghamshire | D66: 30838.79 | E66: 32041.01 | F66: 32790.95 | G66: 33466.14 | H66: 34451.17 | I66: 35328.58 | J66: 35962.95 | K66: 36011.25 | L66: 37130.04 | M66: 38298.19 | N66: 39533.43 | O66: 40514.98 | P66: 40899.93 | Q66: 40961.98 | R66: 41459.84 | S66: 42087.63 | T66: 42558.16
A67: NUTS3 | B67: UKF16 | C67: South Nottinghamshire | D67: 36434.27 | E67: 37873.62 | F67: 38506.05 | G67: 38895.92 | H67: 39648.94 | I67: 40711.69 | J67: 41892.89 | K67: 42518.97 | L67: 44624.93 | M67: 46818.35 | N67: 48857.38 | O67: 49966.67 | P67: 49828.11 | Q67: 49445.11 | R67: 50374.6 | S67: 51979.5 | T67: 53332.16
A68: NUTS2 | B68: UKF2 | C68: Leicestershire, Rutland and Northamptonshire | D68: 32378.28 | E68: 33735.26 | F68: 34781.29 | G68: 36122.16 | H68: 37861.35 | I68: 39560.95 | J68: 40615.3 | K68: 40707.86 | L68: 41408.75 | M68: 41923.8 | N68: 42877.53 | O68: 44255.24 | P68: 45500.94 | Q68: 46243.44 | R68: 47351.96 | S68: 48524.83 | T68: 49425.37
A69: NUTS3 | B69: UKF21 | C69: Leicester | D69: 27009.23 | E69: 28534.82 | F69: 29977.76 | G69: 31653.6 | H69: 33551.96 | I69: 35380.48 | J69: 36589.21 | K69: 36827.14 | L69: 37554.54 | M69: 38018.38 | N69: 38639.42 | O69: 39435.08 | P69: 40258.16 | Q69: 41071.09 | R69: 42939.31 | S69: 45081.35 | T69: 46727.87
A70: NUTS3 | B70: UKF22 | C70: Leicestershire CC and Rutland | D70: 36268.52 | E70: 37644.55 | F70: 38428.59 | G70: 39428.78 | H70: 40814.31 | I70: 42435.66 | J70: 43565.02 | K70: 43815.75 | L70: 44743.59 | M70: 45397.11 | N70: 46577.78 | O70: 48049.15 | P70: 49290.33 | Q70: 49741.03 | R70: 50473.55 | S70: 51255.16 | T70: 51922.38
A71: NUTS3 | B71: UKF24 | C71: West Northamptonshire | D71: 32368.3 | E71: 33627.46 | F71: 34771.44 | G71: 36428.71 | H71: 38583.79 | I71: 40336.6 | J71: 41102.55 | K71: 40964.02 | L71: 41542.5 | M71: 42306.35 | N71: 43463.65 | O71: 45403.66 | P71: 47141.18 | Q71: 48366.67 | R71: 49523.11 | S71: 50479.02 | T71: 51115.79
A72: NUTS3 | B72: UKF25 | C72: North Northamptonshire | D72: 30743.38 | E72: 31903.04 | F72: 32720.15 | G72: 33753.52 | H72: 35308.14 | I72: 36839.92 | J72: 37907.15 | K72: 37844.35 | L72: 38240.89 | M72: 38200.24 | N72: 38791.47 | O72: 39925.83 | P72: 41094.37 | Q72: 41777.77 | R72: 42705.22 | S72: 43770.41 | T72: 44570.49
A73: NUTS2 | B73: UKF3 | C73: Lincolnshire | D73: 32158.47 | E73: 33219.01 | F73: 33594.66 | G73: 33928.48 | H73: 34684.69 | I73: 35730.32 | J73: 36562.17 | K73: 36548.43 | L73: 37196.12 | M73: 37994.57 | N73: 39480.49 | O73: 41200.55 | P73: 42203.28 | Q73: 42526.16 | R73: 43106.22 | S73: 44009.32 | T73: 44700.61
A74: NUTS3 | B74: UKF30 | C74: Lincolnshire | D74: 32158.47 | E74: 33219.01 | F74: 33594.66 | G74: 33928.48 | H74: 34684.69 | I74: 35730.32 | J74: 36562.17 | K74: 36548.43 | L74: 37196.12 | M74: 37994.57 | N74: 39480.49 | O74: 41200.55 | P74: 42203.28 | Q74: 42526.16 | R74: 43106.22 | S74: 44009.32 | T74: 44700.61
A75: NUTS1 | B75: UKG | C75: West Midlands | D75: 32275.07 | E75: 33766.37 | F75: 34881.98 | G75: 36136.1 | H75: 37389.98 | I75: 38576.66 | J75: 39206.18 | K75: 39383.04 | L75: 40409.77 | M75: 41434.5 | N75: 42574.72 | O75: 43911.78 | P75: 45063.69 | Q75: 46032.89 | R75: 47510.64 | S75: 49008.53 | T75: 50021.53
A76: NUTS2 | B76: UKG1 | C76: Herefordshire, Worcestershire and Warwickshire | D76: 34146.51 | E76: 35488.2 | F76: 36333.07 | G76: 37232.12 | H76: 38195.85 | I76: 38961.68 | J76: 39344.14 | K76: 39407.98 | L76: 40773.08 | M76: 42394.89 | N76: 44351.5 | O76: 46451.5 | P76: 47838.21 | Q76: 48584.6 | R76: 49391.79 | S76: 50436.71 | T76: 51187.82
A77: NUTS3 | B77: UKG11 | C77: Herefordshire, County of | D77: 31385.06 | E77: 32087.55 | F77: 31936.65 | G77: 31686.49 | H77: 31731.56 | I77: 32006.14 | J77: 32271.24 | K77: 32428.52 | L77: 33531.35 | M77: 34500.98 | N77: 35881.86 | O77: 37508.73 | P77: 39143.02 | Q77: 39668.12 | R77: 39869.07 | S77: 39848.52 | T77: 39998.87
A78: NUTS3 | B78: UKG12 | C78: Worcestershire | D78: 30582.73 | E78: 31819.23 | F78: 32829.55 | G78: 34054.75 | H78: 35477.42 | I78: 36680.61 | J78: 37486.09 | K78: 37906.43 | L78: 39440.59 | M78: 41102.85 | N78: 42989.81 | O78: 44847.99 | P78: 45773.52 | Q78: 45838.48 | R78: 45822.07 | S78: 46203.46 | T78: 46588.66
A79: NUTS3 | B79: UKG13 | C79: Warwickshire | D79: 38706.2 | E79: 40377.8 | F79: 41353.68 | G79: 42228.08 | H79: 42943.5 | I79: 43380.88 | J79: 43355.15 | K79: 42997.57 | L79: 44240.95 | M79: 46019.61 | N79: 48224.69 | O79: 50666.11 | P79: 52314.19 | Q79: 53681.63 | R79: 55400.54 | S79: 57378.13 | T79: 58644.83
A80: NUTS2 | B80: UKG2 | C80: Shropshire and Staffordshire | D80: 30971.39 | E80: 32485.89 | F80: 33672.07 | G80: 34977.01 | H80: 36260.29 | I80: 37346.31 | J80: 37750.91 | K80: 37635.27 | L80: 38447.98 | M80: 39329.29 | N80: 40205.6 | O80: 41140.27 | P80: 41818.59 | Q80: 42432.86 | R80: 43567.79 | S80: 44874.21 | T80: 45781.29
A81: NUTS3 | B81: UKG21 | C81: Telford and Wrekin | D81: 34650.38 | E81: 36092.52 | F81: 36778.36 | G81: 37525.64 | H81: 38348.7 | I81: 39494.16 | J81: 40152.88 | K81: 40377.67 | L81: 40914.46 | M81: 41185.94 | N81: 40827.66 | O81: 40887.33 | P81: 41135.23 | Q81: 42683.38 | R81: 45959.49 | S81: 49569.56 | T81: 51915
A82: NUTS3 | B82: UKG22 | C82: Shropshire CC | D82: 29208.16 | E82: 30703.13 | F82: 31993.45 | G82: 33283 | H82: 34729.2 | I82: 35769.43 | J82: 36026.82 | K82: 35419.71 | L82: 35847.26 | M82: 36599.24 | N82: 37589.96 | O82: 38534.79 | P82: 38909.36 | Q82: 39112.43 | R82: 39736.44 | S82: 40744.35 | T82: 41466.92
A83: NUTS3 | B83: UKG23 | C83: Stoke-on-Trent | D83: 25840.65 | E83: 27304.89 | F83: 28903.02 | G83: 30999.13 | H83: 33289.83 | I83: 35307.44 | J83: 36229.22 | K83: 36205.07 | L83: 36646.65 | M83: 37250.44 | N83: 38017.81 | O83: 38959.06 | P83: 39598.84 | Q83: 40177.22 | R83: 41432.56 | S83: 42985.14 | T83: 44089.2
A84: NUTS3 | B84: UKG24 | C84: Staffordshire CC | D84: 32435.73 | E84: 33989.96 | F84: 35105.43 | G84: 36271.39 | H84: 37254.46 | I84: 38048.29 | J84: 38306.12 | K84: 38300.09 | L84: 39460.1 | M84: 40624.32 | N84: 41775.71 | O84: 42904.27 | P84: 43814.41 | Q84: 44376.86 | R84: 45173.27 | S84: 45977.16 | T84: 46558.55
A85: NUTS2 | B85: UKG3 | C85: West Midlands | D85: 32114.44 | E85: 33657.39 | F85: 34853.18 | G85: 36240.56 | H85: 37615.47 | I85: 39072.91 | J85: 39964.16 | K85: 40373.46 | L85: 41346.83 | M85: 42139.92 | N85: 43001.64 | O85: 44171.41 | P85: 45467.05 | Q85: 46750.09 | R85: 48761.8 | S85: 50593.17 | T85: 51793.78
A86: NUTS3 | B86: UKG31 | C86: Birmingham | D86: 32586.14 | E86: 34173.63 | F86: 35414.16 | G86: 36944.55 | H86: 38500.55 | I86: 40344.33 | J86: 41513.21 | K86: 42006.13 | L86: 42640.75 | M86: 43028.63 | N86: 43615.61 | O86: 44776.44 | P86: 45937.61 | Q86: 46925.59 | R86: 48600.21 | S86: 50307.87 | T86: 51525.02
A87: NUTS3 | B87: UKG32 | C87: Solihull | D87: 43649.88 | E87: 45183.57 | F87: 46287.2 | G87: 48090.01 | H87: 50628.86 | I87: 53060.83 | J87: 54555.04 | K87: 54956.61 | L87: 56404.34 | M87: 57320.13 | N87: 58264.67 | O87: 59844.19 | P87: 62083.47 | Q87: 65295.84 | R87: 69767.48 | S87: 73910.79 | T87: 76345.82
A88: NUTS3 | B88: UKG33 | C88: Coventry | D88: 34285.91 | E88: 36159.81 | F88: 37728.23 | G88: 39471.15 | H88: 40999.83 | I88: 42537.43 | J88: 43442.04 | K88: 43929 | L88: 45400.56 | M88: 46769.97 | N88: 48264.46 | O88: 49923.95 | P88: 52247.06 | Q88: 54370.78 | R88: 56534.21 | S88: 57408.5 | T88: 57639.57
A89: NUTS3 | B89: UKG36 | C89: Dudley | D89: 27486.13 | E89: 28652.5 | F89: 29640.32 | G89: 30760.1 | H89: 32113.25 | I89: 33078.25 | J89: 33481.74 | K89: 33486.02 | L89: 34550.07 | M89: 35717.98 | N89: 36786.22 | O89: 37778.61 | P89: 38575.88 | Q89: 39522.11 | R89: 41285.73 | S89: 43176.43 | T89: 44455.23
A90: NUTS3 | B90: UKG37 | C90: Sandwell | D90: 28407.71 | E90: 30024.56 | F90: 31370.75 | G90: 32453.58 | H90: 33173.04 | I90: 33724.06 | J90: 34147.54 | K90: 34466.69 | L90: 35246.42 | M90: 35572.62 | N90: 35676.03 | O90: 36378.79 | P90: 37603.79 | Q90: 39246.18 | R90: 41893.83 | S90: 44476.02 | T90: 46292.73
A91: NUTS3 | B91: UKG38 | C91: Walsall | D91: 25490.46 | E91: 26616.32 | F91: 27409.68 | G91: 28512.35 | H91: 29657.71 | I91: 30990.35 | J91: 31969.62 | K91: 32976.03 | L91: 34640.61 | M91: 36076.16 | N91: 37066.15 | O91: 37798.86 | P91: 38505.07 | Q91: 38924.52 | R91: 39865.44 | S91: 40486.34 | T91: 40923.29
A92: NUTS3 | B92: UKG39 | C92: Wolverhampton | D92: 32002.09 | E92: 33616.88 | F92: 34684.23 | G92: 35614.1 | H92: 36146.13 | I92: 36869.09 | J92: 37128.27 | K92: 36951.84 | L92: 37353.71 | M92: 37909.32 | N92: 38928.81 | O92: 39687.23 | P92: 39942.25 | Q92: 39776.18 | R92: 40606.55 | S92: 41787.18 | T92: 42667.93
A93: NUTS1 | B93: UKH | C93: East of England | D93: 35812.68 | E93: 37482.23 | F93: 38736.73 | G93: 40301.23 | H93: 41844.48 | I93: 43314.98 | J93: 43926.48 | K93: 43727.55 | L93: 44238.68 | M93: 44739.07 | N93: 45582.64 | O93: 46805.92 | P93: 47892.77 | Q93: 48870.06 | R93: 50465.55 | S93: 52153.74 | T93: 53274.32
A94: NUTS2 | B94: UKH1 | C94: East Anglia | D94: 33618.86 | E94: 35176.62 | F94: 36299.41 | G94: 37687.68 | H94: 39058.15 | I94: 40572.1 | J94: 41409.66 | K94: 41614.99 | L94: 42463.97 | M94: 43347.19 | N94: 44412.01 | O94: 45552.78 | P94: 46290.98 | Q94: 46789.97 | R94: 47995.66 | S94: 49369.96 | T94: 50359.21
A95: NUTS3 | B95: UKH11 | C95: Peterborough | D95: 35615.68 | E95: 37616.43 | F95: 39543.75 | G95: 41922.64 | H95: 43569.12 | I95: 44623.99 | J95: 44458.55 | K95: 44278.93 | L95: 45387.34 | M95: 46464.01 | N95: 46979.43 | O95: 46479.37 | P95: 45678.57 | Q95: 45050.26 | R95: 46638.41 | S95: 48883.98 | T95: 50886.97
A96: NUTS3 | B96: UKH12 | C96: Cambridgeshire CC | D96: 36446.96 | E96: 38330.64 | F96: 39672.09 | G96: 40812.3 | H96: 41698.47 | I96: 42882.51 | J96: 43840.95 | K96: 44535.23 | L96: 46091.52 | M96: 47442.42 | N96: 48561.98 | O96: 49305.27 | P96: 49730.36 | Q96: 50186.09 | R96: 51604.07 | S96: 53278.61 | T96: 54440.27
A97: NUTS3 | B97: UKH14 | C97: Suffolk | D97: 34702.49 | E97: 36386.47 | F97: 37649.49 | G97: 39369.52 | H97: 40905.77 | I97: 42460.87 | J97: 42911.89 | K97: 42485.08 | L97: 42684.46 | M97: 43347.07 | N97: 44692.86 | O97: 46388.77 | P97: 47621.41 | Q97: 48408.26 | R97: 49645.62 | S97: 50755.19 | T97: 51445.35
A98: NUTS3 | B98: UKH15 | C98: Norwich and East Norfolk | D98: 28664.22 | E98: 29947.15 | F98: 30851.29 | G98: 31957.66 | H98: 33344.2 | I98: 35170.65 | J98: 36793.41 | K98: 37728.51 | L98: 38855.71 | M98: 39761.23 | N98: 40802.71 | O98: 42489.24 | P98: 43692.93 | Q98: 44595.9 | R98: 45585.66 | S98: 46881.49 | T98: 47794.1
A99: NUTS3 | B99: UKH16 | C99: North and West Norfolk | D99: 28887.02 | E99: 29922.7 | F99: 30614.4 | G99: 31783.94 | H99: 33403.63 | I99: 34920.86 | J99: 35636.49 | K99: 35524.59 | L99: 36193.7 | M99: 37227.53 | N99: 38483.9 | O99: 39905.14 | P99: 40536.95 | Q99: 40830.04 | R99: 41553.68 | S99: 42448.63 | T99: 43123.41
A100: NUTS3 | B100: UKH17 | C100: Breckland and South Norfolk | D100: 33486.61 | E100: 34391.12 | F100: 34575.11 | G100: 35284.41 | H100: 36677.37 | I100: 38576.12 | J100: 39813.87 | K100: 40024.77 | L100: 40387.7 | M100: 40291.79 | N100: 40644.72 | O100: 41354.32 | P100: 42081.82 | Q100: 42280.07 | R100: 43110.74 | S100: 43985.48 | T100: 44682.23
A101: NUTS2 | B101: UKH2 | C101: Bedfordshire and Hertfordshire | D101: 39565.63 | E101: 41272.41 | F101: 42599.73 | G101: 44417.16 | H101: 46376.54 | I101: 48044.84 | J101: 48487.9 | K101: 47764.7 | L101: 47800.52 | M101: 47889.26 | N101: 48529.48 | O101: 49806.16 | P101: 51200.68 | Q101: 52716.57 | R101: 54880.11 | S101: 57001.2 | T101: 58291.39
A102: NUTS3 | B102: UKH21 | C102: Luton | D102: 39976.14 | E102: 41022.9 | F102: 41347.25 | G102: 42219.12 | H102: 43953.97 | I102: 45870.29 | J102: 47117.52 | K102: 47128.37 | L102: 47791.16 | M102: 47942.87 | N102: 48697.02 | O102: 50808.37 | P102: 53669.61 | Q102: 56213.96 | R102: 58351.11 | S102: 59762.91 | T102: 60591.18
A103: NUTS3 | B103: UKH23 | C103: Hertfordshire | D103: 40478.09 | E103: 42484.6 | F103: 44223.91 | G103: 46495.31 | H103: 48660.03 | I103: 50325.84 | J103: 50550.26 | K103: 49560.17 | L103: 49401.24 | M103: 49334.21 | N103: 49812.28 | O103: 50925.27 | P103: 52039.09 | Q103: 53251.54 | R103: 55009.74 | S103: 56829.64 | T103: 57910.79
A104: NUTS3 | B104: UKH24 | C104: Bedford | D104: 34323.14 | E104: 35283.54 | F104: 35980.83 | G104: 37133.63 | H104: 39161.12 | I104: 40926.9 | J104: 41933.05 | K104: 41644.69 | L104: 41926.33 | M104: 41968.82 | N104: 42433.47 | O104: 43448.53 | P104: 44569.39 | Q104: 45790.04 | R104: 47740.88 | S104: 49812.73 | T104: 51205.46
A105: NUTS3 | B105: UKH25 | C105: Central Bedfordshire | D105: 37993.05 | E105: 39275.99 | F105: 39824.7 | G105: 40625.62 | H105: 41603.23 | I105: 42869.23 | J105: 43203.45 | K105: 42895.64 | L105: 43282.19 | M105: 44181.97 | N105: 45655.88 | O105: 47185.24 | P105: 49045.21 | Q105: 51706.84 | R105: 56630.75 | S105: 61458.09 | T105: 64507.4
A106: NUTS2 | B106: UKH3 | C106: Essex | D106: 34893.73 | E106: 36670.87 | F106: 38053.15 | G106: 39635.57 | H106: 41036.19 | I106: 42215.01 | J106: 42638.2 | K106: 42377.32 | L106: 42920.58 | M106: 43307.34 | N106: 44028.84 | O106: 45269.23 | P106: 46500.08 | Q106: 47566.53 | R106: 49081.54 | S106: 50720.2 | T106: 51816.85
A107: NUTS3 | B107: UKH31 | C107: Southend-on-Sea | D107: 24642.03 | E107: 26136.33 | F107: 27598.55 | G107: 29303.46 | H107: 30861.85 | I107: 32265.39 | J107: 33188.29 | K107: 33662.1 | L107: 34576.64 | M107: 35179.8 | N107: 35611.39 | O107: 36282.42 | P107: 36710.79 | Q107: 37044.53 | R107: 37463.61 | S107: 38087.23 | T107: 38455.18
A108: NUTS3 | B108: UKH32 | C108: Thurrock | D108: 39109.36 | E108: 41358.44 | F108: 43377.29 | G108: 45724.24 | H108: 47347.66 | I108: 48241.65 | J108: 48156.03 | K108: 47348.68 | L108: 47649.54 | M108: 47275.17 | N108: 47201.6 | O108: 47448.39 | P108: 48911.91 | Q108: 51005.51 | R108: 54003.18 | S108: 56368.68 | T108: 57580.61
A109: NUTS3 | B109: UKH34 | C109: Essex Haven Gateway | D109: 29913.49 | E109: 31529.23 | F109: 32747.12 | G109: 33944.59 | H109: 34865.43 | I109: 35793.61 | J109: 36418.55 | K109: 36602.25 | L109: 37397.02 | M109: 37965.6 | N109: 38580.43 | O109: 39575.4 | P109: 40568.07 | Q109: 41942.18 | R109: 43938.15 | S109: 46059.7 | T109: 47325.89
A110: NUTS3 | B110: UKH35 | C110: West Essex | D110: 38763.97 | E110: 40673.43 | F110: 42369.02 | G110: 44315.05 | H110: 46271.23 | I110: 47631.97 | J110: 47895.03 | K110: 47309.48 | L110: 47383.86 | M110: 47204.93 | N110: 47199.91 | O110: 48260.86 | P110: 49450.27 | Q110: 50667.8 | R110: 52041.96 | S110: 53581.7 | T110: 54540.19
A111: NUTS3 | B111: UKH36 | C111: Heart of Essex | D111: 37625.18 | E111: 39649.59 | F111: 41169.27 | G111: 43060.1 | H111: 44524.2 | I111: 45767.84 | J111: 45728.19 | K111: 44997.1 | L111: 45349.32 | M111: 45946.98 | N111: 47265.7 | O111: 48982.27 | P111: 50568.45 | Q111: 51299.98 | R111: 52512.75 | S111: 53911.38 | T111: 55128.31
A112: NUTS3 | B112: UKH37 | C112: Essex Thames Gateway | D112: 39042.76 | E112: 40514.9 | F112: 41244.43 | G112: 42232.82 | H112: 43540.99 | I112: 44828.49 | J112: 45442.29 | K112: 45073.68 | L112: 45704.49 | M112: 46307.69 | N112: 47723.04 | O112: 49708.27 | P112: 51265.96 | Q112: 51973.93 | R112: 53120.55 | S112: 54593.08 | T112: 55794.77
A113: NUTS1 | B113: UKI | C113: London | D113: 49069.39 | E113: 51831.08 | F113: 54534.56 | G113: 58114.38 | H113: 61686.29 | I113: 64871.67 | J113: 66104.76 | K113: 66109.07 | L113: 67218.77 | M113: 68393.07 | N113: 69693.92 | O113: 71321.2 | P113: 72841.56 | Q113: 74170.86 | R113: 76270.98 | S113: 78278.17 | T113: 79585.83
A114: NUTS2 | B114: UKI3 | C114: Inner London - West | D114: 54215.54 | E114: 57916.93 | F114: 61921.51 | G114: 66989.1 | H114: 71681.85 | I114: 75794.11 | J114: 77338.59 | K114: 77225.39 | L114: 78025.07 | M114: 78960.05 | N114: 80422.99 | O114: 82631.25 | P114: 84937.76 | Q114: 86961.45 | R114: 90082.81 | S114: 93025.34 | T114: 94985.55
A115: NUTS3 | B115: UKI31 | C115: Camden and City of London | D115: 64620.44 | E115: 70035.65 | F115: 76667.48 | G115: 84994.31 | H115: 92344.7 | I115: 98186.35 | J115: 99749.53 | K115: 98601.83 | L115: 97794.48 | M115: 96979.55 | N115: 96691.57 | O115: 97925.6 | P115: 99424.14 | Q115: 100873.71 | R115: 103423.99 | S115: 105979.54 | T115: 107682.74
A116: NUTS3 | B116: UKI32 | C116: Westminster | D116: 55285 | E116: 58378.3 | F116: 61292.66 | G116: 64936.36 | H116: 68446.8 | I116: 71539.25 | J116: 72691.88 | K116: 72614.06 | L116: 74005.02 | M116: 75409.51 | N116: 77054.11 | O116: 78682.88 | P116: 80794.95 | Q116: 83433.24 | R116: 88172.98 | S116: 92711.71 | T116: 95591.7
A117: NUTS3 | B117: UKI33 | C117: Kensington & Chelsea and Hammersmith & Fulham | D117: 37115.53 | E117: 39063.98 | F117: 40628.99 | G117: 42583.49 | H117: 44857.91 | I117: 47445.35 | J117: 48931.46 | K117: 49208.87 | L117: 50741.3 | M117: 53480.69 | N117: 57983.93 | O117: 63032.54 | P117: 66747.87 | Q117: 68101.23 | R117: 68877.41 | S117: 69512.06 | T117: 70200.95
A118: NUTS3 | B118: UKI34 | C118: Wandsworth | D118: 33019.01 | E118: 34961.94 | F118: 36698.43 | G118: 38889.14 | H118: 40781.78 | I118: 42664.32 | J118: 43824.29 | K118: 44540.75 | L118: 46165.15 | M118: 47433.25 | N118: 49161.71 | O118: 51496.89 | P118: 54060.4 | Q118: 55553.28 | R118: 56680.27 | S118: 57333.82 | T118: 57849.25
A119: NUTS2 | B119: UKI4 | C119: Inner London - East | D119: 50680.97 | E119: 53204.97 | F119: 55442.25 | G119: 58604.28 | H119: 61908.58 | I119: 65130.23 | J119: 66805.84 | K119: 67713.23 | L119: 69790.93 | M119: 71324.25 | N119: 71898.17 | O119: 72139.23 | P119: 72215.97 | Q119: 72820.38 | R119: 74347.65 | S119: 75989 | T119: 76856.82
A120: NUTS3 | B120: UKI41 | C120: Hackney and Newham | D120: 38471.98 | E120: 40744.27 | F120: 42969.17 | G120: 45754.04 | H120: 48591.42 | I120: 50830.96 | J120: 51801.92 | K120: 51170.34 | L120: 51789.11 | M120: 51966.6 | N120: 52294.28 | O120: 52376.34 | P120: 52791.25 | Q120: 53838.72 | R120: 55453.46 | S120: 56668.71 | T120: 56982.11
A121: NUTS3 | B121: UKI42 | C121: Tower Hamlets | D121: 82769.77 | E121: 86506.4 | F121: 89257.49 | G121: 94529.69 | H121: 100106.38 | I121: 107117.05 | J121: 110554.68 | K121: 112048.36 | L121: 112948.43 | M121: 112791.64 | N121: 112088.56 | O121: 112111.1 | P121: 112111.37 | Q121: 112140.97 | R121: 113640.69 | S121: 115732.91 | T121: 116995.2
A122: NUTS3 | B122: UKI43 | C122: Haringey and Islington | D122: 47754.75 | E122: 49859.72 | F122: 51605.84 | G122: 53570.64 | H122: 56027.44 | I122: 58310.36 | J122: 60047.71 | K122: 61246.01 | L122: 63954.4 | M122: 65942.53 | N122: 67077.73 | O122: 67630.62 | P122: 67976.57 | Q122: 68321.05 | R122: 69669.96 | S122: 71233.9 | T122: 72345.52
A123: NUTS3 | B123: UKI44 | C123: Lewisham and Southwark | D123: 44502.95 | E123: 46241.89 | F123: 47361.23 | G123: 49028.51 | H123: 50541.5 | I123: 51953.44 | J123: 52485 | K123: 53566.24 | L123: 56100.54 | M123: 58507.32 | N123: 59254.11 | O123: 59795.82 | P123: 59492.36 | Q123: 59983.64 | R123: 60820.27 | S123: 62006.36 | T123: 62550.75
A124: NUTS3 | B124: UKI45 | C124: Lambeth | D124: 44465.64 | E124: 47025.14 | F124: 49596.99 | G124: 53482.39 | H124: 57747.59 | I124: 61706.65 | J124: 63395.65 | K124: 63648.24 | L124: 65916.45 | M124: 67769.17 | N124: 68905.59 | O124: 68353.16 | P124: 68970.19 | Q124: 70365.02 | R124: 73604.07 | S124: 75669.61 | T124: 76745.2
A125: NUTS2 | B125: UKI5 | C125: Outer London - East and North East | D125: 41091.25 | E125: 43155.56 | F125: 45264.13 | G125: 48185.6 | H125: 51454.38 | I125: 53913.24 | J125: 54371.04 | K125: 53597.51 | L125: 54240.59 | M125: 55414.86 | N125: 56653.1 | O125: 57814.03 | P125: 58468.48 | Q125: 58902.31 | R125: 59784.51 | S125: 60608 | T125: 61080.16
A126: NUTS3 | B126: UKI51 | C126: Bexley and Greenwich | D126: 44531.76 | E126: 46559.75 | F126: 48302.05 | G126: 50906.86 | H126: 53902.95 | I126: 56384.12 | J126: 56920.1 | K126: 56017.34 | L126: 56954.11 | M126: 59024.78 | N126: 61748.95 | O126: 63921.63 | P126: 64984.11 | Q126: 65301.39 | R126: 66123.07 | S126: 66623.89 | T126: 66828.72
A127: NUTS3 | B127: UKI52 | C127: Barking & Dagenham and Havering | D127: 39676.62 | E127: 41897.25 | F127: 44299.27 | G127: 47683.73 | H127: 51152.67 | I127: 54192.54 | J127: 55288.53 | K127: 55469.56 | L127: 56516.93 | M127: 57669.09 | N127: 58821.43 | O127: 59907.39 | P127: 60236.22 | Q127: 59612.8 | R127: 59051.61 | S127: 58787.07 | T127: 58731.34
A128: NUTS3 | B128: UKI53 | C128: Redbridge and Waltham Forest | D128: 37151.41 | E128: 39209.07 | F128: 41551.15 | G128: 44633.41 | H128: 47966.49 | I128: 49962.5 | J128: 49947.47 | K128: 48760.79 | L128: 49131.86 | M128: 49670.19 | N128: 50080.11 | O128: 50745.92 | P128: 51577.71 | Q128: 52621.8 | R128: 54058.24 | S128: 55402.92 | T128: 56241.38
A129: NUTS3 | B129: UKI54 | C129: Enfield | D129: 43735.55 | E129: 45620.41 | F129: 47453.1 | G129: 49919.57 | H129: 53152.52 | I129: 55496.16 | J129: 55716.19 | K129: 54506.84 | L129: 54619.97 | M129: 55507.45 | N129: 56062.16 | O129: 56630.95 | P129: 56852.52 | Q129: 57810.32 | R129: 59733.11 | S129: 61580.77 | T129: 62546.7
A130: NUTS2 | B130: UKI6 | C130: Outer London - South | D130: 42111.28 | E130: 44229.06 | F130: 45957.11 | G130: 48327.91 | H130: 50441.73 | I130: 52451.25 | J130: 52876.34 | K130: 52598.56 | L130: 53266.07 | M130: 54306.51 | N130: 55676.49 | O130: 57245.71 | P130: 58430.62 | Q130: 58883.12 | R130: 59935.52 | S130: 60986.04 | T130: 61912.17
A131: NUTS3 | B131: UKI61 | C131: Bromley | D131: 43375.89 | E131: 45512.49 | F131: 47505.71 | G131: 49608.89 | H131: 51395.74 | I131: 52503.15 | J131: 52941.24 | K131: 53068.82 | L131: 54764.04 | M131: 56326.72 | N131: 57774.61 | O131: 58899.47 | P131: 59959.85 | Q131: 60897.8 | R131: 63156.3 | S131: 65524.48 | T131: 67356.17
A132: NUTS3 | B132: UKI62 | C132: Croydon | D132: 40432.7 | E132: 42878.23 | F132: 45299.66 | G132: 48343.15 | H132: 51077.66 | I132: 53712.65 | J132: 54752.94 | K132: 54887.11 | L132: 55221.16 | M132: 56235.46 | N132: 57701.27 | O132: 60367.5 | P132: 61759.66 | Q132: 62075.61 | R132: 62310.02 | S132: 63097.21 | T132: 63930.22
A133: NUTS3 | B133: UKI63 | C133: Merton, Kingston upon Thames and Sutton | D133: 42560.88 | E133: 44456.32 | F133: 45601.88 | G133: 47694.21 | H133: 49609.38 | I133: 51735.65 | J133: 51787.75 | K133: 51065.14 | L133: 51401.12 | M133: 52245.61 | N133: 53565.32 | O133: 54800.36 | P133: 55933.29 | Q133: 56240.15 | R133: 57167.8 | S133: 57772.18 | T133: 58344
A134: NUTS2 | B134: UKI7 | C134: Outer London - West and North West | D134: 46959.11 | E134: 49137.3 | F134: 50979.91 | G134: 53344.32 | H134: 56012.65 | I134: 58184.7 | J134: 58791.52 | K134: 57957.04 | L134: 58487.67 | M134: 59285.03 | N134: 60950.21 | O134: 63336.94 | P134: 65741.58 | Q134: 67451.3 | R134: 69333.34 | S134: 70993.7 | T134: 72171.27
A135: NUTS3 | B135: UKI71 | C135: Barnet | D135: 38942.57 | E135: 41088.11 | F135: 43025.13 | G135: 45273.68 | H135: 47230.57 | I135: 48433.23 | J135: 47890.94 | K135: 46426.91 | L135: 46492.67 | M135: 47203.59 | N135: 48529.54 | O135: 49839.93 | P135: 51254.71 | Q135: 52161.64 | R135: 53873.58 | S135: 55149.99 | T135: 56178.59
A136: NUTS3 | B136: UKI72 | C136: Brent | D136: 42376.37 | E136: 44320.95 | F136: 46400.01 | G136: 49498.02 | H136: 53283.74 | I136: 56171.1 | J136: 56919.32 | K136: 55907.67 | L136: 56110.64 | M136: 56697.35 | N136: 57782.29 | O136: 59655.25 | P136: 61416.83 | Q136: 62345.83 | R136: 62431.9 | S136: 61957.43 | T136: 61554.98
A137: NUTS3 | B137: UKI73 | C137: Ealing | D137: 43040.17 | E137: 45007.69 | F137: 46599.99 | G137: 48498.2 | H137: 50780.48 | I137: 52868.12 | J137: 54107.07 | K137: 53464.98 | L137: 53555.05 | M137: 53311.1 | N137: 54381.39 | O137: 56450.32 | P137: 58590.56 | Q137: 60039.98 | R137: 61922.64 | S137: 63751.8 | T137: 65155.55
A138: NUTS3 | B138: UKI74 | C138: Harrow and Hillingdon | D138: 48707.62 | E138: 50819.44 | F138: 52091.87 | G138: 53697.61 | H138: 55188.1 | I138: 56526.99 | J138: 56594.54 | K138: 55917.6 | L138: 56508.82 | M138: 57221.58 | N138: 58091.42 | O138: 60325.84 | P138: 63138.3 | Q138: 66041.74 | R138: 68195.41 | S138: 69529.22 | T138: 70073.77
A139: NUTS3 | B139: UKI75 | C139: Hounslow and Richmond upon Thames | D139: 54805.92 | E139: 57334.59 | F139: 59848.82 | G139: 63053.83 | H139: 67216.12 | I139: 70595.4 | J139: 72037.32 | K139: 71286.84 | L139: 72340.29 | M139: 73883.72 | N139: 77307.62 | O139: 80941.23 | P139: 83885.25 | Q139: 84972.21 | R139: 87353.91 | S139: 90554.15 | T139: 93276.59
A140: NUTS1 | B140: UKJ | C140: South East | D140: 39129.26 | E140: 40968.39 | F140: 42437.8 | G140: 44263.42 | H140: 46251.4 | I140: 48190.65 | J140: 49241.61 | K140: 49337.66 | L140: 50244.89 | M140: 51149 | N140: 52333.8 | O140: 53837.37 | P140: 54890.53 | Q140: 55641.59 | R140: 56906.44 | S140: 58462.15 | T140: 59546.98
A141: NUTS2 | B141: UKJ1 | C141: Berkshire, Buckinghamshire and Oxfordshire | D141: 44734.16 | E141: 46767.79 | F141: 48257.42 | G141: 50349.03 | H141: 52391.84 | I141: 54479.11 | J141: 55471.09 | K141: 55712.3 | L141: 56906.09 | M141: 58018.04 | N141: 59245.48 | O141: 60798.63 | P141: 61774.49 | Q141: 62355 | R141: 63394.68 | S141: 64916.03 | T141: 66049.82
A142: NUTS3 | B142: UKJ11 | C142: Berkshire | D142: 51547.68 | E142: 54231.9 | F142: 56494.45 | G142: 59352.8 | H142: 61923.95 | I142: 64391.8 | J142: 65482.7 | K142: 65566 | L142: 66620.77 | M142: 67866.8 | N142: 69418.25 | O142: 71416.85 | P142: 72698.45 | Q142: 73638.18 | R142: 75240.22 | S142: 77188.32 | T142: 78496.45
A143: NUTS3 | B143: UKJ12 | C143: Milton Keynes | D143: 47728.16 | E143: 49932.4 | F143: 51699.23 | G143: 54212.79 | H143: 56408.82 | I143: 58017.06 | J143: 58078.08 | K143: 57480.36 | L143: 58175.16 | M143: 58982.07 | N143: 60433.48 | O143: 62962.83 | P143: 65237.71 | Q143: 66875.99 | R143: 68861.95 | S143: 71655.71 | T143: 73811.29
A144: NUTS3 | B144: UKJ13 | C144: Buckinghamshire CC | D144: 40026.86 | E144: 41477.88 | F144: 42369.88 | G144: 44207.2 | H144: 46524.71 | I144: 49104.82 | J144: 50519.59 | K144: 51088.99 | L144: 52311.73 | M144: 53201.55 | N144: 53718.89 | O144: 54383.68 | P144: 54332.7 | Q144: 53992.31 | R144: 54189.39 | S144: 55016.9 | T144: 55828.37
A145: NUTS3 | B145: UKJ14 | C145: Oxfordshire | D145: 37153.43 | E145: 38673.32 | F145: 39514.64 | G145: 40634.03 | H145: 41755.27 | I145: 43157.46 | J145: 44080.35 | K145: 44562.72 | L145: 45985.68 | M145: 47125.9 | N145: 48346.13 | O145: 49610.53 | P145: 50402.7 | Q145: 50665.59 | R145: 51022.41 | S145: 51742.01 | T145: 52300.22
A146: NUTS2 | B146: UKJ2 | C146: Surrey, East and West Sussex | D146: 38752.09 | E146: 40540.21 | F146: 42016.87 | G146: 43757.73 | H146: 45828.11 | I146: 47778.31 | J146: 48832.59 | K146: 48685.65 | L146: 49267.38 | M146: 49950.53 | N146: 51074.45 | O146: 52678.43 | P146: 53825.1 | Q146: 54699.3 | R146: 55908.78 | S146: 57323.65 | T146: 58229.99
A147: NUTS3 | B147: UKJ21 | C147: Brighton and Hove | D147: 31094.72 | E147: 32299.78 | F147: 33322.56 | G147: 34897.88 | H147: 37045.63 | I147: 39180.2 | J147: 40483.62 | K147: 40595.74 | L147: 41096.48 | M147: 41668.69 | N147: 42896.44 | O147: 44658.74 | P147: 45734.96 | Q147: 46327.06 | R147: 47432.39 | S147: 49138.2 | T147: 50421.73
A148: NUTS3 | B148: UKJ22 | C148: East Sussex CC | D148: 28798.6 | E148: 29991.44 | F148: 30861.94 | G148: 31805.53 | H148: 32890.37 | I148: 33671.5 | J148: 33980.44 | K148: 33828.27 | L148: 34449.4 | M148: 34961.99 | N148: 35319.31 | O148: 36011.63 | P148: 36858.76 | Q148: 37745.28 | R148: 38979.84 | S148: 40000.91 | T148: 40687.93
A149: NUTS3 | B149: UKJ25 | C149: West Surrey | D149: 44569.71 | E149: 46444.09 | F149: 47924.25 | G149: 49498.38 | H149: 51571.92 | I149: 53499.97 | J149: 54700 | K149: 54649.71 | L149: 55503.25 | M149: 56490.14 | N149: 58111.91 | O149: 60428.01 | P149: 62263.5 | Q149: 63751.07 | R149: 65534.01 | S149: 67511.08 | T149: 68756.48
A150: NUTS3 | B150: UKJ26 | C150: East Surrey | D150: 49427.37 | E150: 52472.64 | F150: 55665.37 | G150: 59140.43 | H150: 62283.9 | I150: 64968.39 | J150: 65956.22 | K150: 65598.05 | L150: 65825.36 | M150: 66794 | N150: 68597.87 | O150: 70993.65 | P150: 71726.37 | Q150: 71626.41 | R150: 71353.45 | S150: 71825.75 | T150: 71865.05
A151: NUTS3 | B151: UKJ27 | C151: West Sussex (South West) | D151: 33885.96 | E151: 35477.07 | F151: 36596.54 | G151: 37899.79 | H151: 39574.65 | I151: 41456.8 | J151: 42764.84 | K151: 42637.49 | L151: 43057.45 | M151: 43283.59 | N151: 43905.62 | O151: 44817.15 | P151: 45594.62 | Q151: 46893.66 | R151: 48756.39 | S151: 50718.29 | T151: 51681.27
A152: NUTS3 | B152: UKJ28 | C152: West Sussex (North East) | D152: 37213.34 | E152: 39008.63 | F152: 40359.82 | G152: 42155.8 | H152: 44376.29 | I152: 46673.25 | J152: 47794.89 | K152: 47396 | L152: 47709.61 | M152: 48082.85 | N152: 48810.05 | O152: 49945.54 | P152: 51008.29 | Q152: 51805.38 | R152: 53040.36 | S152: 54238.79 | T152: 55195.16
A153: NUTS2 | B153: UKJ3 | C153: Hampshire and Isle of Wight | D153: 36231.69 | E153: 37955.52 | F153: 39327.57 | G153: 41019.84 | H153: 42932 | I153: 44933.55 | J153: 46180.61 | K153: 46590.3 | L153: 47694.04 | M153: 48731.44 | N153: 49962.5 | O153: 51384.97 | P153: 52422.12 | Q153: 53212.3 | R153: 54798.13 | S153: 56682.65 | T153: 58023.83
A154: NUTS3 | B154: UKJ31 | C154: Portsmouth | D154: 27582.93 | E154: 29129.75 | F154: 30621.92 | G154: 32735.29 | H154: 34947.86 | I154: 37031.11 | J154: 38075.86 | K154: 38162.23 | L154: 39006.98 | M154: 40039.77 | N154: 41729.06 | O154: 43654.8 | P154: 44923.97 | Q154: 45288.23 | R154: 45659.67 | S154: 46346.39 | T154: 46936.25
A155: NUTS3 | B155: UKJ32 | C155: Southampton | D155: 33613.69 | E155: 35760.64 | F155: 37810.26 | G155: 40502.89 | H155: 43320.16 | I155: 46736.19 | J155: 49435.15 | K155: 51647.78 | L155: 54090.2 | M155: 55894.57 | N155: 56194.53 | O155: 56285.16 | P155: 56006.43 | Q155: 56635.93 | R155: 58392.82 | S155: 60519.95 | T155: 61910.21
A156: NUTS3 | B156: UKJ34 | C156: Isle of Wight | D156: 25262.74 | E156: 26926.5 | F156: 28509.25 | G156: 29996.13 | H156: 31195.53 | I156: 32345.35 | J156: 33402.85 | K156: 33968.33 | L156: 34955.39 | M156: 35465.21 | N156: 36454.36 | O156: 38040.66 | P156: 39543.2 | Q156: 40155.42 | R156: 40452.71 | S156: 40838.93 | T156: 41216.38
A157: NUTS3 | B157: UKJ35 | C157: South Hampshire | D157: 36075.13 | E157: 37338.64 | F157: 38126.57 | G157: 39171.83 | H157: 40711.17 | I157: 42249.67 | J157: 43110.59 | K157: 43228.38 | L157: 44296.48 | M157: 45551.12 | N157: 47477.42 | O157: 49526.85 | P157: 51243.36 | Q157: 51900.81 | R157: 53198.29 | S157: 54465.18 | T157: 55588.25
A158: NUTS3 | B158: UKJ36 | C158: Central Hampshire | D158: 36963.52 | E158: 38459.77 | F158: 39315.17 | G158: 40324.47 | H158: 41707.77 | I158: 43224.52 | J158: 43948.71 | K158: 43712.98 | L158: 44214.94 | M158: 44827.26 | N158: 45572.33 | O158: 46491.06 | P158: 47248.51 | Q158: 48404.43 | R158: 50603.38 | S158: 53000.94 | T158: 54468.43
A159: NUTS3 | B159: UKJ37 | C159: North Hampshire | D159: 46190.41 | E159: 48542.39 | F159: 50666.95 | G159: 53100.63 | H159: 55596.35 | I159: 58049.47 | J159: 59793.69 | K159: 60557.56 | L159: 62016.09 | M159: 63078.75 | N159: 64583.27 | O159: 66472.45 | P159: 67748.21 | Q159: 68566.35 | R159: 70648.94 | S159: 73542.16 | T159: 75717.1
A160: NUTS2 | B160: UKJ4 | C160: Kent | D160: 33927.09 | E160: 35672.61 | F160: 37213.05 | G160: 38939.04 | H160: 40756.19 | I160: 42328.83 | J160: 43198.38 | K160: 43114.08 | L160: 43880.84 | M160: 44624.04 | N160: 45703.79 | O160: 46963.21 | P160: 47933.2 | Q160: 48669.43 | R160: 49957.05 | S160: 51371.72 | T160: 52340.24
A161: NUTS3 | B161: UKJ41 | C161: Medway | D161: 30081.49 | E161: 31693.14 | F161: 33047.58 | G161: 34706.3 | H161: 36765.83 | I161: 39206.62 | J161: 41130.94 | K161: 42007.29 | L161: 43288.25 | M161: 44531.45 | N161: 46094.55 | O161: 47990.44 | P161: 49147.18 | Q161: 49560.82 | R161: 50253.64 | S161: 51357.91 | T161: 52333.1
A162: NUTS3 | B162: UKJ43 | C162: Kent Thames Gateway | D162: 39695.76 | E162: 41312.54 | F162: 42465.59 | G162: 43474.55 | H162: 44983.44 | I162: 46034.78 | J162: 46423.89 | K162: 45504.83 | L162: 45539.8 | M162: 45726.57 | N162: 46490.39 | O162: 47932.44 | P162: 49066.58 | Q162: 49727 | R162: 50543.79 | S162: 51457.84 | T162: 52151.35
A163: NUTS3 | B163: UKJ44 | C163: East Kent | D163: 30344.23 | E163: 32077.55 | F163: 33821.63 | G163: 35606.72 | H163: 37107.83 | I163: 38184.76 | J163: 38846.33 | K163: 39079.2 | L163: 40125.07 | M163: 40968.96 | N163: 42030.77 | O163: 43181.2 | P163: 43947.84 | Q163: 44236.09 | R163: 44989.78 | S163: 46083.46 | T163: 46976.45
A164: NUTS3 | B164: UKJ45 | C164: Mid Kent | D164: 31305 | E164: 32684.2 | F164: 33697.2 | G164: 34970.68 | H164: 36478.22 | I164: 38064.16 | J164: 38996.45 | K164: 38996.49 | L164: 39471.82 | M164: 39855.92 | N164: 40547.26 | O164: 41625.05 | P164: 42733 | Q164: 43687.11 | R164: 44876.02 | S164: 45784.11 | T164: 46258.11
A165: NUTS3 | B165: UKJ46 | C165: West Kent | D165: 38010.53 | E165: 40271.81 | F165: 42491.16 | G165: 45242.21 | H165: 47957.07 | I165: 50053.93 | J165: 50815.55 | K165: 50154.75 | L165: 50977.83 | M165: 51965.5 | N165: 53374.72 | O165: 54346.12 | P165: 55124.11 | Q165: 56395.64 | R165: 59205.86 | S165: 62157.95 | T165: 63983.55
A166: NUTS1 | B166: UKK | C166: South West | D166: 33003.68 | E166: 34517.6 | F166: 35691.53 | G166: 37097.23 | H166: 38601.04 | I166: 39990.88 | J166: 40650.93 | K166: 40535.89 | L166: 41231.93 | M166: 41916.3 | N166: 42896.57 | O166: 43963.45 | P166: 44836.95 | Q166: 45537.95 | R166: 46830.79 | S166: 48198.35 | T166: 49090.12
A167: NUTS2 | B167: UKK1 | C167: Gloucestershire, Wiltshire and Bath/Bristol area | D167: 35753.73 | E167: 37384.68 | F167: 38677.8 | G167: 40340.95 | H167: 42217.3 | I167: 44047.49 | J167: 45019.95 | K167: 45033.96 | L167: 45925.16 | M167: 46785.8 | N167: 48043.59 | O167: 49279.51 | P167: 50174.18 | Q167: 50772.79 | R167: 52053.19 | S167: 53516.44 | T167: 54490.56
A168: NUTS3 | B168: UKK11 | C168: Bristol, City of | D168: 30970.79 | E168: 32772.61 | F168: 34387.5 | G168: 36224.32 | H168: 38107.1 | I168: 40085.62 | J168: 41408.69 | K168: 41905.07 | L168: 42772.38 | M168: 43194.42 | N168: 43599.84 | O168: 44116.49 | P168: 44870.34 | Q168: 45810.69 | R168: 47640.44 | S168: 49361.98 | T168: 50397.88
A169: NUTS3 | B169: UKK12 | C169: Bath and North East Somerset, North Somerset and South Gloucestershire | D169: 39433.12 | E169: 40706.91 | F169: 41436.46 | G169: 42728.77 | H169: 44584.05 | I169: 46394.81 | J169: 47107.88 | K169: 46704.25 | L169: 47288.05 | M169: 48090.62 | N169: 49719.73 | O169: 51596.92 | P169: 53135.4 | Q169: 53755.64 | R169: 54962.99 | S169: 56197.93 | T169: 57267.24
A170: NUTS3 | B170: UKK13 | C170: Gloucestershire | D170: 34357.33 | E170: 36030.86 | F170: 37471.45 | G170: 39296.89 | H170: 40940.97 | I170: 42229.3 | J170: 42685.01 | K170: 42586.15 | L170: 43547.14 | M170: 44272.64 | N170: 45189.82 | O170: 46123.94 | P170: 46893.16 | Q170: 47453.87 | R170: 48414.02 | S170: 49603.69 | T170: 50360.49
A171: NUTS3 | B171: UKK14 | C171: Swindon | D171: 45028.56 | E171: 47365.16 | F171: 49484.63 | G171: 52580.84 | H171: 56679.55 | I171: 60969.17 | J171: 63682.78 | K171: 63928.71 | L171: 64850.25 | M171: 65650.09 | N171: 67298.26 | O171: 69910.69 | P171: 72389.8 | Q171: 74730.16 | R171: 77004.62 | S171: 79109.73 | T171: 80145.29
A172: NUTS3 | B172: UKK15 | C172: Wiltshire | D172: 33378.39 | E172: 34749.54 | F172: 35648.57 | G172: 36519.77 | H172: 37567.09 | I172: 38716.75 | J172: 39488.38 | K172: 39594.92 | L172: 40986.46 | M172: 42791.81 | N172: 44971.97 | O172: 45951.89 | P172: 45554.49 | Q172: 44915.57 | R172: 45596.73 | S172: 47158.41 | T172: 48215.47
A173: NUTS2 | B173: UKK2 | C173: Dorset and Somerset | D173: 32588.97 | E173: 33916.05 | F173: 34854.48 | G173: 35966.43 | H173: 37280.15 | I173: 38466.21 | J173: 38947.11 | K173: 38686.96 | L173: 39145.16 | M173: 39553.07 | N173: 40194.79 | O173: 41058.05 | P173: 41971.41 | Q173: 42837.52 | R173: 44143.12 | S173: 45419.88 | T173: 46190.92
A174: NUTS3 | B174: UKK21 | C174: Bournemouth and Poole | D174: 34995.23 | E174: 36519.73 | F174: 37758.12 | G174: 39270.15 | H174: 41161.38 | I174: 43115.38 | J174: 44194.32 | K174: 44241.96 | L174: 44387.98 | M174: 44386.23 | N174: 44327.75 | O174: 44908.66 | P174: 45516.15 | Q174: 46462.12 | R174: 47841.99 | S174: 49168.79 | T174: 49859.7
A175: NUTS3 | B175: UKK22 | C175: Dorset CC | D175: 33612.02 | E175: 35183.59 | F175: 36325.38 | G175: 37274.75 | H175: 38010.81 | I175: 38359.73 | J175: 38215.44 | K175: 37543.31 | L175: 38011.23 | M175: 38578.99 | N175: 39681.9 | O175: 41017.96 | P175: 42413.05 | Q175: 43668.67 | R175: 45224.02 | S175: 46743.42 | T175: 47619.06
A176: NUTS3 | B176: UKK23 | C176: Somerset | D176: 30277.07 | E176: 31321.62 | F176: 31949.4 | G176: 32916.04 | H176: 34250.05 | I176: 35518.3 | J176: 36061.95 | K176: 35910.38 | L176: 36549.46 | M176: 37077.77 | N176: 37791.62 | O176: 38468.62 | P176: 39221.89 | Q176: 39759.52 | R176: 40832.56 | S176: 41896.03 | T176: 42639.35
A177: NUTS2 | B177: UKK3 | C177: Cornwall and Isles of Scilly | D177: 27596.82 | E177: 29082.89 | F177: 30269.96 | G177: 31408.54 | H177: 32160.64 | I177: 32645.03 | J177: 32665.75 | K177: 32310.71 | L177: 32779.29 | M177: 33390.9 | N177: 34250.26 | O177: 35225.58 | P177: 36013.31 | Q177: 36885.4 | R177: 38315.7 | S177: 39809.77 | T177: 40724.63
A178: NUTS3 | B178: UKK30 | C178: Cornwall and Isles of Scilly | D178: 27596.82 | E178: 29082.89 | F178: 30269.96 | G178: 31408.54 | H178: 32160.64 | I178: 32645.03 | J178: 32665.75 | K178: 32310.71 | L178: 32779.29 | M178: 33390.9 | N178: 34250.26 | O178: 35225.58 | P178: 36013.31 | Q178: 36885.4 | R178: 38315.7 | S178: 39809.77 | T178: 40724.63
A179: NUTS2 | B179: UKK4 | C179: Devon | D179: 29532.53 | E179: 31005.91 | F179: 32210.61 | G179: 33556.31 | H179: 34872.14 | I179: 35954.87 | J179: 36401.93 | K179: 36200.79 | L179: 36790.83 | M179: 37409.81 | N179: 38205.55 | O179: 39114.94 | P179: 39829.02 | Q179: 40432.25 | R179: 41641.25 | S179: 42863.5 | T179: 43697.18
A180: NUTS3 | B180: UKK41 | C180: Plymouth | D180: 26236.11 | E180: 27567.24 | F180: 28820.64 | G180: 30129.65 | H180: 31496.41 | I180: 32682.52 | J180: 33561.54 | K180: 33927.89 | L180: 34824.75 | M180: 35569.38 | N180: 36525.11 | O180: 37671.65 | P180: 38791.14 | Q180: 39725.43 | R180: 41397.61 | S180: 42906.28 | T180: 43939.61
A181: NUTS3 | B181: UKK42 | C181: Torbay | D181: 26163.43 | E181: 27504.9 | F181: 28783.78 | G181: 30363.95 | H181: 31957.02 | I181: 33147.02 | J181: 33619.13 | K181: 33274.24 | L181: 33307.14 | M181: 33039.78 | N181: 33113.14 | O181: 33954.32 | P181: 35008.14 | Q181: 35921.9 | R181: 36808.97 | S181: 37552.73 | T181: 37945.89
A182: NUTS3 | B182: UKK43 | C182: Devon CC | D182: 31230.94 | E182: 32776.9 | F182: 33945.32 | G182: 35255.65 | H182: 36494.38 | I182: 37517.04 | J182: 37801.18 | K182: 37416.72 | L182: 37984.94 | M182: 38705.82 | N182: 39564.52 | O182: 40392.16 | P182: 40893.24 | Q182: 41313.44 | R182: 42398.94 | S182: 43586.13 | T182: 44413.33
A183: NUTS1 | B183: UKL | C183: Wales | D183: 30584.84 | E183: 31970.46 | F183: 33027.37 | G183: 34242.8 | H183: 35545.91 | I183: 36681.3 | J183: 37070.94 | K183: 36999.37 | L183: 37886.3 | M183: 39088.76 | N183: 40264.47 | O183: 41357.88 | P183: 41936.62 | Q183: 42532.25 | R183: 43766.8 | S183: 45205.16 | T183: 46132.14
A184: NUTS2 | B184: UKL1 | C184: West Wales and The Valleys | D184: 29418.86 | E184: 30739.87 | F184: 31776.67 | G184: 32881.34 | H184: 34135.61 | I184: 35109.98 | J184: 35460.29 | K184: 35318.71 | L184: 36194.35 | M184: 37306.55 | N184: 38389.23 | O184: 39375.54 | P184: 39898.64 | Q184: 40485 | R184: 41768.24 | S184: 43332.9 | T184: 44376.08
A185: NUTS3 | B185: UKL11 | C185: Isle of Anglesey | D185: 29367.33 | E185: 30609.99 | F185: 31612.42 | G185: 32706.36 | H185: 34073.97 | I185: 35080.93 | J185: 35211.65 | K185: 34579 | L185: 34649.66 | M185: 35043.03 | N185: 35298.23 | O185: 35591.95 | P185: 35498.39 | Q185: 36041.97 | R185: 37503.78 | S185: 39251.1 | T185: 40266.7
A186: NUTS3 | B186: UKL12 | C186: Gwynedd | D186: 31496.86 | E186: 32998.24 | F186: 34458.41 | G186: 36190.93 | H186: 38140.45 | I186: 39466.49 | J186: 39603.36 | K186: 38957.25 | L186: 39104.14 | M186: 39265.53 | N186: 39024.17 | O186: 38840.62 | P186: 38641.38 | Q186: 38686.27 | R186: 39385.15 | S186: 40325.79 | T186: 41072.29
A187: NUTS3 | B187: UKL13 | C187: Conwy and Denbighshire | D187: 26976.08 | E187: 28073.95 | F187: 28883.96 | G187: 29686.69 | H187: 30607.68 | I187: 31123.38 | J187: 31110.22 | K187: 30899.09 | L187: 31705.49 | M187: 32759.14 | N187: 33795.21 | O187: 34914.11 | P187: 35631.76 | Q187: 36160.82 | R187: 37128.81 | S187: 38362.46 | T187: 39250.66
A188: NUTS3 | B188: UKL14 | C188: South West Wales | D188: 29061.36 | E188: 30320.96 | F188: 31256.46 | G188: 31878.63 | H188: 32890.84 | I188: 33430.31 | J188: 33416.96 | K188: 32573.4 | L188: 33220.2 | M188: 34426.8 | N188: 35998.74 | O188: 37088.32 | P188: 37469.57 | Q188: 37768.75 | R188: 38742.63 | S188: 40132.2 | T188: 41051.61
A189: NUTS3 | B189: UKL15 | C189: Central Valleys | D189: 28479.43 | E189: 29886.88 | F189: 30829.61 | G189: 31985.73 | H189: 33185.66 | I189: 34748.9 | J189: 36031.23 | K189: 36890.13 | L189: 38201.41 | M189: 39369.69 | N189: 40326.77 | O189: 41531.29 | P189: 42474.07 | Q189: 43511.33 | R189: 44801.11 | S189: 45897.44 | T189: 46401.12
A190: NUTS3 | B190: UKL16 | C190: Gwent Valleys | D190: 29327.66 | E190: 30735.67 | F190: 31811.01 | G190: 33040.53 | H190: 34054.62 | I190: 34806.21 | J190: 34820.14 | K190: 34764.51 | L190: 35729.76 | M190: 37033.5 | N190: 37979.95 | O190: 39032.09 | P190: 39668.55 | Q190: 40757.27 | R190: 42474.78 | S190: 44523.89 | T190: 45826.99
A191: NUTS3 | B191: UKL17 | C191: Bridgend and Neath Port Talbot | D191: 33754.18 | E191: 35184.4 | F191: 36275.31 | G191: 37447.71 | H191: 38723.01 | I191: 39448.47 | J191: 39654.2 | K191: 39473.61 | L191: 40700.46 | M191: 41969.07 | N191: 43091.22 | O191: 43967.4 | P191: 44179.77 | Q191: 44747.37 | R191: 46701.87 | S191: 49487.2 | T191: 51462.66
A192: NUTS3 | B192: UKL18 | C192: Swansea | D192: 27780.77 | E192: 29054.81 | F192: 30253.31 | G192: 31723.82 | H192: 33440.39 | I192: 35059.62 | J192: 35941.57 | K192: 36208.97 | L192: 37147.42 | M192: 38409.92 | N192: 39895.18 | O192: 41212.71 | P192: 42113.98 | Q192: 42650.14 | R192: 43967.49 | S192: 45203.13 | T192: 46079.94
A193: NUTS2 | B193: UKL2 | C193: East Wales | D193: 32153.89 | E193: 33631.32 | F193: 34722.64 | G193: 36102.34 | H193: 37476.36 | I193: 38839.32 | J193: 39283.77 | K193: 39309.69 | L193: 40203.12 | M193: 41526.92 | N193: 42836.94 | O193: 44090.36 | P193: 44747.03 | Q193: 45340.82 | R193: 46480.07 | S193: 47715.3 | T193: 48463.49
A194: NUTS3 | B194: UKL21 | C194: Monmouthshire and Newport | D194: 32932.32 | E194: 34501.92 | F194: 35790.55 | G194: 37364.46 | H194: 38761.85 | I194: 39977.41 | J194: 40055.27 | K194: 39857.38 | L194: 40565.57 | M194: 41881.29 | N194: 43232.2 | O194: 44471.98 | P194: 45041.55 | Q194: 45323.79 | R194: 46256.16 | S194: 47335.14 | T194: 48117.59
A195: NUTS3 | B195: UKL22 | C195: Cardiff and Vale of Glamorgan | D195: 32925.64 | E195: 34438.54 | F195: 35565.04 | G195: 37093.3 | H195: 38747.52 | I195: 40425.63 | J195: 41011.14 | K195: 41029.02 | L195: 42016.82 | M195: 43647.78 | N195: 45345.66 | O195: 46938.43 | P195: 47800.86 | Q195: 48522.48 | R195: 49843.25 | S195: 51244.52 | T195: 52117.81
A196: NUTS3 | B196: UKL23 | C196: Flintshire and Wrexham | D196: 33823.88 | E196: 35277.36 | F196: 36143.2 | G196: 37172.46 | H196: 38162.45 | I196: 39349.13 | J196: 40061.14 | K196: 40529.11 | L196: 41765.87 | M196: 42949.45 | N196: 43773.51 | O196: 44576.43 | P196: 44919.38 | Q196: 45510.5 | R196: 46486.09 | S196: 47517.57 | T196: 47985.45
A197: NUTS3 | B197: UKL24 | C197: Powys | D197: 24479.01 | E197: 25666.7 | F197: 26589.48 | G197: 27561.91 | H197: 28394.3 | I197: 29047.36 | J197: 29020.1 | K197: 28597.52 | L197: 28820.7 | M197: 29371.98 | N197: 30185.07 | O197: 31121.23 | P197: 31770.92 | Q197: 32385.33 | R197: 33368.27 | S197: 34418.89 | T197: 35013.69
A198: NUTS1 | B198: UKM | C198: Scotland | D198: 32899.39 | E198: 34582.48 | F198: 36105.8 | G198: 37911.95 | H198: 39825.75 | I198: 41695.26 | J198: 42893.67 | K198: 43395.21 | L198: 44520.05 | M198: 45624.64 | N198: 46931.12 | O198: 48489.14 | P198: 49585.86 | Q198: 50254.53 | R198: 51465.13 | S198: 52869.83 | T198: 53902.52
A199: NUTS2 | B199: UKM5 | C199: North Eastern Scotland | D199: 38238.2 | E199: 39900.62 | F199: 41684.97 | G199: 44541.4 | H199: 48497.75 | I199: 52411.16 | J199: 55024.54 | K199: 55805.26 | L199: 57218.32 | M199: 58518.01 | N199: 60446.29 | O199: 62540.14 | P199: 63466.83 | Q199: 62818.98 | R199: 62374.79 | S199: 62472.86 | T199: 63009.91
A200: NUTS3 | B200: UKM50 | C200: Aberdeen City and Aberdeenshire | D200: 38238.2 | E200: 39900.62 | F200: 41684.97 | G200: 44541.4 | H200: 48497.75 | I200: 52411.16 | J200: 55024.54 | K200: 55805.26 | L200: 57218.32 | M200: 58518.01 | N200: 60446.29 | O200: 62540.14 | P200: 63466.83 | Q200: 62818.98 | R200: 62374.79 | S200: 62472.86 | T200: 63009.91
A201: NUTS2 | B201: UKM6 | C201: Highlands and Islands | D201: 30835.97 | E201: 32595.61 | F201: 34217.38 | G201: 35828.77 | H201: 37174.73 | I201: 38545.19 | J201: 39684.64 | K201: 40698.49 | L201: 42400.95 | M201: 43871.05 | N201: 45068.46 | O201: 46116.04 | P201: 46767.93 | Q201: 47288.64 | R201: 48413.58 | S201: 49838.32 | T201: 50804.44
... 42 more rows
